Departmental Family,Entity,Date,Expense Type,Expense Area,Supplier,Transaction Number,Amount
Department for Work and Pensions ,Corporate,28/11/2014,PRIME FACILITY PRICE,FG CD OPS ESTATES PRIME COSTS,TELEREAL TRILLIUM,2033411343,"33,592,740"
Department for Work and Pensions ,Corporate,18/11/2014,FAS - NON ASSET BACKED ASSISTANCE PAYMENTS,STR FAS ASSISTANCE PAYMENTS,PENSION PROTECTION FUND,1006807,"20,143,000"
Department for Work and Pensions ,Corporate,18/11/2014,HOSTING SERVICES,CIO ITLR HOSTING DEL P,HP ENTERPRISE SERVICES UK LTD,2033390141,"14,927,675"
Department for Work and Pensions ,Corporate,11/11/2014,NETWORK SERVICES,CIO ITLR NETWORK,BT GLOBAL SERVICES,2033379992,"8,957,030"
Department for Work and Pensions ,Corporate,24/11/2014,NEST Loan - in year additions,CHG ERSP DEL A,NEST CORPORATION,2005044,"7,600,000"
Department for Work and Pensions ,Employment Programmes,26/11/2014,CPS LP RECOVERIES,BALANCE SHEET,DWP MANUAL PAYMENTS,2005056,"5,317,021"
Department for Work and Pensions ,Corporate,18/11/2014,AMS FIXED PRICE CONTRACTS,CIO ITLR AMS,HP ENTERPRISE SERVICES UK LTD,2033390141,"4,543,881"
Department for Work and Pensions ,Corporate,28/11/2014,PRIME BUSINESS RATES,FG CD OPS ESTATES PRIME COSTS,TELEREAL TRILLIUM,2033411342,"4,403,814"
Department for Work and Pensions ,European Social Fund,07/11/2014,MA ESF(D) PROGRAMME EXPENDITURE EC PREFUNDED OGDS,WWEG EUROPEAN SOCIAL FUND PROGRAMME 2007-2013,SOUTH WEST SKILLS FUNDING AGENCY,5000001748,"4,091,209"
Department for Work and Pensions ,Corporate,18/11/2014,PIP FACE TO FACE ASSESSMENTS,FG HS PIP LOT 1,ATOS IT SERVICES UK LTD,2033390297,"3,905,757"
Department for Work and Pensions ,Corporate,28/11/2014,MEDICAL SERVICES FIXED COSTS,FG HS MEDICAL SERVICES CONTRACT DEL P,ATOS HEALTHCARE,2033413388,"3,822,996"
Department for Work and Pensions ,Corporate,20/11/2014,CONTRACTED OUT OFFICE SERVICES,FG CD CENTRAL CONTRACTS,COFELY WORKPLACE LTD,2033396272,"3,206,485"
Department for Work and Pensions ,Corporate,18/11/2014,PIP FACE TO FACE ASSESSMENTS,FG HS PIP LOT 3,ATOS IT SERVICES UK LTD,2033390297,"2,878,972"
Department for Work and Pensions ,Corporate,28/11/2014,AR PRIME RECOVERIES,BALANCE SHEET,TELEREAL TRILLIUM,2033411343,"2,668,062"
Department for Work and Pensions ,Child Maintenance and Enforcement Commission,05/11/2014,CONTRACTED OUT OFFICE SERVICES,EXTERNAL CONTRACTS VERTEX,SERCO PUBLIC SERVICES LTD,1000221717,"2,488,404"
Department for Work and Pensions ,Corporate,17/11/2014,PROFESSIONAL ADVICE & OPINION VAT RECOVERABLE,STR LEGAL SERVICES,TREASURY SOLICITORS DEPT,2005030,"2,412,500"
Department for Work and Pensions ,Employment Programmes,21/11/2014,REMPLOY RESOURCE GRANT,WWEG EP REMPLOY,REMPLOY LTD,2033399550,"2,296,000"
Department for Work and Pensions ,Child Maintenance and Enforcement Commission,27/11/2014,BELFAST BENEFIT CENTRE (RUN COSTS),CSA CD CENT HELD NORTHERN IRELAND PAYMENTS,DSD GROUP ACCOUNT,1001891,"2,254,827"
Department for Work and Pensions ,Corporate,26/11/2014,DESKTOP SERVICES,CIO ITLR DESKTOP,HP ENTERPRISE SERVICES UK LTD,2033406058,"2,238,722"
Department for Work and Pensions ,Corporate,20/11/2014,MEDICAL OPINIONS INCAPACITY BENEFIT,FG HS MEDICAL SERVICES CONTRACT DEL P,ATOS HEALTHCARE,2033396285,"2,163,326"
Department for Work and Pensions ,European Social Fund,06/11/2014,MA ESF(D) PROGRAMME EXPENDITURE EC PREFUNDED DWP,WWEG EUROPEAN SOCIAL FUND PROGRAMME 2007-2013,NORTH WEST DWP,5000001743,"2,124,451"
Department for Work and Pensions ,European Social Fund,10/11/2014,MA ESF(D) PROGRAMME EXPENDITURE EC PREFUNDED DWP,WWEG EUROPEAN SOCIAL FUND PROGRAMME 2007-2013,EAST MIDLANDS DWP,5000001749,"2,101,638"
Department for Work and Pensions ,Corporate,28/11/2014,NON PRIME PROPERTY COSTS,FG CD BENTON PARK VIEW,HM REVENUE & CUSTOMS,2033413598,"1,839,259"
Department for Work and Pensions ,Corporate,11/11/2014,NETWORK CONTACT CENTRE SERVICES,CIO ITLR NETWORK,BT GLOBAL SERVICES,2033379992,"1,794,105"
Department for Work and Pensions ,Corporate,14/11/2014,SIAM FIXED PRICE CONTRACTS,CIO ITLR SIAM,HP ENTERPRISE SERVICES UK LTD,2033386077,"1,781,111"
Department for Work and Pensions ,Corporate,19/11/2014,NON PRIME UTILITIES,FG CD DWP GAS & ELECTRICITY PAYMENTS / RECHARGES,EDF ENERGY 1 LTD SCC UTILITIES ONLY,2033393519,"1,760,104"
Department for Work and Pensions ,Corporate,28/11/2014,PRIME FACILITY PRICE,FG CD CMG ESTATES PRIME COSTS,TELEREAL TRILLIUM,2033411343,"1,714,344"
Department for Work and Pensions ,Corporate,28/11/2014,NON PRIME PROPERTY COSTS,FG CD OPS ESTATES NON-PRIME COSTS,HM REVENUE & CUSTOMS,2033413598,"1,646,982"
Department for Work and Pensions ,Corporate,25/11/2014,NON-TREDDS IS IT APPS DEV MANDAY,CHG UC PATHFINDER DELIVERY MANAGEMENT,ACCENTURE UK LTD,2033403633,"1,621,954"
Department for Work and Pensions ,Corporate,03/11/2014,CONTRACTED OUT HR SERVICES,HR SHARED SERVICES,SHARED SERVICES CONNECTED LTD,2033367444,"1,615,205"
Department for Work and Pensions ,Corporate,28/11/2014,CONTRACTED OUT HR SERVICES,HR SHARED SERVICES,SHARED SERVICES CONNECTED LTD,2033412500,"1,596,993"
Department for Work and Pensions ,Corporate,11/11/2014,VAT CLEARING,BALANCE SHEET,CMG,2005023,"1,549,090"
Department for Work and Pensions ,Corporate,04/11/2014,BELFAST BENEFIT CENTRE (RUN COSTS),OPS BEN BD LN BELFAST,DEPARTMENT FOR SOCIAL DEVELOPMENT,1006783,"1,492,306"
Department for Work and Pensions ,Corporate,13/11/2014,PRIME BILLABLE EXTRAS PRIME CONTRACT MANAGEMENT (PCM),OPS WDC WSD EMPLOYMENT PROGRAMMES,TELEREAL TRILLIUM,2033383757,"1,467,144"
Department for Work and Pensions ,Corporate,26/11/2014,NETWORK CONTACT CENTRE SERVICES,CIO ITLR NETWORK,BT GLOBAL SERVICES,2033406004,"1,389,425"
Department for Work and Pensions ,Corporate,26/11/2014,NON PRIME PROPERTY COSTS,FG CD DURHAM HOUSE,HM REVENUE & CUSTOMS,2033405961,"1,367,833"
Department for Work and Pensions ,Corporate,18/11/2014,TREDDS IS IT CONSULTANCY (HOSTING) NON ADVICE,CHG UC PATHFINDER DELIVERY MANAGEMENT,HP ENTERPRISE SERVICES UK LTD,2033390141,"1,334,546"
Department for Work and Pensions ,European Social Fund,07/11/2014,MA ESF(D) PROGRAMME EXPENDITURE EC PREFUNDED DWP,WWEG EUROPEAN SOCIAL FUND PROGRAMME 2007-2013,EAST MIDLANDS DWP,5000001746,"1,309,959"
Department for Work and Pensions ,Corporate,21/11/2014,NON-TREDDS IS IT SERVICES (AMS),CIO ITPD AM CUSTOMER FACING SYS,ACCENTURE UK LTD,2033397869,"1,309,550"
Department for Work and Pensions ,Corporate,28/11/2014,PRIME FACILITY PRICE,FG CD CAXTON,TELEREAL TRILLIUM,2033411343,"1,294,303"
Department for Work and Pensions ,Corporate,11/11/2014,TELEPHONY CALL CHARGES,CIO ITLR NETWORK,BT GLOBAL SERVICES,2033379992,"1,280,085"
Department for Work and Pensions ,Corporate,28/11/2014,CONTRACTED OUT ACCOUNTING SERVICES,FG SHARED SERVICES COSTS,SHARED SERVICES CONNECTED LTD,2033412500,"1,266,598"
Department for Work and Pensions ,European Social Fund,06/11/2014,MA ESF(D) PROGRAMME EXPENDITURE EC PREFUNDED DWP,WWEG EUROPEAN SOCIAL FUND PROGRAMME 2007-2013,YORKSHIRE & HUMBER DWP,5000001742,"1,234,642"
Department for Work and Pensions ,Corporate,18/11/2014,HOSTING PRINT SERVICES,CIO ITLR HOSTING DEL P,HP ENTERPRISE SERVICES UK LTD,2033390141,"1,170,311"
Department for Work and Pensions ,Corporate,11/11/2014,POSTAGE,FG CD ACC POSTAGE,UK MAIL,2033380271,"1,140,074"
Department for Work and Pensions ,Corporate,07/11/2014,REMOTE STORAGE COSTS VAT RECOV,FG CD CENTRAL CONTRACTS,CAPITA BUSINESS SERVICES LTD,2033375256,"1,138,481"
Department for Work and Pensions ,Corporate,19/11/2014,COURIER COSTS,FG CD CENTRAL CONTRACTS,TNT UK LTD,2033394037,"1,081,806"
Department for Work and Pensions ,Corporate,10/11/2014,VALUATION OFFICE,FG OPS FIN HDD VOA,VALUATION OFFICE AGENCY,2005018,"1,050,000"
Department for Work and Pensions ,Corporate,27/11/2014,NON PRIME PROPERTY COSTS VAT RECOVERABLE,FG CD OPS ESTATES NON-PRIME COSTS,HMRC,2033409437,"1,022,207"
Department for Work and Pensions ,Corporate,03/11/2014,CONTRACTED OUT OFFICE SERVICES,OPS NET CC CAPITA,CAPITA,2033366604,"942,973"
Department for Work and Pensions ,Corporate,18/11/2014,NETWORK SERVICES,CIO ITLR NETWORK,BT GLOBAL SERVICES,2033391140,"905,489"
Department for Work and Pensions ,Corporate,20/11/2014,NON-TREDDS IS IT SERVICES (AMS),CIO ITPD AM FACILITATING SYS,IBM UNITED KINGDOM LTD,2033396172,"856,914"
Department for Work and Pensions ,Corporate,13/11/2014,CREDIT UNION PRODUCTS,CHG CREDIT UNION EXPANSION AND DEVELOPMENT DELP,THE ASSOCIATION OF BRITISH CREDIT UNIONS LTD,2033384291,"822,211"
Department for Work and Pensions ,Corporate,17/11/2014,PRIME VARIABLE CHARGE,FG CD OPS ESTATES PRIME COSTS,TELEREAL TRILLIUM,2033389882,"778,542"
Department for Work and Pensions ,Corporate,24/11/2014,REMOTE STORAGE COSTS VAT RECOV,FG CD CENTRAL CONTRACTS,CAPITA BUSINESS SERVICES LTD,2033402860,"768,742"
Department for Work and Pensions ,Housing Benefits,04/11/2014,STATUTORY SICK PAY (SSP) PAYMENTS INTO NATIONAL INSURANCE FUND (NIF),BPD HBRF,HM REVENUE & CUSTOMS,2005000,"750,000"
Department for Work and Pensions ,Corporate,17/11/2014,DESKTOP SERVICES,CHG ELECTRONIC SIGNING,HP ENTERPRISE SERVICES UK LTD,2033389558,"741,075"
Department for Work and Pensions ,European Social Fund,06/11/2014,MA ESF(D) PROGRAMME EXPENDITURE EC PREFUNDED DWP,WWEG EUROPEAN SOCIAL FUND PROGRAMME 2007-2013,SOUTH WEST DWP,5000001744,"729,695"
Department for Work and Pensions ,Corporate,24/11/2014,RENEWALS OF SOFTWARE SUPPORT AND MAINTENANCE,CIO ITLR SOFTWARE CMG DEL P,SPECIALIST COMPUTER CENTRES PLC,2033401770,"673,848"
Department for Work and Pensions ,Housing Benefits,14/11/2014,HOUSING BENEFIT ADMINISTRATION,HB ENGLAND,BIRMINGHAM CITY COUNCIL,2033385598,"646,826"
Department for Work and Pensions ,Corporate,20/11/2014,CONTRACTED OUT OFFICE SERVICES,CHG MOSAIC RECURRENT,COFELY WORKPLACE LTD,2033396272,"645,845"
Department for Work and Pensions ,Corporate,14/11/2014,DESKTOP SERVICES,CIO ITLR SUSTAINABLE PRINT SERVICE,XEROX UK LTD 3W,2033386445,"636,223"
Department for Work and Pensions ,Corporate,18/11/2014,RENEWALS OF SOFTWARE SUPPORT AND MAINTENANCE,CIO ITLR SOFTWARE P,HP ENTERPRISE SERVICES UK LTD,2033390141,"635,602"
Department for Work and Pensions ,Corporate,18/11/2014,HOSTING FIXED PRICE CONTRACTS,CIO ITLR HOSTING DEL P,HP ENTERPRISE SERVICES UK LTD,2033390141,"618,063"
Department for Work and Pensions ,Corporate,20/11/2014,CONTRACTED OUT OFFICE SERVICES,FG CD OFFICE SERVICES,COFELY WORKPLACE LTD,2033396272,"588,992"
Department for Work and Pensions ,Corporate,18/11/2014,NON-TREDDS IS IT APPS DEV MANDAY,CHG UC PATHFINDER DELIVERY MANAGEMENT,IBM UNITED KINGDOM LTD,2033391550,"555,497"
Department for Work and Pensions ,Corporate,27/11/2014,NON-TREDDS IS IT SERVICES (HOSTING),CIO ITLR HOSTING,HMRC,2033409437,"554,528"
Department for Work and Pensions ,Employment Programmes,21/11/2014,INNOVATION FUND,WWEG EP NATIONAL,TRIODOS NEW HORIZONS LTD,2033398374,"542,572"
Department for Work and Pensions ,Corporate,18/11/2014,PIP PAPER BASED ASSESSMENTS,FG HS PIP LOT 3,ATOS IT SERVICES UK LTD,2033390297,"519,078"
Department for Work and Pensions ,Corporate,28/11/2014,PRIME FACILITY PRICE,FG CD LEEDS QUARRY HOUSE,TELEREAL TRILLIUM,2033411343,"512,657"
Department for Work and Pensions ,Corporate,18/11/2014,PIP PAPER BASED ASSESSMENTS,FG HS PIP LOT 1,ATOS IT SERVICES UK LTD,2033390297,"494,521"
Department for Work and Pensions ,Corporate,17/11/2014,CONTRACTED OUT PRINTING & STATIONERY SOLUTIONS,FG CD MANAGEMENT FEE,XEROX UK LTD 3W,2033388268,"480,172"
Department for Work and Pensions ,Employment Programmes,28/11/2014,INNOVATION FUND,WWEG EP NATIONAL,ENERGISE INNOVATION LTD,2033411106,"477,090"
Department for Work and Pensions ,Corporate,07/11/2014,POSTAGE,FG CD ACC POSTAGE,ROYAL MAIL GROUP PLC,2033375395,"466,921"
Department for Work and Pensions ,Housing Benefits,14/11/2014,HOUSING BENEFIT ADMINISTRATION,HB SCOTLAND,CITY OF GLASGOW,2033385465,"465,515"
Department for Work and Pensions ,Corporate,18/11/2014,PRIME UTILITIES,FG CD DWP GAS & ELECTRICITY PAYMENTS / RECHARGES,CORONA ENERGY RETAIL 4 LTD SCC UTILITIES ONLY,2033391298,"458,337"
Department for Work and Pensions ,Corporate,28/11/2014,AR PRIME RECOVERIES,BALANCE SHEET,TELEREAL TRILLIUM,2033411342,"439,954"
Department for Work and Pensions ,Corporate,11/11/2014,NON-TREDDS IS IT SERVICES (AMS),CIO GG SERVICE DELIVERY,ATOS ORIGIN IT SERVICES UK LTD,2033379277,"430,808"
Department for Work and Pensions ,European Social Fund,06/11/2014,MA ESF(D) PROGRAMME EXPENDITURE EC PREFUNDED DWP,WWEG EUROPEAN SOCIAL FUND PROGRAMME 2007-2013,NORTH EAST DWP,5000001745,"425,702"
Department for Work and Pensions ,Corporate,24/11/2014,NON-TREDDS IS IT APPS DEV MANDAY,CHG PIP IT PHASE 3,IBM UNITED KINGDOM LTD,2033402869,"399,429"
Department for Work and Pensions ,Housing Benefits,14/11/2014,HOUSING BENEFIT ADMINISTRATION,HB ENGLAND,LIVERPOOL CITY COUNCIL,2033385711,"391,915"
Department for Work and Pensions ,Corporate,10/11/2014,RECRUITMENT & ASSESSMENT SERVICES AGENCY,HR DWP GENERAL FAST STREAM,HM REVENUE & CUSTOMS,2005011,"391,734"
Department for Work and Pensions ,Employment Programmes,12/11/2014,SERVICE FEE,"WWEG EP SUPPORT LONDON CENTRL, LAMBETH, SOUTHWRK AND WANDSWRTH",A4E LTD,2033381954,"389,163"
Department for Work and Pensions ,Corporate,20/11/2014,SIAM STAT MANDAYS,CIO ITLR SIAM,HP ENTERPRISE SERVICES UK LTD,2033395948,"388,977"
Department for Work and Pensions ,Housing Benefits,14/11/2014,HOUSING BENEFIT ADMINISTRATION,HB ENGLAND,MANCHESTER CITY COUNCIL,2033385571,"380,722"
Department for Work and Pensions ,Employment Programmes,10/11/2014,SERVICE FEE,WWEP EP FG CEP SJ BLACK COUNTRY AND MERCIA,LEARNDIRECT LTD,2033376326,"370,000"
Department for Work and Pensions ,Corporate,11/11/2014,MANAGED SERVICE UNIVERSAL JOBMATCH,OPS NET DIG UNIVERSAL JOBMATCH CONTRACT,MONSTER GOVERNMENT SOLUTIONS,2033380243,"365,558"
Department for Work and Pensions ,Housing Benefits,14/11/2014,HOUSING BENEFIT ADMINISTRATION,HB ENGLAND,LEEDS CITY COUNCIL,2033385560,"364,588"
Department for Work and Pensions ,Corporate,28/11/2014,PRIME BUSINESS RATES,FG CD CAXTON,TELEREAL TRILLIUM,2033411342,"347,003"
Department for Work and Pensions ,Employment Programmes,28/11/2014,SERVICE FEE,WWEG EP WORK CHOICE S WEST WALES S WALES VALLEYS,SHAW TRUST,2033412176,"344,566"
Department for Work and Pensions ,Corporate,24/11/2014,CONSULTANTS VAT RECOVERABLE,F&C CD STRATEGY AND BUSINESS MANAGEMENT,PRICE WATERHOUSE COOPER LLP,2033403002,"343,749"
Department for Work and Pensions ,Corporate,21/11/2014,TREDDS APPS DEV MANDAYS,CHG PIP IT PHASE 3,HP ENTERPRISE SERVICES UK LTD,2033397097,"341,738"
Department for Work and Pensions ,Corporate,28/11/2014,PRIME UTILITIES,FG CD OPS ESTATES PRIME COSTS,TELEREAL TRILLIUM,2033411341,"337,758"
Department for Work and Pensions ,Corporate,28/11/2014,PRIME FACILITY PRICE,FG CD PEEL PARK,TELEREAL TRILLIUM,2033411343,"332,887"
Department for Work and Pensions ,Corporate,11/11/2014,NETWORK SERVICES,CHG UC PATHFINDER DELIVERY MANAGEMENT,BT GLOBAL SERVICES,2033379992,"327,075"
Department for Work and Pensions ,Child Maintenance and Enforcement Commission,18/11/2014,TREDDS APPS DEV MANDAYS,FS PHASE 2 - HPES COSTS,HP ENTERPRISE SERVICES UK LTD,1000222955,"325,881"
Department for Work and Pensions ,Corporate,18/11/2014,NON-TREDDS IS IT APPS DEV MANDAY,CHG UC PATHFINDER DELIVERY MANAGEMENT,CAPGEMINI UK PLC,2033390204,"320,432"
Department for Work and Pensions ,Corporate,28/11/2014,PRIME FACILITY PRICE,FG CD MANCHESTER HEYWOOD STORES,TELEREAL TRILLIUM,2033411343,"318,418"
Department for Work and Pensions ,Corporate,17/11/2014,NON-TREDDS IS IT SERVICES (AMS),CIO GG SERVICE DELIVERY,ATOS ORIGIN IT SERVICES UK LTD,2033388308,"315,232"
Department for Work and Pensions ,Child Maintenance and Enforcement Commission,05/11/2014,CONTRACTED OUT OFFICE SERVICES,OPTIONS,G4S CUSTOMER SUPPORT SERVICES,1000221702,"303,918"
Department for Work and Pensions ,Corporate,28/11/2014,PRIME BUSINESS RATES,FG CD CMG ESTATES PRIME COSTS,TELEREAL TRILLIUM,2033411342,"301,730"
Department for Work and Pensions ,Corporate,18/11/2014,TREDDS APPS DEV MANDAYS,CHG UC PATHFINDER DELIVERY MANAGEMENT,HP ENTERPRISE SERVICES UK LTD,2033390141,"301,301"
Department for Work and Pensions ,Corporate,12/11/2014,PACS INTER-VOTE CREDITOR,BALANCE SHEET,DWP MANUAL PAYMENTS,2005025,"294,594"
Department for Work and Pensions ,Housing Benefits,14/11/2014,HOUSING BENEFIT ADMINISTRATION,HB ENGLAND,LONDON BOROUGH OF TOWER HAMLETS,2033385528,"294,256"
Department for Work and Pensions ,Corporate,18/11/2014,SIAM STAT MANDAYS,CIO ITLR SIAM,HP ENTERPRISE SERVICES UK LTD,2033390141,"292,351"
Department for Work and Pensions ,Corporate,11/11/2014,VAT CLEARING,BALANCE SHEET,CMG,2005022,"290,656"
Department for Work and Pensions ,Corporate,27/11/2014,CONTRACTORS & STAFF SUBSTITUTIONS,CHG UC PATHFINDER DELIVERY MANAGEMENT,DELOITTE LLP,1006833,"287,818"
Department for Work and Pensions ,Employment Programmes,28/11/2014,SERVICE FEE,WWEG EP WORK CHOICE DERBYSHIRE SOUTH YORKSHIRE,SHAW TRUST,2033412176,"282,314"
Department for Work and Pensions ,Housing Benefits,14/11/2014,HOUSING BENEFIT ADMINISTRATION,HB ENGLAND,LONDON BOROUGH OF LAMBETH,2033385671,"281,385"
Department for Work and Pensions ,Corporate,13/11/2014,PRIME BILLABLE EXTRAS PRIME CONTRACT MANAGEMENT (PCM),CHG DIGITAL JOBCENTRES,TELEREAL TRILLIUM,2033383757,"281,339"
Department for Work and Pensions ,Employment Programmes,28/11/2014,SERVICE FEE,WWEG EP WORK CHOICE SURREY AND SUSSEX KENT,WORKING LINKS,2033413424,"280,358"
Department for Work and Pensions ,Housing Benefits,14/11/2014,HOUSING BENEFIT ADMINISTRATION,HB ENGLAND,LONDON BOROUGH OF LEWISHAM,2033385743,"278,521"
Department for Work and Pensions ,Employment Programmes,28/11/2014,SERVICE FEE,WWEG EP WORK CHOICE DEVON AND CORNWALL,THE PLUSS ORGANISATION,2033411450,"275,907"
Department for Work and Pensions ,Corporate,13/11/2014,RENEWALS OF SOFTWARE SUPPORT AND MAINTENANCE,CIO ITLR SOFTWARE P,SPECIALIST COMPUTER CENTRES PLC,2033382911,"272,061"
Department for Work and Pensions ,Corporate,06/11/2014,NON-TREDDS IS IT SERVICES (AMS),OPS PEN PS TUO ISIT,ATOS ORIGIN IT SERVICES UK LTD,2033372237,"271,818"
Department for Work and Pensions ,Housing Benefits,14/11/2014,HOUSING BENEFIT ADMINISTRATION,HB ENGLAND,BRADFORD METROPOLITAN BOROUGH COUNCIL,2033385676,"271,434"
Department for Work and Pensions ,Employment Programmes,28/11/2014,SERVICE FEE,WWEG EP WORK CHOICE W LON C LON BARNET ENFIELD HARINGEY,SEETEC BUSINESS TECHNOLOGY CENTRE LTD,2033412848,"270,139"
Department for Work and Pensions ,Housing Benefits,14/11/2014,HOUSING BENEFIT ADMINISTRATION,HB ENGLAND,HACKNEY LBC,2033385599,"269,625"
Department for Work and Pensions ,Housing Benefits,14/11/2014,HOUSING BENEFIT ADMINISTRATION,HB ENGLAND,DURHAM COUNCIL,2033385447,"267,614"
Department for Work and Pensions ,Corporate,21/11/2014,PUBLICITY ADVERTISING MEDIA,CHG ERSP COMMS,M4C,2033400947,"264,558"
Department for Work and Pensions ,Housing Benefits,14/11/2014,HOUSING BENEFIT ADMINISTRATION,HB ENGLAND,LONDON BOROUGH OF SOUTHWARK,2033385703,"255,725"
Department for Work and Pensions ,Housing Benefits,14/11/2014,HOUSING BENEFIT ADMINISTRATION,HB ENGLAND,SHEFFIELD CITY COUNCIL,2033385626,"252,120"
Department for Work and Pensions ,Corporate,14/11/2014,MEDICAL SERVICES FIXED COSTS,FG HS MEDICAL SERVICES CONTRACT DEL P,ATOS HEALTHCARE,2033385998,"243,531"
Department for Work and Pensions ,Corporate,19/11/2014,BBC TV LIC O/75'S,STR BBC TV LIC O 75s DEL P,BBC PUBLIC SERVICE BROADCASTING,1006815,"238,391"
Department for Work and Pensions ,Corporate,04/11/2014,CONTRACTORS & STAFF SUBSTITUTIONS,CHG UC DESIGN & BUILD PROGRAMME MANAGER,CAPITA BUSINESS SERVICES LTD,2033368233,"237,908"
Department for Work and Pensions ,Housing Benefits,14/11/2014,HOUSING BENEFIT ADMINISTRATION,HB ENGLAND,BRISTOL CITY COUNCIL,2033385605,"235,177"
Department for Work and Pensions ,Corporate,06/11/2014,HOSTING SERVICES,CIO ITLR HOSTING DEL P,HP ENTERPRISE SERVICES UK LTD,2033372994,"234,405"
Department for Work and Pensions ,European Social Fund,14/11/2014,MA ESF(D) PROGRAMME EXPENDITURE EC PREFUNDED OGDS,WWEG EUROPEAN SOCIAL FUND PROGRAMME 2007-2013,GREATER LONDON AUTHORITY,5000001750,"233,752"
Department for Work and Pensions ,Housing Benefits,14/11/2014,HOUSING BENEFIT ADMINISTRATION,HB ENGLAND,CORNWALL COUNCIL,2033385448,"233,440"
Department for Work and Pensions ,Housing Benefits,14/11/2014,HOUSING BENEFIT ADMINISTRATION,HB ENGLAND,LONDON BOROUGH OF BRENT,2033385594,"231,991"
Department for Work and Pensions ,Corporate,18/11/2014,TREDDS IS IT CONSULTANCY (HOSTING) NON ADVICE,CIO INFRASTRUCTURE & SERVICE REMEDIATION,HP ENTERPRISE SERVICES UK LTD,2033390141,"229,840"
Department for Work and Pensions ,Employment Programmes,28/11/2014,SERVICE FEE,WWEG EP WORK CHOICE BEDFORDSHIRE AND HERTFORDSHIRE ESSEX,SHAW TRUST,2033412176,"229,330"
Department for Work and Pensions ,Corporate,21/11/2014,RENTAL UNDER OPERATING LEASES - VEHICLES RECURRENT EXPENDITURE,F&C CD COMMERCIAL MANAGEMENT OFFICE SERVICES,ZURICH MUNICIPAL,2033397540,"228,647"
Department for Work and Pensions ,Corporate,03/11/2014,SOFTWARE LICENCES GREATER THAN ONE YEAR TERM,CHG UC PATHFINDER DELIVERY MANAGEMENT,SPECIALIST COMPUTER CENTRES PLC,2033367280,"228,291"
Department for Work and Pensions ,Employment Programmes,28/11/2014,SERVICE FEE,WWEG EP WORK CHOICE THE MARCHES COVENTRY AND WARKS,SHAW TRUST,2033412176,"224,922"
Department for Work and Pensions ,Employment Programmes,17/11/2014,RESIDENTIAL TRAINING COSTS,WWEG EP DELIVERY WELFARE TO WORK PRODUCT SUPPORT,QUEEN ELIZABETHS FOUNDATION TRAINING COLLEGE,2033387885,"222,119"
Department for Work and Pensions ,Corporate,18/11/2014,TREDDS APPS DEV MANDAYS,CHG PIP IT PHASE 4,HP ENTERPRISE SERVICES UK LTD,2033390141,"221,100"
Department for Work and Pensions ,Housing Benefits,14/11/2014,HOUSING BENEFIT ADMINISTRATION,HB ENGLAND,CROYDON PEO%,2033385583,"215,018"
Department for Work and Pensions ,Employment Programmes,28/11/2014,SERVICE FEE,WWEG EP WORK CHOICE WEST YORKSHIRE,THE PLUSS ORGANISATION,2033411450,"214,548"
Department for Work and Pensions ,Housing Benefits,14/11/2014,HOUSING BENEFIT ADMINISTRATION,HB SCOTLAND,EDINBURGH DISTRICT COUNCIL,2033385466,"214,518"
Department for Work and Pensions ,Corporate,25/11/2014,NON-TREDDS IS IT APPS DEV MANDAY,CHG SCANNING & DIGITAL STORAGE,ACCENTURE UK LTD,2033403633,"213,137"
Department for Work and Pensions ,Housing Benefits,14/11/2014,HOUSING BENEFIT ADMINISTRATION,HB ENGLAND,LONDON BOROUGH OF NEWHAM,2033385592,"211,186"
Department for Work and Pensions ,Housing Benefits,14/11/2014,HOUSING BENEFIT ADMINISTRATION,HB ENGLAND,LONDON BOROUGH OF HARINGEY,2033385593,"209,933"
Department for Work and Pensions ,Housing Benefits,14/11/2014,HOUSING BENEFIT ADMINISTRATION,HB ENGLAND,LONDON BOROUGH OF ENFIELD,2033385694,"208,427"
Department for Work and Pensions ,Employment Programmes,19/11/2014,RESIDENTIAL TRAINING COSTS,WWEG EP DELIVERY WELFARE TO WORK PRODUCT SUPPORT,FINCHALE TRAINING COLLEGE,2033395039,"208,392"
Department for Work and Pensions ,Employment Programmes,28/11/2014,SERVICE FEE,WWEG EP WORK CHOICE HIGH ISLDS AND CLYDE COAST AND GRAMP,MOMENTUM SCOTLAND,2033412173,"206,780"
Department for Work and Pensions ,Corporate,19/11/2014,APPS DEV INDEX ARR,CHG FRAUD & ERROR STRATEGY,HM REVENUE & CUSTOMS,2005039,"203,309"
Department for Work and Pensions ,Employment Programmes,28/11/2014,SERVICE FEE,WWEG EP WORK CHOICE G MANCHESTER CENTRAL; G MANCHESTER E & W,SHAW TRUST,2033412176,"203,168"
Department for Work and Pensions ,Housing Benefits,14/11/2014,HOUSING BENEFIT ADMINISTRATION,HB ENGLAND,LONDON BOROUGH OF EALING,2033385596,"202,916"
Department for Work and Pensions ,Employment Programmes,28/11/2014,SERVICE FEE,WWEG EP WORK CHOICE CAMBRIDGESHIRE AND SUFFOLK NORFOLK,SHAW TRUST,2033412176,"201,776"
Department for Work and Pensions ,Housing Benefits,14/11/2014,HOUSING BENEFIT ADMINISTRATION,HB ENGLAND,NOTTINGHAM CITY COUNCIL,2033385737,"201,659"
Department for Work and Pensions ,Employment Programmes,28/11/2014,SERVICE FEE,WWEG EP WORK CHOICE NORTH AND MID WALES SOUTH EAST WALES,WORKING LINKS,2033413424,"200,497"
Department for Work and Pensions ,Housing Benefits,14/11/2014,HOUSING BENEFIT ADMINISTRATION,HB ENGLAND,LONDON BOROUGH OF ISLINGTON,2033385415,"199,556"
Department for Work and Pensions ,Employment Programmes,10/11/2014,SERVICE FEE,WWEP EP FG CEP SJ SURREY AND SUSSEX,SKILLS TRAINING UK LIMITED,2033377140,"198,181"
Department for Work and Pensions ,Corporate,26/11/2014,CONTRACTED OUT HR SERVICES,HR CHANGE REQUESTS,SHARED SERVICES CONNECTED LTD,2033406133,"198,000"
Department for Work and Pensions ,Housing Benefits,14/11/2014,HOUSING BENEFIT ADMINISTRATION,HB ENGLAND,LONDON BOROUGH OF GREENWICH,2033385576,"194,927"
Department for Work and Pensions ,Corporate,06/11/2014,RENEWALS OF SOFTWARE SUPPORT AND MAINTENANCE,CIO ITLR SOFTWARE P,SPECIALIST COMPUTER CENTRES PLC,2033373879,"194,003"
Department for Work and Pensions ,Employment Programmes,28/11/2014,SERVICE FEE,WWEG EP WORK CHOICE GLASGOW LANARKS AND E DUNBART,SHAW TRUST,2033412176,"192,831"
Department for Work and Pensions ,Corporate,07/11/2014,POSTAGE,F&C IGS WHDS,ROYAL MAIL GROUP PLC,2033375395,"191,173"
Department for Work and Pensions ,Corporate,18/11/2014,TREDDS APPS DEV FIXED PRICE CONTRACTS,CHG IT TRANSFORMATION PROG,HP ENTERPRISE SERVICES UK LTD,2033390141,"190,158"
Department for Work and Pensions ,Corporate,18/11/2014,DESKTOP SERVICES,CIO ITLR DESKTOP,HP ENTERPRISE SERVICES UK LTD,2033390141,"190,126"
Department for Work and Pensions ,Employment Programmes,28/11/2014,SERVICE FEE,WWEG EP WORK CHOICE NOTTINGHAMSHIRE LINCOLNSHIRE AND RUTLAND,SHAW TRUST,2033412176,"186,686"
Department for Work and Pensions ,Employment Programmes,28/11/2014,SERVICE FEE,WWEG EP WORK CHOICE HAMPSHIRE AND ISLE OF WIGHT,CDG WISE ABILITY LTD,2033411874,"186,270"
Department for Work and Pensions ,Housing Benefits,14/11/2014,HOUSING BENEFIT ADMINISTRATION,HB ENGLAND,LONDON BOROUGH OF BARNET,2033385695,"185,442"
Department for Work and Pensions ,Corporate,04/11/2014,CONSULTANTS VAT RECOVERABLE,CHG PIP PROG MANAGEMENT,CAPGEMINI UK PLC,2033368297,"185,314"
Department for Work and Pensions ,Housing Benefits,14/11/2014,HOUSING BENEFIT ADMINISTRATION,HB ENGLAND,LONDON BOROUGH OF WANDSWORTH,2033385548,"184,118"
Department for Work and Pensions ,Corporate,18/11/2014,TREDDS APPS DEV MANDAYS,CHG PIP IT PHASE 3,HP ENTERPRISE SERVICES UK LTD,2033390141,"183,831"
Department for Work and Pensions ,Housing Benefits,14/11/2014,HOUSING BENEFIT ADMINISTRATION,HB ENGLAND,WAKEFIELD  DISTRICT COUNCIL,2033385537,"180,697"
Department for Work and Pensions ,Housing Benefits,14/11/2014,HOUSING BENEFIT ADMINISTRATION,HB ENGLAND,SANDWELL BOROUGH COUNCIL,2033385655,"180,337"
Department for Work and Pensions ,Corporate,07/11/2014,RENEWALS OF SOFTWARE SUPPORT AND MAINTENANCE,CIO ITLR SOFTWARE P,SPECIALIST COMPUTER CENTRES PLC,2033375364,"180,191"
Department for Work and Pensions ,Housing Benefits,14/11/2014,HOUSING BENEFIT ADMINISTRATION,HB ENGLAND,LEICESTER CITY COUNCIL,2033385630,"179,804"
Department for Work and Pensions ,Housing Benefits,14/11/2014,HOUSING BENEFIT ADMINISTRATION,HB ENGLAND,SUNDERLAND CITY COUNCIL,2033385656,"178,958"
Department for Work and Pensions ,Housing Benefits,14/11/2014,HOUSING BENEFIT ADMINISTRATION,HB ENGLAND,KIRKLEES METROPOLITAN BOROUGH COUNCIL,2033385674,"176,854"
Department for Work and Pensions ,Corporate,13/11/2014,NETWORK SERVICES,CIO ITLR NETWORK,BT GLOBAL SERVICES,2033384105,"176,598"
Department for Work and Pensions ,Corporate,12/11/2014,STAFF TRAINING VAT RECOVERABLE,CIO SECURITY IMPROVEMENT PROGRAMME,CAPITA CIVIL SERVICE LEARNING,2033381453,"176,136"
Department for Work and Pensions ,Employment Programmes,28/11/2014,SERVICE FEE,WWEG EP WORK CHOICE BIRMINGHAM SOLIHULL BLACK COUNTRY,ADVANCE HOUSING & SUPPORT LTD,2033413422,"176,036"
Department for Work and Pensions ,Corporate,26/11/2014,ACCOUNTS PAYABLE UNAPPROVED INVOICES,OPS WDC WSD NE WEST YORKSHIRE DISTRICT OFFICE,WYEA LTD,2033406021,"175,600"
Department for Work and Pensions ,European Social Fund,07/11/2014,MA ESF(D) PROGRAMME EXPENDITURE EC PREFUNDED THIRD PARTIES,WWEG EUROPEAN SOCIAL FUND PROGRAMME 2007-2013,CORNWALL COLLEGE,5000001747,"174,867"
Department for Work and Pensions ,Housing Benefits,14/11/2014,HOUSING BENEFIT ADMINISTRATION,HB ENGLAND,CITY OF WESTMINSTER,2033385718,"174,509"
Department for Work and Pensions ,Housing Benefits,14/11/2014,HOUSING BENEFIT ADMINISTRATION,HB ENGLAND,KINGSTON UPON HULL CITY COUNCIL,2033385377,"174,345"
Department for Work and Pensions ,Employment Programmes,28/11/2014,SERVICE FEE,WWEG EP WORK CHOICE S TYNE AND WEAR VALLEY NORTHUMBRIA,SHAW TRUST,2033412176,"173,621"
Department for Work and Pensions ,Housing Benefits,14/11/2014,HOUSING BENEFIT ADMINISTRATION,HB ENGLAND,COVENTRY CITY COUNCIL,2033385620,"173,037"
Department for Work and Pensions ,Employment Programmes,28/11/2014,SERVICE FEE,WWEG EP WORK CHOICE N E YORKS AND THE HUMBER TEES VALLEY,SHAW TRUST,2033412176,"172,906"
Department for Work and Pensions ,Housing Benefits,14/11/2014,HOUSING BENEFIT ADMINISTRATION,HB ENGLAND,LONDON BOROUGH OF CAMDEN,2033385628,"171,970"
Department for Work and Pensions ,Employment Programmes,28/11/2014,SERVICE FEE,WWEG EP WORK CHOICE MERSEYSIDE CHESH HALTON & WARRINGTON,SHAW TRUST,2033412176,"171,913"
Department for Work and Pensions ,Housing Benefits,14/11/2014,HOUSING BENEFIT ADMINISTRATION,HB ENGLAND,WIRRAL BOROUGH COUNCIL,2033385709,"170,084"
Department for Work and Pensions ,Housing Benefits,14/11/2014,HOUSING BENEFIT ADMINISTRATION,HB SCOTLAND,NORTH LANARKSHIRE COUNCIL,2033385540,"169,245"
Department for Work and Pensions ,Employment Programmes,26/11/2014,INNOVATION FUND,WWEG EP NATIONAL,ADVANCED PERSONNEL MANAGEMENT,2033406390,"168,672"
Department for Work and Pensions ,Employment Programmes,19/11/2014,RESIDENTIAL TRAINING COSTS,WWEG EP DELIVERY WELFARE TO WORK PRODUCT SUPPORT,DONCASTER DEAF TRUST,2033394689,"168,475"
Department for Work and Pensions ,Housing Benefits,14/11/2014,HOUSING BENEFIT ADMINISTRATION,HB ENGLAND,NEWCASTLE CITY COUNCIL,2033385565,"168,093"
Department for Work and Pensions ,Employment Programmes,28/11/2014,SERVICE FEE,WWEG EP WORK CHOICE ED LOTH BORDS AYR DUM GALL INVER,SHAW TRUST,2033412176,"167,858"
Department for Work and Pensions ,Housing Benefits,14/11/2014,HOUSING BENEFIT ADMINISTRATION,HB ENGLAND,SALFORD CITY COUNCIL,2033385438,"166,363"
Department for Work and Pensions ,Employment Programmes,28/11/2014,SERVICE FEE,WWEG EP WORK CHOICE W OF ENGLAND GLOS WILTS AND SWINDON,WORKING LINKS,2033413424,"166,022"
Department for Work and Pensions ,Housing Benefits,14/11/2014,HOUSING BENEFIT ADMINISTRATION,HB ENGLAND,BRIGHTON & HOVE COUNCIL,2033385624,"164,318"
Department for Work and Pensions ,Housing Benefits,14/11/2014,HOUSING BENEFIT ADMINISTRATION,HB ENGLAND,LONDON BOROUGH OF WALTHAM FOREST,2033385648,"164,313"
Department for Work and Pensions ,Corporate,21/11/2014,CIVIL SERVICE OCCUPATIONAL HEALTH SERVICE,HR OHS,ATOS ORIGIN IT SERVICES UK LTD,2033398934,"162,778"
Department for Work and Pensions ,Employment Programmes,10/11/2014,SERVICE FEE,WWEP EP FG CEP SJ WEST YORKSHIRE,G4S REGIONAL MANAGEMENT UK & I LTD,2033377300,"162,516"
Department for Work and Pensions ,Corporate,20/11/2014,SOC SEC RESEARCH BUDGET,PSG IGS STAT SERVICES,NATIONAL CENTRE FOR SOCIAL RESEARCH,2033396000,"162,257"
Department for Work and Pensions ,Corporate,21/11/2014,SOC SEC RESEARCH BUDGET,PSG IGS STAT SERVICES,NATIONAL CENTRE FOR SOCIAL RESEARCH,2033398069,"162,257"
Department for Work and Pensions ,Housing Benefits,14/11/2014,HOUSING BENEFIT ADMINISTRATION,HB ENGLAND,WALSALL BOROUGH COUNCIL,2033385654,"162,018"
Department for Work and Pensions ,Housing Benefits,14/11/2014,HOUSING BENEFIT ADMINISTRATION,HB SCOTLAND,FIFE COUNCIL,2033385712,"161,304"
Department for Work and Pensions ,Employment Programmes,28/11/2014,SERVICE FEE,WWEG EP WORK CHOICE S LON LAMBETH SOUTHWARK WANDSWORTH,INGEUS UK LTD,2033413420,"160,463"
Department for Work and Pensions ,Corporate,10/11/2014,NEST RESOURCE GRANT,CHG ERSP DEL P,NEST CORPORATION,2005019,"160,048"
Department for Work and Pensions ,Corporate,20/11/2014,MEDICAL SERVICES FIXED COSTS,FG HS MEDICAL SERVICES CONTRACT DEL P,ATOS HEALTHCARE,2033396285,"158,147"
Department for Work and Pensions ,Corporate,20/11/2014,CONTRACTED OUT OFFICE SERVICES,FG OPS FIN DEBT OPS CENTRAL,EXPERIAN LTD,2033395946,"156,750"
Department for Work and Pensions ,Housing Benefits,14/11/2014,HOUSING BENEFIT ADMINISTRATION,HB WALES,CARDIFF CITY COUNCIL,2033385700,"156,677"
Department for Work and Pensions ,Housing Benefits,14/11/2014,HOUSING BENEFIT ADMINISTRATION,HB ENGLAND,DONCASTER METROPOLITAN BOROUGH COUNCIL,2033385534,"156,450"
Department for Work and Pensions ,Corporate,03/11/2014,CONTRACTED OUT OFFICE SERVICES,OPS NET CC CAPITA,CAPITA BUSINESS SERVICES LTD,2033367917,"155,284"
Department for Work and Pensions ,Corporate,25/11/2014,STAFFING EXPENDITURE WITH OGD (NON SECONDMENT),CHG PIP CLAIMANT SERVICE DESIGN,HM REVENUE & CUSTOMS,2005052,"154,000"
Department for Work and Pensions ,Housing Benefits,14/11/2014,HOUSING BENEFIT ADMINISTRATION,HB ENGLAND,WILTSHIRE COUNCIL,2033385439,"151,051"
Department for Work and Pensions ,Housing Benefits,14/11/2014,HOUSING BENEFIT ADMINISTRATION,HB ENGLAND,BOLTON METROPOLITAN BOROUGH COUNCIL,2033385615,"150,470"
Department for Work and Pensions ,Housing Benefits,14/11/2014,HOUSING BENEFIT ADMINISTRATION,HB ENGLAND,WOLVERHAMPTON CITY COUNCIL,2033385582,"149,472"
Department for Work and Pensions ,Corporate,20/11/2014,CONTRACTED OUT OFFICE SERVICES,FG OPS FIN DM CONTRACTS,COFELY WORKPLACE LTD,2033396272,"147,168"
Department for Work and Pensions ,Corporate,17/11/2014,NON-TREDDS IS IT SERVICES (HOSTING),CIO GG SERVICE DELIVERY,ATOS ORIGIN IT SERVICES UK LTD,2033388308,"146,832"
Department for Work and Pensions ,Housing Benefits,14/11/2014,HOUSING BENEFIT ADMINISTRATION,HB ENGLAND,PLYMOUTH CITY COUNCIL,2033385413,"146,294"
Department for Work and Pensions ,Housing Benefits,14/11/2014,HOUSING BENEFIT ADMINISTRATION,HB ENGLAND,WIGAN BOROUGH COUNCIL,2033385617,"143,778"
Department for Work and Pensions ,Corporate,21/11/2014,PRIME UNAVOIDABLE COSTS (UAC),CHG ESTATES RATIONALISATION FORMER JCP OPS,TELEREAL TRILLIUM,2033399750,"140,298"
Department for Work and Pensions ,Employment Programmes,28/11/2014,SERVICE FEE,WWEG EP WORK CHOICE DORSET AND SOMERSET,SHAW TRUST,2033412176,"140,247"
Department for Work and Pensions ,Corporate,20/11/2014,VOCA Charges,FG FIN CONT COBAP BANKING,VOCALINK,2033395845,"138,925"
Department for Work and Pensions ,Corporate,27/11/2014,PROFESSIONAL ADVICE & OPINION VAT RECOVERABLE,STR LEGAL SERVICES,PINSENT MASONS,1006834,"138,874"
Department for Work and Pensions ,Corporate,05/11/2014,STAFF TRAINING VAT RECOVERABLE,HR CONTRACTUAL L AND D,CAPITA CIVIL SERVICE LEARNING,2033370792,"138,122"
Department for Work and Pensions ,Corporate,21/11/2014,TREDDS IS IT CONSULTANCY (HOSTING) NON ADVICE,CIO INFRASTRUCTURE & SERVICE REMEDIATION,HP ENTERPRISE SERVICES UK LTD,2033397097,"137,244"
Department for Work and Pensions ,Corporate,11/11/2014,FSF - SUPPORT CONTRACT MODULES FOR JSA JOBSEEKERS,OPS WDC WSD SC WEST OF SCOTLAND DO,LEARNDIRECT LTD,2033378174,"137,062"
Department for Work and Pensions ,Corporate,25/11/2014,STAFFING EXPENDITURE WITH OGD (NON SECONDMENT),CHG PIP CLAIMANT SERVICE DESIGN,HM REVENUE & CUSTOMS,2005051,"137,000"
Department for Work and Pensions ,Housing Benefits,14/11/2014,HOUSING BENEFIT ADMINISTRATION,HB ENGLAND,LONDON BOROUGH OF HILLINGDON,2033385589,"136,791"
Department for Work and Pensions ,Housing Benefits,14/11/2014,HOUSING BENEFIT ADMINISTRATION,HB ENGLAND,LONDON BOROUGH OF HOUNSLOW,2033385689,"136,096"
Department for Work and Pensions ,Housing Benefits,14/11/2014,HOUSING BENEFIT ADMINISTRATION,HB ENGLAND,LONDON BOROUGH OF HAMMERSMITH & FULHAM,2033385612,"134,665"
Department for Work and Pensions ,Employment Programmes,28/11/2014,SERVICE FEE,WWEG EP WORK CHOICE BERKSHIRE BUCKS AND OXFORDSHIRE,SHAW TRUST,2033412176,"134,267"
Department for Work and Pensions ,Housing Benefits,14/11/2014,HOUSING BENEFIT ADMINISTRATION,HB ENGLAND,NORTHUMBERLAND COUNCIL,2033385446,"132,994"
Department for Work and Pensions ,Housing Benefits,14/11/2014,HOUSING BENEFIT ADMINISTRATION,HB SCOTLAND,SOUTH LANARKSHIRE COUNCIL,2033385715,"132,928"
Department for Work and Pensions ,Housing Benefits,14/11/2014,HOUSING BENEFIT ADMINISTRATION,HB ENGLAND,SOUTHAMPTON CITY COUNCIL,2033385707,"132,570"
Department for Work and Pensions ,Employment Programmes,28/11/2014,SERVICE FEE,WWEG EP WORK CHOICE FORTH VALLEY FIFE AND TAYSIDE,SHAW TRUST,2033412176,"132,424"
Department for Work and Pensions ,Corporate,18/11/2014,TREDDS APPS DEV MANDAYS,F&C IGS INFO SERVICES,HP ENTERPRISE SERVICES UK LTD,2033390141,"132,382"
Department for Work and Pensions ,Housing Benefits,14/11/2014,HOUSING BENEFIT ADMINISTRATION,HB ENGLAND,STOKE ON TRENT CITY COUNCIL,2033385619,"132,241"
Department for Work and Pensions ,Housing Benefits,14/11/2014,HOUSING BENEFIT ADMINISTRATION,HB ENGLAND,SEFTON METROPOLITAN BOROUGH COUNCIL,2033385701,"132,193"
Department for Work and Pensions ,Employment Programmes,28/11/2014,SERVICE FEE,WWEG EP CHOICE WALT FOR RBRID HAV BARK DAG C E LON,WORKING LINKS,2033413424,"130,544"
Department for Work and Pensions ,Employment Programmes,17/11/2014,RESIDENTIAL TRAINING COSTS,WWEG EP DELIVERY WELFARE TO WORK PRODUCT SUPPORT,ST LOYES COLLEGE FOUNDATION,2033387863,"130,360"
Department for Work and Pensions ,Corporate,19/11/2014,PUBLICITY ADVERTISING MEDIA,CHG ERSP COMMS,M4C,2033394971,"130,071"
Department for Work and Pensions ,Corporate,28/11/2014,PRIME FACILITY PRICE,FG CD BIRCHWOOD,TELEREAL TRILLIUM,2033411343,"129,827"
Department for Work and Pensions ,Corporate,21/11/2014,ACCOUNTS PAYABLE UNAPPROVED INVOICES,OPS WDC WSD SE DEVON CORNWALL & SOMERSET DISTRICT,CAREERS SOUTH WEST LTD,2033400751,"128,720"
Department for Work and Pensions ,Employment Programmes,12/11/2014,SERVICE FEE,"WWEG EP SUPPORT ESSEX, BEDFORSHIRE AND HERTFORDSHIRE",SEETEC BUSINESS TECHNOLOGY CENTRE LTD,2033380376,"128,454"
Department for Work and Pensions ,Housing Benefits,14/11/2014,HOUSING BENEFIT ADMINISTRATION,HB ENGLAND,MILTON KEYNES BOROUGH COUNCIL,2033385505,"128,135"
Department for Work and Pensions ,Corporate,25/11/2014,FSF - REMOVING OTHER BARRIERS TO WORK  - JSA JOBSEEKERS,OPS WDC WSD SE DEVON CORNWALL & SOMERSET DISTRICT,CAREERS SOUTH WEST LTD,2033403881,"127,619"
Department for Work and Pensions ,Housing Benefits,14/11/2014,HOUSING BENEFIT ADMINISTRATION,HB ENGLAND,TAMESIDE BOROUGH COUNCIL,2033385663,"127,192"
Department for Work and Pensions ,Corporate,14/11/2014,NON ICONS NETWORK SERVICES,CIO ITLR NETWORK,TELEFONICA O2,2033387757,"126,839"
Department for Work and Pensions ,Employment Programmes,12/11/2014,SERVICE FEE,WWEG EP SUPPORT WEST OF ENGLAND,PINNACLE PEOPLE,2033382057,"126,597"
Department for Work and Pensions ,Housing Benefits,14/11/2014,HOUSING BENEFIT ADMINISTRATION,HB ENGLAND,DUDLEY METROPOLITAN BOROUGH COUNCIL,2033385738,"126,391"
Department for Work and Pensions ,Housing Benefits,14/11/2014,HOUSING BENEFIT ADMINISTRATION,HB ENGLAND,PORTSMOUTH CITY COUNCIL,2033385723,"125,582"
Department for Work and Pensions ,Housing Benefits,14/11/2014,HOUSING BENEFIT ADMINISTRATION,HB ENGLAND,ROCHDALE BOROUGH COUNCIL,2033385665,"124,316"
Department for Work and Pensions ,Employment Programmes,28/11/2014,SERVICE FEE,WWEG EP WORK CHOICE CUMBRIA AND LANCASHIRE,SHAW TRUST,2033412176,"123,547"
Department for Work and Pensions ,Housing Benefits,14/11/2014,HOUSING BENEFIT ADMINISTRATION,HB ENGLAND,CHESHIRE WEST & CHESTER COUNCIL,2033385449,"123,032"
Department for Work and Pensions ,Corporate,26/11/2014,RAPID RESPONSE - PROVIDER TRAINING,OPS WDC WSD CE EAST ANGLIA DISTRICT OFFICE,AVANTA ENTERPRISES LTD,2033406459,"122,951"
Department for Work and Pensions ,Employment Programmes,12/11/2014,SERVICE FEE,"WWEG EP SUPPORT CAMBRDIGE AND SUFFOLK, NORFOLK, LINCOLN AND RUTLAND",TNG LTD,2033381504,"122,951"
Department for Work and Pensions ,Corporate,19/11/2014,CONTRACTORS & STAFF SUBSTITUTIONS,CHG IT TRANSFORMATION PROG,CAPITA BUSINESS SERVICES LTD,2033395503,"122,682"
Department for Work and Pensions ,Housing Benefits,14/11/2014,HOUSING BENEFIT ADMINISTRATION,HB ENGLAND,OLDHAM BOROUGH COUNCIL,2033385613,"121,691"
Department for Work and Pensions ,Housing Benefits,14/11/2014,HOUSING BENEFIT ADMINISTRATION,HB ENGLAND,LONDON BOROUGH OF BARKING & DAGENHAM,2033385716,"121,622"
Department for Work and Pensions ,Corporate,27/11/2014,NON-TREDDS IS IT APPS DEV MANDAY,CHG STATE PENSION REFORM SINGLE TIER,ACCENTURE UK LTD,2033408604,"121,449"
Department for Work and Pensions ,Housing Benefits,14/11/2014,HOUSING BENEFIT ADMINISTRATION,HB ENGLAND,MEDWAY TOWNS COUNCIL,2033385515,"121,256"
Department for Work and Pensions ,Corporate,11/11/2014,CONTRACTORS & STAFF SUBSTITUTIONS,CHG UC DESIGN & BUILD PROGRAMME MANAGER,CAPITA BUSINESS SERVICES LTD,2033379494,"118,791"
Department for Work and Pensions ,Corporate,28/11/2014,PRIME FACILITY PRICE,FG CD SHEFFIELD KINGS COURT,TELEREAL TRILLIUM,2033411343,"118,603"
Department for Work and Pensions ,Housing Benefits,14/11/2014,HOUSING BENEFIT ADMINISTRATION,HB ENGLAND,ROTHERHAM BOROUGH COUNCIL,2033385660,"118,374"
Department for Work and Pensions ,Housing Benefits,14/11/2014,HOUSING BENEFIT ADMINISTRATION,HB ENGLAND,LONDON BOROUGH OF BROMLEY,2033385577,"117,741"
Department for Work and Pensions ,Housing Benefits,14/11/2014,HOUSING BENEFIT ADMINISTRATION,HB ENGLAND,EAST RIDING OF YORKSHIRE BOROUGH COUNCIL,2033385371,"117,477"
Department for Work and Pensions ,Housing Benefits,14/11/2014,HOUSING BENEFIT ADMINISTRATION,HB ENGLAND,CHESHIRE EAST BOROUGH COUNCIL,2033385450,"116,839"
Department for Work and Pensions ,Housing Benefits,14/11/2014,HOUSING BENEFIT ADMINISTRATION,HB ENGLAND,LONDON BOROUGH OF KENSINGTON & CHELSEA,2033385672,"116,235"
Department for Work and Pensions ,Corporate,05/11/2014,NON PRIME PROPERTY COSTS VAT RECOVERABLE,FG CD LIVERPOOL REGRAVE COURT,HEALTH & SAFETY EXECUTIVE,2033370910,"116,124"
Department for Work and Pensions ,Housing Benefits,14/11/2014,HOUSING BENEFIT ADMINISTRATION,HB ENGLAND,BARNSLEY BOROUGH COUNCIL,2033385661,"115,860"
Department for Work and Pensions ,Housing Benefits,14/11/2014,HOUSING BENEFIT ADMINISTRATION,HB ENGLAND,LONDON BOROUGH OF HARROW,2033385645,"115,692"
Department for Work and Pensions ,Corporate,18/11/2014,TREDDS APPS DEV MANDAYS,CHG ELECTRONIC SIGNING,HP ENTERPRISE SERVICES UK LTD,2033390141,"115,115"
Department for Work and Pensions ,Corporate,17/11/2014,AR PRIME RECOVERIES,BALANCE SHEET,TELEREAL TRILLIUM,2033389882,"114,929"
Department for Work and Pensions ,Corporate,18/11/2014,NON-TREDDS IS IT APPS DEV MANDAY,CHG PIP IT PHASE 3,IBM UNITED KINGDOM LTD,2033391550,"114,375"
Department for Work and Pensions ,Housing Benefits,14/11/2014,HOUSING BENEFIT ADMINISTRATION,HB ENGLAND,BLACKPOOL BOROUGH COUNCIL,2033385595,"114,002"
Department for Work and Pensions ,Child Maintenance and Enforcement Commission,24/11/2014,REMOTE STORAGE COSTS VAT RECOV,CS CENTRALLY HELD BUDGETS FILESTORES,CAPITA BUSINESS SERVICES LTD,1000223508,"113,389"
Department for Work and Pensions ,Employment Programmes,28/11/2014,SERVICE FEE,WWEG EP WORK CHOICE LEICESTERSHIRE AND NORTHAMPTONSHIRE,WORKING LINKS,2033413424,"113,309"
Department for Work and Pensions ,Corporate,19/11/2014,CONTRACTORS & STAFF SUBSTITUTIONS,CHG UC DESIGN & BUILD PROGRAMME MANAGER,CAPITA BUSINESS SERVICES LTD,2033395503,"113,171"
Department for Work and Pensions ,Corporate,18/11/2014,CONTRACTED OUT OFFICE SERVICES,FG OPS FIN DM ENFORCEMENT,COMMERCIAL COLLECTION SERVICES LTD,2033391585,"113,049"
Department for Work and Pensions ,Housing Benefits,14/11/2014,HOUSING BENEFIT ADMINISTRATION,HB ENGLAND,DERBY CITY COUNCIL,2033385729,"112,833"
Department for Work and Pensions ,Corporate,06/11/2014,SIMPLE PAYMENT SERVICE,FG FIN CONT COBAP CHEQUES,CITIBANK GLOBAL CORPORATE BANKING,2033372150,"112,219"
Department for Work and Pensions ,Employment Programmes,12/11/2014,SERVICE FEE,"WWEG EP SUPPORT GRTR MANCHESTER CNTRL, GRTR MANCHESTER E AND W",STANDGUIDE LTD,2033381568,"112,091"
Department for Work and Pensions ,Corporate,20/11/2014,NEW ENTERPRISE ALLOWANCE MENTOR MATCHING,OPS WDC WSD LN EAST LONDON DISTRICT OFFICE,NETWORK PROJECTS LTD,2033396375,"110,917"
Department for Work and Pensions ,Corporate,04/11/2014,CONTRACTORS & STAFF SUBSTITUTIONS,CIO COO IT DIRECTOR,CAPITA BUSINESS SERVICES LTD,2033368233,"110,509"
Department for Work and Pensions ,Housing Benefits,14/11/2014,HOUSING BENEFIT ADMINISTRATION,HB WALES,RHONDDA CYNON TAFF COUNTY BOROUGH COUNCIL,2033385476,"110,356"
Department for Work and Pensions ,Employment Programmes,12/11/2014,SERVICE FEE,"WWEG EP SUPPORT KENT, SURREY AND SUSSEX",PINNACLE PEOPLE,2033382057,"110,187"
Department for Work and Pensions ,Corporate,12/11/2014,NETWORK INFRASTRUCTURE,OPS OPE FES DISCRETE BUDGET CONTROL,AIRWAVE SOLUTIONS LTD,2033380663,"109,183"
Department for Work and Pensions ,Housing Benefits,14/11/2014,HOUSING BENEFIT ADMINISTRATION,HB ENGLAND,PETERBOROUGH CITY COUNCIL,2033385627,"107,919"
Department for Work and Pensions ,Housing Benefits,14/11/2014,HOUSING BENEFIT ADMINISTRATION,HB ENGLAND,LONDON BOROUGH OF REDBRIDGE,2033385733,"107,906"
Department for Work and Pensions ,Employment Programmes,12/11/2014,SERVICE FEE,"WWEG EP SUPPORT CHESHIRE, HALTON AND WARR, MERSEYSIDE",REED IN PARTNERSHIP LTD,2033380615,"107,713"
Department for Work and Pensions ,Employment Programmes,06/11/2014,WP JSA 25+ SUSTAINMENT OUTCOME PAYMENT,WWEG EP EAST OF ENGLAND INGEUS UK,INGEUS UK LTD,2033373546,"107,070"
Department for Work and Pensions ,Housing Benefits,14/11/2014,HOUSING BENEFIT ADMINISTRATION,HB WALES,SWANSEA CITY COUNCIL,2033385475,"106,523"
Department for Work and Pensions ,Housing Benefits,14/11/2014,HOUSING BENEFIT ADMINISTRATION,HB ENGLAND,GATESHEAD BOROUGH COUNCIL,2033385659,"106,277"
Department for Work and Pensions ,Corporate,20/11/2014,MEDICAL SERVICES FIXED COSTS,FG HS MEDICAL SERVICES CONTRACT EXIT COSTS,ATOS HEALTHCARE,2033396285,"105,812"
Department for Work and Pensions ,Corporate,11/11/2014,NEW ENTERPRISE ALLOWANCE MENTOR MATCHING,OPS WDC WSD LN SOUTH LONDON DISTRICT OFFICE,IXION HOLDINGS LTD,2033379737,"104,667"
Department for Work and Pensions ,Corporate,25/11/2014,CURRENT GRANTS TO LOCAL GOVERNMENT,CHG LA DATA SHARING PROG DELP,SEDGEMOOR DISTRICT COUNCIL,2033403529,"104,085"
Department for Work and Pensions ,Housing Benefits,14/11/2014,HOUSING BENEFIT ADMINISTRATION,HB ENGLAND,STOCKPORT BOROUGH COUNCIL,2033385664,"103,345"
Department for Work and Pensions ,Corporate,17/11/2014,NON-TREDDS APPS DEV FIXED PRICE CONTRACTS,CHG SCANNING & DIGITAL STORAGE,IBM UNITED KINGDOM LTD,2033389317,"103,237"
Department for Work and Pensions ,Housing Benefits,14/11/2014,HOUSING BENEFIT ADMINISTRATION,HB ENGLAND,BOURNEMOUTH BOROUGH COUNCIL,2033385625,"103,219"
Department for Work and Pensions ,Child Maintenance and Enforcement Commission,28/11/2014,CONTRACTORS & STAFF SUBSTITUTIONS,DATA WAREHOUSE PHASE 1,CAPITA BUSINESS SERVICES LTD,1000223982,"102,590"
Department for Work and Pensions ,Corporate,19/11/2014,FSF - TRAINING PAYMENTS TO PROVIDERS - JSA JOBSEEKERS,OPS WDC WSD SC WICK JOBCENTRE PLUS,LEARNDIRECT LTD,2033392498,"102,160"
Department for Work and Pensions ,Housing Benefits,14/11/2014,HOUSING BENEFIT ADMINISTRATION,HB ENGLAND,MIDDLESBROUGH COUNCIL,2033385559,"102,115"
Department for Work and Pensions ,Housing Benefits,14/11/2014,HOUSING BENEFIT ADMINISTRATION,HB ENGLAND,CALDERDALE BOROUGH COUNCIL,2033385675,"101,678"
Department for Work and Pensions ,Corporate,20/11/2014,HOSTING SERVICES,CIO ITLR HOSTING DEL P,HP ENTERPRISE SERVICES UK LTD,2033395948,"101,660"
Department for Work and Pensions ,Housing Benefits,14/11/2014,HOUSING BENEFIT ADMINISTRATION,HB ENGLAND,SHROPSHIRE COUNCIL,2033385445,"100,692"
Department for Work and Pensions ,Housing Benefits,14/11/2014,HOUSING BENEFIT ADMINISTRATION,HB ENGLAND,KNOWSLEY BOROUGH COUNCIL,2033385734,"100,009"
Department for Work and Pensions ,Corporate,13/11/2014,TREDDS APPS DEV MANDAYS,CIO IT OGD SPVA,HP ENTERPRISE SERVICES UK LTD,2033384699,"99,723"
Department for Work and Pensions ,Housing Benefits,14/11/2014,HOUSING BENEFIT ADMINISTRATION,HB ENGLAND,STOCKTON  BOROUGH COUNCIL,2033385494,"99,631"
Department for Work and Pensions ,Employment Programmes,12/11/2014,SERVICE FEE,"WWEG EP SUPPORT N AND E YORKSHIRE AND HUMBER, TEES VALLEY",PERTEMPS,2033381207,"99,121"
Department for Work and Pensions ,Corporate,19/11/2014,NON-TREDDS IS IT SERVICES (AMS),CIO ITPD AM PROTOTYPE & STANDALONE SYS,CAPGEMINI UK PLC,2033394704,"99,114"
Department for Work and Pensions ,Housing Benefits,14/11/2014,HOUSING BENEFIT ADMINISTRATION,HB ENGLAND,NORTH TYNESIDE BOROUGH COUNCIL,2033385658,"99,018"
Department for Work and Pensions ,Corporate,28/11/2014,PUBLICITY ADVERTISING MEDIA,CHG UC STAKEHOLDER & PARTNERS,M4C,2033411237,"99,003"
Department for Work and Pensions ,Corporate,24/11/2014,TREDDS APPS DEV MANDAYS,CHG PIP IT PHASE 3,HP ENTERPRISE SERVICES UK LTD,2033401804,"97,425"
Department for Work and Pensions ,Housing Benefits,14/11/2014,HOUSING BENEFIT ADMINISTRATION,HB SCOTLAND,DUNDEE CITY COUNCIL,2033385557,"97,070"
Department for Work and Pensions ,Corporate,20/11/2014,NON-TREDDS IS IT SERVICES (AMS),CIO ITPD AM PROTOTYPE & STANDALONE SYS,CAPGEMINI UK PLC,2033395950,"96,113"
Department for Work and Pensions ,Corporate,04/11/2014,CONTRACTORS & STAFF SUBSTITUTIONS,CHG IT TRANSFORMATION PROG,CAPITA BUSINESS SERVICES LTD,2033368233,"95,588"
Department for Work and Pensions ,Housing Benefits,14/11/2014,HOUSING BENEFIT ADMINISTRATION,HB ENGLAND,ST HELENS BOROUGH COUNCIL,2033385662,"95,057"
Department for Work and Pensions ,Housing Benefits,14/11/2014,HOUSING BENEFIT ADMINISTRATION,HB ENGLAND,LUTON BOROUGH COUNCIL,2033385633,"94,899"
Department for Work and Pensions ,Housing Benefits,14/11/2014,HOUSING BENEFIT ADMINISTRATION,HB ENGLAND,NORTHAMPTON BOROUGH COUNCIL,2033385543,"94,618"
Department for Work and Pensions ,Housing Benefits,14/11/2014,HOUSING BENEFIT ADMINISTRATION,HB ENGLAND,NORTH EAST LINCOLNSHIRE COUNCIL,2033385574,"94,533"
Department for Work and Pensions ,Corporate,18/11/2014,NON-TREDDS IS IT APPS DEV MANDAY,CIO INFRASTRUCTURE & SERVICE REMEDIATION,IBM UNITED KINGDOM LTD,2033391550,"93,883"
Department for Work and Pensions ,Housing Benefits,14/11/2014,HOUSING BENEFIT ADMINISTRATION,HB ENGLAND,SOUTHEND ON SEA BOROUGH COUNCIL,2033385600,"93,837"
Department for Work and Pensions ,Corporate,18/11/2014,AMS SERVICES,CIO ITLR AMS,HP ENTERPRISE SERVICES UK LTD,2033390141,"93,796"
Department for Work and Pensions ,Corporate,11/11/2014,CONTRACTORS & STAFF SUBSTITUTIONS,CHG IT TRANSFORMATION PROG,CAPITA BUSINESS SERVICES LTD,2033379494,"93,758"
Department for Work and Pensions ,Employment Programmes,12/11/2014,SERVICE FEE,"WWEG EP SUPPORT HAMPSHIRE AND ISLE OF WIGHT, BERKS, BUCKS AND OXON",A4E LTD,2033381954,"93,043"
Department for Work and Pensions ,Corporate,18/11/2014,DESKTOP FIXED PRICE CONTRACTS,CIO ITLR DESKTOP,HP ENTERPRISE SERVICES UK LTD,2033390141,"93,010"
Department for Work and Pensions ,Housing Benefits,14/11/2014,HOUSING BENEFIT ADMINISTRATION,HB SCOTLAND,RENFREWSHIRE COUNCIL,2033385561,"92,646"
Department for Work and Pensions ,Corporate,05/11/2014,CONTRACTED OUT OFFICE SERVICES,FG OPS FIN DM ENFORCEMENT,AKINIKA,2033369958,"91,921"
Department for Work and Pensions ,Employment Programmes,12/11/2014,SERVICE FEE,"WWEG EP SUPPORT COVENTRY AND WARWICKSHIRE, MARCHES, STAFFORDSHIRE",LEARNDIRECT LTD,2033381823,"91,360"
Department for Work and Pensions ,Housing Benefits,14/11/2014,HOUSING BENEFIT ADMINISTRATION,HB ENGLAND,LONDON BOROUGH OF BEXLEY,2033385578,"91,253"
Department for Work and Pensions ,Housing Benefits,14/11/2014,HOUSING BENEFIT ADMINISTRATION,HB ENGLAND,THANET DISTRICT COUNCIL,2033385722,"91,127"
Department for Work and Pensions ,Corporate,28/11/2014,PRIME FACILITY PRICE,FG CD BRADFORD AMBLER MILL,TELEREAL TRILLIUM,2033411343,"91,114"
Department for Work and Pensions ,Employment Programmes,12/11/2014,SERVICE FEE,WWEG EP SUPPORT WEST YORKSHIRE,A4E LTD,2033381954,"90,807"
Department for Work and Pensions ,Corporate,19/11/2014,CONTRACTORS & STAFF SUBSTITUTIONS,CIO ADC DIRECTOR,CAPITA BUSINESS SERVICES LTD,2033395503,"90,604"
Department for Work and Pensions ,Employment Programmes,12/11/2014,SERVICE FEE,"WWEG EP SUPPORT NORTHUMBRIA, SOUTH TYNE AND WEAR VALLEY",ESG HOLDINGS LTD,2033382056,"90,581"
Department for Work and Pensions ,Housing Benefits,14/11/2014,HOUSING BENEFIT ADMINISTRATION,HB ENGLAND,LONDON BOROUGH OF MERTON,2033385434,"90,534"
Department for Work and Pensions ,Corporate,12/11/2014,PROFESSIONAL ADVICE & OPINION VAT RECOVERABLE,STR LEGAL SERVICES,HOGAN LOVELLS,1006798,"90,491"
Department for Work and Pensions ,Employment Programmes,06/11/2014,WP JSA 25+ SUSTAINMENT OUTCOME PAYMENT,WWEG EP SCOTLAND INGEUS UK,INGEUS UK LTD,2033373546,"90,085"
Department for Work and Pensions ,Corporate,28/11/2014,PRIME FACILITY PRICE,FG CD DEARNE VALLEY DISCOVERY HOUSE,TELEREAL TRILLIUM,2033411343,"89,777"
Department for Work and Pensions ,Corporate,27/11/2014,RENEWALS OF SOFTWARE SUPPORT AND MAINTENANCE,CIO ITLR SOFTWARE P,SPECIALIST COMPUTER CENTRES PLC,2033410669,"89,751"
Department for Work and Pensions ,Corporate,28/11/2014,PRIME BUSINESS RATES,FG CD LEEDS QUARRY HOUSE,TELEREAL TRILLIUM,2033411342,"89,692"
Department for Work and Pensions ,Corporate,25/11/2014,CONTRACTED OUT OFFICE SERVICES,F&C IGS WHDS,CAPITA CUSTOMER MANAGEMENT LTD,2033404647,"89,358"
Department for Work and Pensions ,Corporate,28/11/2014,PRIME FACILITY PRICE,FG CD MANCHESTER ANCHORAGE HOUSE,TELEREAL TRILLIUM,2033411343,"89,279"
Department for Work and Pensions ,Housing Benefits,14/11/2014,HOUSING BENEFIT ADMINISTRATION,HB ENGLAND,SOUTH GLOUCESTERSHIRE COUNCIL,2033385427,"89,087"
Department for Work and Pensions ,Housing Benefits,14/11/2014,HOUSING BENEFIT ADMINISTRATION,HB ENGLAND,SOUTH TYNESIDE METROPOLITAN BOROUGH COUNCIL,2033385657,"88,830"
Department for Work and Pensions ,Housing Benefits,14/11/2014,HOUSING BENEFIT ADMINISTRATION,HB ENGLAND,TORBAY  COUNCIL,2033385431,"88,198"
Department for Work and Pensions ,Housing Benefits,14/11/2014,HOUSING BENEFIT ADMINISTRATION,HB SCOTLAND,HIGHLAND COUNCIL,2033385618,"88,148"
Department for Work and Pensions ,Employment Programmes,14/11/2014,WP JSA 25+ SUSTAINMENT OUTCOME PAYMENT,WWEG EP EAST OF ENGLAND INGEUS UK,INGEUS UK LTD,2033386377,"87,935"
Department for Work and Pensions ,Employment Programmes,06/11/2014,WP JSA 25+ SUSTAINMENT OUTCOME PAYMENT,WWEG EP EAST LONDON A4E,A4E LTD,2033372915,"87,505"
Department for Work and Pensions ,Corporate,03/11/2014,CONTRACTED OUT OFFICE SERVICES,FG CD CENTRAL CONTRACTS,XEROX UK LTD 3W,2033367110,"87,146"
Department for Work and Pensions ,Housing Benefits,14/11/2014,HOUSING BENEFIT ADMINISTRATION,HB ENGLAND,NORTH SOMERSET COUNCIL,2033385416,"87,034"
Department for Work and Pensions ,Housing Benefits,14/11/2014,HOUSING BENEFIT ADMINISTRATION,HB ENGLAND,BOROUGH OF TELFORD & WREKIN COUNCIL,2033385684,"86,878"
Department for Work and Pensions ,Corporate,13/11/2014,PRIME BILLABLE EXTRAS PRIME CONTRACT MANAGEMENT (PCM),CHG UC PATHFINDER DELIVERY MANAGEMENT,TELEREAL TRILLIUM,2033383757,"86,416"
Department for Work and Pensions ,Corporate,28/11/2014,PRIME FACILITY PRICE,FG CD SHEFFIELD ROCKINGHAM HOUSE,TELEREAL TRILLIUM,2033411343,"86,110"
Department for Work and Pensions ,Housing Benefits,14/11/2014,HOUSING BENEFIT ADMINISTRATION,HB ENGLAND,NORWICH CITY COUNCIL,2033385610,"85,421"
Department for Work and Pensions ,Corporate,11/11/2014,IT Owned Additions Cost,CHG D-CIRC,GOVERNMENT COMMUNICATIONS BUREAU,2033379477,"85,083"
Department for Work and Pensions ,Employment Programmes,06/11/2014,WP JSA 25+ SUSTAINMENT OUTCOME PAYMENT,WWEG EP EAST LONDON SEETEC,SEETEC BUSINESS TECHNOLOGY CENTRE LTD,2033372508,"84,925"
Department for Work and Pensions ,Housing Benefits,14/11/2014,HOUSING BENEFIT ADMINISTRATION,HB ENGLAND,TRAFFORD BOROUGH COUNCIL,2033385542,"84,725"
Department for Work and Pensions ,Employment Programmes,12/11/2014,SERVICE FEE,"WWEG EP SUPPORT DERBYSHIRE, SOUTH YORKSHIRE",A4E LTD,2033381954,"84,600"
Department for Work and Pensions ,Employment Programmes,06/11/2014,WP JSA 25+ SUSTAINMENT OUTCOME PAYMENT,WWEG EP SCOTLAND WORKING LINKS,WORKING LINKS,2033373696,"84,280"
Department for Work and Pensions ,Housing Benefits,14/11/2014,HOUSING BENEFIT ADMINISTRATION,HB ENGLAND,SWINDON BOROUGH COUNCIL,2033385587,"83,732"
Department for Work and Pensions ,Corporate,11/11/2014,MOTABILITY ADMINISTRATION GRANT,STR MOTABILITY,MOTABILITY ADMINISTRATION FUND,2033379635,"83,330"
Department for Work and Pensions ,Housing Benefits,14/11/2014,HOUSING BENEFIT ADMINISTRATION,HB ENGLAND,LONDON BOROUGH OF HAVERING,2033385732,"82,361"
Department for Work and Pensions ,Employment Programmes,21/11/2014,WP JSA 25+ SUSTAINMENT OUTCOME PAYMENT,WWEG EP EAST OF ENGLAND INGEUS UK,INGEUS UK LTD,2033399194,"82,345"
Department for Work and Pensions ,Employment Programmes,12/11/2014,SERVICE FEE,WWEG EP SUPPORT BIRMINGHAM AND SOLIHULL,INGEUS UK LTD,2033381981,"82,233"
Department for Work and Pensions ,Employment Programmes,06/11/2014,WP JSA 25+ SUSTAINMENT OUTCOME PAYMENT,WWEG EP EAST OF ENGLAND SEETEC,SEETEC BUSINESS TECHNOLOGY CENTRE LTD,2033372508,"81,700"
Department for Work and Pensions ,Housing Benefits,14/11/2014,HOUSING BENEFIT ADMINISTRATION,HB ENGLAND,READING BOROUGH COUNCIL,2033385742,"81,122"
Department for Work and Pensions ,Housing Benefits,14/11/2014,HOUSING BENEFIT ADMINISTRATION,HB ENGLAND,LONDON BOROUGH OF SUTTON,2033385667,"80,867"
Department for Work and Pensions ,Corporate,28/11/2014,PRIME FACILITY PRICE,FG CD NUNEATON DISCOVERY HOUSE,TELEREAL TRILLIUM,2033411343,"80,279"
Department for Work and Pensions ,Corporate,20/11/2014,PROFESSIONAL ADVICE & OPINION VAT RECOVERABLE,F&C IGS INFO SERVICES,ORC INTERNATIONAL LTD,2033396391,"80,249"
Department for Work and Pensions ,Housing Benefits,14/11/2014,HOUSING BENEFIT ADMINISTRATION,HB SCOTLAND,WEST LOTHIAN COUNCIL,2033385554,"80,020"
Department for Work and Pensions ,Employment Programmes,12/11/2014,SERVICE FEE,"WWEG EP SUPPORT ADGI,EDIN,LOTH AND BORDRS,LNRK AND EAST DUN",LEARNDIRECT LTD,2033381823,"80,012"
Department for Work and Pensions ,Housing Benefits,14/11/2014,HOUSING BENEFIT ADMINISTRATION,HB SCOTLAND,NORTH AYRSHIRE COUNCIL,2033385404,"79,851"
Department for Work and Pensions ,Housing Benefits,14/11/2014,HOUSING BENEFIT ADMINISTRATION,HB ENGLAND,BURY METROPOLITAN BOROUGH COUNCIL,2033385614,"79,607"
Department for Work and Pensions ,Employment Programmes,06/11/2014,WP JSA 25+ SUSTAINMENT OUTCOME PAYMENT,WWEG EP NORTH WEST MERS HAL CUMB AND LANCS INGEUS UK,INGEUS UK LTD,2033373546,"78,905"
Department for Work and Pensions ,Employment Programmes,12/11/2014,SERVICE FEE,"WWEG EP SUPP H ISLS,C COAST AND GRAM,F VALL,FIFE AND TSID",LEARNDIRECT LTD,2033381823,"78,658"
Department for Work and Pensions ,Housing Benefits,14/11/2014,HOUSING BENEFIT ADMINISTRATION,HB ENGLAND,BASILDON DISTRICT COUNCIL,2033385629,"78,096"
Department for Work and Pensions ,Corporate,17/11/2014,CONTRACTED OUT OFFICE SERVICES,FG CD CENTRAL CONTRACTS,XEROX UK LTD 3W,2033388268,"78,033"
Department for Work and Pensions ,Employment Programmes,28/11/2014,WP JSA 25+ SUSTAINMENT OUTCOME PAYMENT,WWEG EP EAST OF ENGLAND INGEUS UK,INGEUS UK LTD,2033413420,"77,830"
Department for Work and Pensions ,Housing Benefits,14/11/2014,HOUSING BENEFIT ADMINISTRATION,HB ENGLAND,WARRINGTON BOROUGH COUNCIL,2033385423,"77,610"
Department for Work and Pensions ,Corporate,28/11/2014,NON-TREDDS IS IT APPS DEV MANDAY,CIO INFRASTRUCTURE & SERVICE REMEDIATION,ACCENTURE UK LTD,2033412851,"77,462"
Department for Work and Pensions ,Housing Benefits,14/11/2014,HOUSING BENEFIT ADMINISTRATION,HB ENGLAND,REDCAR & CLEVELAND BOROUGH  COUNCIL,2033385488,"77,385"
Department for Work and Pensions ,Housing Benefits,14/11/2014,HOUSING BENEFIT ADMINISTRATION,HB SCOTLAND,ABERDEEN CITY COUNCIL,2033385714,"76,501"
Department for Work and Pensions ,Housing Benefits,14/11/2014,HOUSING BENEFIT ADMINISTRATION,HB ENGLAND,SLOUGH BOROUGH COUNCIL,2033385608,"76,369"
Department for Work and Pensions ,Housing Benefits,14/11/2014,HOUSING BENEFIT ADMINISTRATION,HB ENGLAND,CENTRAL BEDFORDSHIRE DISTRICT COUNCIL,2033385604,"76,081"
Department for Work and Pensions ,Housing Benefits,14/11/2014,HOUSING BENEFIT ADMINISTRATION,HB WALES,CAERPHILLY COUNTY BOROUGH COUNCIL,2033385721,"75,767"
Department for Work and Pensions ,Corporate,19/11/2014,CONTRACTORS & STAFF SUBSTITUTIONS,CIO COO IT DIRECTOR,CAPITA BUSINESS SERVICES LTD,2033395503,"75,178"
Department for Work and Pensions ,Employment Programmes,06/11/2014,WP JSA 25+ SUSTAINMENT OUTCOME PAYMENT,WWEG EP EAST MIDLANDS INGEUS UK,INGEUS UK LTD,2033373546,"75,035"
Department for Work and Pensions ,Corporate,11/11/2014,TREDDS APPS DEV MANDAYS,F&C IGS DIRECTOR AND SUPPORT,HP ENTERPRISE SERVICES UK LTD,2033378237,"74,845"
Department for Work and Pensions ,Corporate,18/11/2014,TREDDS APPS DEV MANDAYS,CHG STATE PENSION REFORM SINGLE TIER,HP ENTERPRISE SERVICES UK LTD,2033390141,"74,735"
Department for Work and Pensions ,Housing Benefits,14/11/2014,HOUSING BENEFIT ADMINISTRATION,HB ENGLAND,NORTH LINCOLNSHIRE COUNCIL,2033385580,"74,453"
Department for Work and Pensions ,Housing Benefits,14/11/2014,HOUSING BENEFIT ADMINISTRATION,HB SCOTLAND,DUMFRIES & GALLOWAY COUNCIL,2033385569,"74,237"
Department for Work and Pensions ,Employment Programmes,06/11/2014,WP JSA 25+ SUSTAINMENT OUTCOME PAYMENT,WWEG EP EAST MIDLANDS A4E,A4E LTD,2033372915,"73,745"
Department for Work and Pensions ,Child Maintenance and Enforcement Commission,13/11/2014,PROFESSIONAL ADVICE & OPINION VAT RECOVERABLE,EXTERNAL CONTRACTS CENTRALLY HELD INLAND REVENUE TRACING,EXPERIAN LTD,1000222389,"73,717"
Department for Work and Pensions ,Child Maintenance and Enforcement Commission,17/11/2014,PROFESSIONAL SERVICES NON VAT RECOVERABLE,FAMILY SUPPORT SERVICES,ONE PLUS ONE MARRIAGE & PARTNERSHIP RESEARCH,1000222824,"73,570"
Department for Work and Pensions ,Housing Benefits,14/11/2014,HOUSING BENEFIT ADMINISTRATION,HB ENGLAND,TENDRING DISTRICT COUNCIL,2033385403,"73,448"
Department for Work and Pensions ,Housing Benefits,14/11/2014,HOUSING BENEFIT ADMINISTRATION,HB ENGLAND,BLACKBURN BOROUGH COUNCIL,2033385510,"73,248"
Department for Work and Pensions ,Housing Benefits,14/11/2014,HOUSING BENEFIT ADMINISTRATION,HB WALES,NEWPORT CITY COUNCIL,2033385713,"73,237"
Department for Work and Pensions ,Corporate,06/11/2014,STAFF TRAINING VAT RECOVERABLE,HR CONTRACTUAL L AND D,CAPITA CIVIL SERVICE LEARNING,2033373046,"73,192"
Department for Work and Pensions ,Corporate,27/11/2014,CONTRACTED OUT OFFICE SERVICES,CHG APPEALS REFORM,HMCTS,2005061,"72,938"
Department for Work and Pensions ,Housing Benefits,14/11/2014,HOUSING BENEFIT ADMINISTRATION,HB ENGLAND,HALTON BOROUGH COUNCIL,2033385706,"72,695"
Department for Work and Pensions ,Housing Benefits,14/11/2014,HOUSING BENEFIT ADMINISTRATION,HB ENGLAND,BEDFORD BOROUGH COUNCIL,2033385644,"72,681"
Department for Work and Pensions ,Corporate,20/11/2014,COURIER COSTS,F&C IGS WHDS,XEROX UK LTD 3W,2033395770,"72,204"
Department for Work and Pensions ,Corporate,13/11/2014,NEW ENTERPRISE ALLOWANCE MENTOR MATCHING,OPS WDC WSD NW GTR MANCHESTER CENTRAL AND CHESHIRE DO,BLUE ORCHID SUPPORT SERVICES,2033384310,"72,066"
Department for Work and Pensions ,Corporate,07/11/2014,POSTAGE,OPS BEN DD SERVICE CENTRE 5 - SPECIALIST OPERATIONS,ROYAL MAIL GROUP PLC,2033375395,"71,574"
Department for Work and Pensions ,Corporate,10/11/2014,RECRUITMENT & ASSESSMENT SERVICES AGENCY,HR CSR,HM REVENUE & CUSTOMS,2005009,"71,524"
Department for Work and Pensions ,Child Maintenance and Enforcement Commission,20/11/2014,PROFESSIONAL SERVICES NON VAT RECOVERABLE,FAMILY SUPPORT SERVICES,HEADLAND FUTURE LTD,1000223231,"70,951"
Department for Work and Pensions ,Corporate,11/11/2014,CONTRACTORS & STAFF SUBSTITUTIONS,CIO ADC DIRECTOR,CAPITA BUSINESS SERVICES LTD,2033379494,"70,632"
Department for Work and Pensions ,Housing Benefits,14/11/2014,HOUSING BENEFIT ADMINISTRATION,HB ENGLAND,ISLE OF WIGHT COUNTY COUNCIL,2033385370,"70,499"
Department for Work and Pensions ,Employment Programmes,10/11/2014,INNOVATION FUND,WWEG EP NATIONAL,INDIGO PROJECT SOLUTIONS LTD,2033377690,"70,470"
Department for Work and Pensions ,Corporate,18/11/2014,NON-TREDDS APPS DEV FIXED PRICE CONTRACTS,F&C OPS FIN DEBT OPS CRU SYSTEM DEVELOPMENT,CAPGEMINI UK PLC,2033390204,"70,434"
Department for Work and Pensions ,Corporate,24/11/2014,TREDDS APPS DEV MANDAYS,CHG PIP IT PHASE 4,HP ENTERPRISE SERVICES UK LTD,2033401804,"70,358"
Department for Work and Pensions ,Housing Benefits,14/11/2014,HOUSING BENEFIT ADMINISTRATION,HB WALES,NEATH PORT TALBOT COUNTY BOROUGH COUNCIL,2033385698,"70,099"
Department for Work and Pensions ,Housing Benefits,14/11/2014,HOUSING BENEFIT ADMINISTRATION,HB SCOTLAND,ABERDEENSHIRE COUNCIL,2033385556,"69,745"
Department for Work and Pensions ,Corporate,18/11/2014,FSF - SUPPORT CONTRACT MODULES FOR JSA JOBSEEKERS,OPS WDC WSD CE BLACK COUNTRY DISTRICT OFFICE,A4ENTERPRISE LTD,2033392238,"69,729"
Department for Work and Pensions ,Corporate,14/11/2014,PRINTING/BINDING,FG CD CORPORATE CHARGES,XEROX UK LTD 3W,2033386444,"69,497"
Department for Work and Pensions ,Employment Programmes,06/11/2014,WP JSA 25+ SUSTAINMENT OUTCOME PAYMENT,WWEG EP NORTH WEST MERS HAL CUMB AND LANCS A4E,A4E LTD,2033372915,"69,230"
Department for Work and Pensions ,Employment Programmes,14/11/2014,WP JSA 25+ SUSTAINMENT OUTCOME PAYMENT,WWEG EP EAST MIDLANDS INGEUS UK,INGEUS UK LTD,2033386377,"69,230"
Department for Work and Pensions ,Housing Benefits,14/11/2014,HOUSING BENEFIT ADMINISTRATION,HB WALES,CARMARTHENSHIRE COUNTY COUNCIL,2033385611,"69,164"
Department for Work and Pensions ,Housing Benefits,14/11/2014,HOUSING BENEFIT ADMINISTRATION,HB SCOTLAND,FALKIRK DISTRICT COUNCIL,2033385473,"68,578"
Department for Work and Pensions ,Corporate,17/11/2014,RENEWALS OF SOFTWARE SUPPORT AND MAINTENANCE,CIO ITLR SOFTWARE P,SPECIALIST COMPUTER CENTRES PLC,2033388393,"68,510"
Department for Work and Pensions ,Housing Benefits,14/11/2014,HOUSING BENEFIT ADMINISTRATION,HB ENGLAND,PRESTON BOROUGH COUNCIL,2033385697,"67,922"
Department for Work and Pensions ,Housing Benefits,14/11/2014,HOUSING BENEFIT ADMINISTRATION,HB ENGLAND,THURROCK BOROUGH COUNCIL,2033385425,"67,788"
Department for Work and Pensions ,Corporate,18/11/2014,NEW ENTERPRISE ALLOWANCE MENTOR MATCHING,OPS WDC WSD CE BIRMINGHAM AND SOLIHULL DISTRICT OFFICE,A4E LTD,2033391552,"67,240"
Department for Work and Pensions ,Housing Benefits,14/11/2014,HOUSING BENEFIT ADMINISTRATION,HB ENGLAND,HASTINGS BOROUGH COUNCIL,2033385437,"66,895"
Department for Work and Pensions ,Housing Benefits,14/11/2014,HOUSING BENEFIT ADMINISTRATION,HB ENGLAND,SOLIHULL METROPOLITAN BOROUGH COUNCIL,2033385539,"66,881"
Department for Work and Pensions ,Corporate,13/11/2014,PRIME BILLABLE EXTRAS PRIME CONTRACT MANAGEMENT (PCM),CHG ESTATES RATIONALISATION FORMER JCP OPS,TELEREAL TRILLIUM,2033383757,"66,804"
Department for Work and Pensions ,Employment Programmes,21/11/2014,WP JSA 25+ SUSTAINMENT OUTCOME PAYMENT,WWEG EP SCOTLAND INGEUS UK,INGEUS UK LTD,2033399194,"66,435"
Department for Work and Pensions ,Housing Benefits,14/11/2014,HOUSING BENEFIT ADMINISTRATION,HB ENGLAND,IPSWICH BOROUGH COUNCIL,2033385680,"66,356"
Department for Work and Pensions ,Employment Programmes,14/11/2014,WP JSA 25+ SUSTAINMENT OUTCOME PAYMENT,WWEG EP SCOTLAND INGEUS UK,INGEUS UK LTD,2033386377,"66,005"
Department for Work and Pensions ,Housing Benefits,14/11/2014,HOUSING BENEFIT ADMINISTRATION,HB ENGLAND,EAST LINDSEY DISTRICT COUNCIL,2033385545,"65,464"
Department for Work and Pensions ,Corporate,24/11/2014,FSF - SUPPORT CONTRACT MODULES FOR JSA JOBSEEKERS,OPS WDC WSD WL NORTH AND MID WALES DISTRICT OFFICE,A4ENTERPRISE LTD,2033402393,"65,397"
Department for Work and Pensions ,Housing Benefits,14/11/2014,HOUSING BENEFIT ADMINISTRATION,HB ENGLAND,OXFORD CITY COUNCIL,2033385525,"65,202"
Department for Work and Pensions ,Housing Benefits,14/11/2014,HOUSING BENEFIT ADMINISTRATION,HB ENGLAND,HEREFORDSHIRE COUNCIL,2033385739,"65,017"
Department for Work and Pensions ,Employment Programmes,12/11/2014,SERVICE FEE,WWEG EP SUPPORT CUMBRIA AND LANCASHIRE,LEARNDIRECT LTD,2033381823,"64,886"
Department for Work and Pensions ,Corporate,07/11/2014,RECURRENT PUBLICITY,CHG MOBILE REGIONAL TASKFORCE,ENTER HERE LLP,2033375652,"64,644"
Department for Work and Pensions ,Housing Benefits,14/11/2014,HOUSING BENEFIT ADMINISTRATION,HB ENGLAND,HARTLEPOOL BOROUGH COUNCIL,2033385550,"64,437"
Department for Work and Pensions ,Employment Programmes,20/11/2014,WP JSA 25+ SUSTAINMENT OUTCOME PAYMENT,WWEG EP EAST LONDON A4E,A4E LTD,2033396174,"64,285"
Department for Work and Pensions ,Corporate,28/11/2014,AR PRIME RECOVERIES,BALANCE SHEET,TELEREAL TRILLIUM,2033411341,"64,260"
Department for Work and Pensions ,Housing Benefits,14/11/2014,HOUSING BENEFIT ADMINISTRATION,HB SCOTLAND,WEST DUNBARTONSHIRE COUNCIL,2033385724,"64,224"
Department for Work and Pensions ,Housing Benefits,14/11/2014,HOUSING BENEFIT ADMINISTRATION,HB ENGLAND,LONDON BOROUGH OF RICHMOND UPON THAMES,2033385670,"64,213"
Department for Work and Pensions ,Housing Benefits,14/11/2014,HOUSING BENEFIT ADMINISTRATION,HB SCOTLAND,EAST AYRSHIRE COUNCIL FINANCE DEPARTMENT,2033385463,"64,100"
Department for Work and Pensions ,Corporate,24/11/2014,PUBLICITY ADVERTISING MEDIA,CHG ERSP COMMS,M4C,2033403309,"63,788"
Department for Work and Pensions ,Housing Benefits,14/11/2014,HOUSING BENEFIT ADMINISTRATION,HB ENGLAND,COLCHESTER BOROUGH COUNCIL,2033385740,"63,683"
Department for Work and Pensions ,Corporate,18/11/2014,RENEWALS OF SOFTWARE SUPPORT AND MAINTENANCE,CIO ITLR HOSTING DEL P,HP ENTERPRISE SERVICES UK LTD,2033390141,"63,569"
Department for Work and Pensions ,Corporate,21/11/2014,FSF - TRAVEL COSTS TO ADVISER INTERVIEWS - JSA CLIENTS,OPS WDC WSD NW GTR MANCHESTER CENTRAL AND CHESHIRE DO,GREATER MANCHESTER TRAVELCARDS LTD,2033401522,"63,216"
Department for Work and Pensions ,Employment Programmes,28/11/2014,WP JSA 25+ SUSTAINMENT OUTCOME PAYMENT,WWEG EP SCOTLAND INGEUS UK,INGEUS UK LTD,2033413420,"63,210"
Department for Work and Pensions ,Corporate,17/11/2014,PRIME VARIABLE CHARGE,FG CD CMG ESTATES PRIME COSTS,TELEREAL TRILLIUM,2033389882,"62,861"
Department for Work and Pensions ,Housing Benefits,14/11/2014,HOUSING BENEFIT ADMINISTRATION,HB ENGLAND,BATH & NORTH EAST SOMERSET COUNCIL,2033385647,"62,682"
Department for Work and Pensions ,Employment Programmes,14/11/2014,WP JSA 25+ SUSTAINMENT OUTCOME PAYMENT,WWEG EP NORTH WEST MERS HAL CUMB AND LANCS INGEUS UK,INGEUS UK LTD,2033386377,"62,350"
Department for Work and Pensions ,Employment Programmes,26/11/2014,WP JSA 25+ SUSTAINMENT OUTCOME PAYMENT,WWEG EP WEST LONDON MAXIMUS EMPLOYMENT UK,MAXIMUS EMPLOYMENT UK LTD,2033406332,"62,350"
Department for Work and Pensions ,Employment Programmes,04/11/2014,WP JSA 25+ SUSTAINMENT OUTCOME PAYMENT,WWEG EP EAST OF ENGLAND SEETEC,SEETEC BUSINESS TECHNOLOGY CENTRE LTD,2033368036,"62,350"
Department for Work and Pensions ,Employment Programmes,12/11/2014,SERVICE FEE,WWEG EP SUPPORT BLACK COUNTRY,A4E LTD,2033381954,"62,320"
Department for Work and Pensions ,Housing Benefits,14/11/2014,HOUSING BENEFIT ADMINISTRATION,HB WALES,BRIDGEND COUNTY BOROUGH COUNCIL,2033385435,"62,211"
Department for Work and Pensions ,Corporate,07/11/2014,SECURE PRINTING,OPS OPE SDM ENABLER 1,XEROX UK LTD 3W,2033375621,"62,181"
Department for Work and Pensions ,European Social Fund,03/11/2014,MA ESF(D) PROGRAMME EXPENDITURE EC PREFUNDED THIRD PARTIES,WWEG EUROPEAN SOCIAL FUND PROGRAMME 2007-2013,UNIVERSITY COLLEGE FALMOUTH,5000001741,"62,133"
Department for Work and Pensions ,Corporate,14/11/2014,FSF - SUPPORT CONTRACT MODULES FOR JSA JOBSEEKERS,OPS WDC WSD WL SOUTH WEST WALES DISTRICT OFFICE,CAPITAL TRAINING GROUP,2033386453,"61,803"
Department for Work and Pensions ,Corporate,03/11/2014,SOC SEC RESEARCH BUDGET,PSG ANALYSIS CAD,MINISTRY OF JUSTICE,2033367069,"61,534"
Department for Work and Pensions ,Employment Programmes,26/11/2014,WP JSA 25+ SUSTAINMENT OUTCOME PAYMENT,WWEG EP SOUTH EAST TV HANTS AND IOW MAXIMUS EMPLOYMENT,MAXIMUS EMPLOYMENT UK LTD,2033406332,"61,490"
Department for Work and Pensions ,Housing Benefits,14/11/2014,HOUSING BENEFIT ADMINISTRATION,HB ENGLAND,SOUTH SOMERSET DISTRICT COUNCIL,2033385640,"61,040"
Department for Work and Pensions ,Housing Benefits,14/11/2014,HOUSING BENEFIT ADMINISTRATION,HB ENGLAND,CITY OF YORK COUNCIL,2033385424,"60,994"
Department for Work and Pensions ,Employment Programmes,19/11/2014,RESIDENTIAL TRAINING COSTS,WWEG EP DELIVERY WELFARE TO WORK PRODUCT SUPPORT,QUEEN ALEXANDRA COLLEGE,2033395163,"60,915"
Department for Work and Pensions ,Housing Benefits,14/11/2014,HOUSING BENEFIT ADMINISTRATION,HB ENGLAND,ARUN DISTRICT COUNCIL,2033385588,"60,621"
Department for Work and Pensions ,Housing Benefits,14/11/2014,HOUSING BENEFIT ADMINISTRATION,HB ENGLAND,SWALE BOROUGH COUNCIL,2033385513,"60,591"
Department for Work and Pensions ,Corporate,26/11/2014,GOVERNMENT ACTUARY'S DEPT,CHG SINGLE FRAUD INVESTIGATION SERVICE,GOVERNMENT ACTUARYS DEPARTMENT GAD,2005054,"60,340"
Department for Work and Pensions ,Corporate,28/11/2014,PRIME FACILITY PRICE,FG CD CORBY DISCOVERY HOUSE,TELEREAL TRILLIUM,2033411343,"60,317"
Department for Work and Pensions ,Corporate,28/11/2014,PRIME BUSINESS RATES,FG CD PEEL PARK,TELEREAL TRILLIUM,2033411342,"60,246"
Department for Work and Pensions ,Corporate,28/11/2014,PRIME FACILITY PRICE,FG CD PRESTON HOLBORN HOUSE,TELEREAL TRILLIUM,2033411343,"60,220"
Department for Work and Pensions ,Employment Programmes,19/11/2014,RESIDENTIAL TRAINING COSTS,WWEG EP DELIVERY WELFARE TO WORK PRODUCT SUPPORT,PORTLAND COLLEGE,2033393690,"60,193"
Department for Work and Pensions ,European Social Fund,24/11/2014,MA ESF(D) PROGRAMME EXPENDITURE EC PREFUNDED L A's,WWEG EUROPEAN SOCIAL FUND PROGRAMME 2007-2013,LUTON BOROUGH COUNCIL,5000001752,"60,000"
Department for Work and Pensions ,Employment Programmes,27/11/2014,WP JSA 25+ SUSTAINMENT OUTCOME PAYMENT,WWEG EP EAST MIDLANDS A4E,A4E LTD,2033410050,"59,985"
Department for Work and Pensions ,Employment Programmes,06/11/2014,WP JSA 25+ SUSTAINMENT OUTCOME PAYMENT,WWEG EP NORTH EAST INGEUS UK,INGEUS UK LTD,2033373546,"59,985"
Department for Work and Pensions ,Housing Benefits,14/11/2014,HOUSING BENEFIT ADMINISTRATION,HB ENGLAND,GLOUCESTER CITY COUNCIL,2033385603,"59,688"
Department for Work and Pensions ,Housing Benefits,14/11/2014,HOUSING BENEFIT ADMINISTRATION,HB ENGLAND,SCARBOROUGH BOROUGH COUNCIL,2033385597,"59,619"
Department for Work and Pensions ,Housing Benefits,14/11/2014,HOUSING BENEFIT ADMINISTRATION,HB ENGLAND,ROYAL BOROUGH OF KINGSTON UPON THAMES,2033385536,"59,167"
Department for Work and Pensions ,Corporate,06/11/2014,NON-TREDDS IS IT SERVICES (AMS),CIO GG SERVICE DELIVERY,ATOS ORIGIN IT SERVICES UK LTD,2033372237,"58,980"
Department for Work and Pensions ,Employment Programmes,13/11/2014,WP JSA 25+ SUSTAINMENT OUTCOME PAYMENT,WWEG EP EAST MIDLANDS A4E,A4E LTD,2033385154,"58,695"
Department for Work and Pensions ,Corporate,06/11/2014,NON-TREDDS APPS DEV FIXED PRICE CONTRACTS,OPS PEN PS TUO ISIT,ATOS ORIGIN IT SERVICES UK LTD,2033372237,"58,607"
Department for Work and Pensions ,Corporate,20/11/2014,CONTRACTED OUT OFFICE SERVICES,OPS OPE OIS CENTRAL CONTRACTS,COFELY WORKPLACE LTD,2033396272,"58,442"
Department for Work and Pensions ,Corporate,28/11/2014,PRIME FACILITY PRICE,FG CD CLARKE HOUSE,TELEREAL TRILLIUM,2033411343,"58,402"
Department for Work and Pensions ,Housing Benefits,14/11/2014,HOUSING BENEFIT ADMINISTRATION,HB ENGLAND,BASINGSTOKE DISTRICT COUNCIL,2033385399,"58,363"
Department for Work and Pensions ,Corporate,18/11/2014,NON-TREDDS IS IT APPS DEV MANDAY,CHG CUSTOMER INFORMATION SYSTEM REMEDIATION,IBM UNITED KINGDOM LTD,2033391550,"58,222"
Department for Work and Pensions ,Corporate,27/11/2014,GOVERNMENT ACTUARY'S DEPT,CHG SINGLE FRAUD INVESTIGATION SERVICE,GOVERNMENT ACTUARYS DEPARTMENT GAD,2005057,"58,159"
Department for Work and Pensions ,Employment Programmes,04/11/2014,WP JSA 25+ SUSTAINMENT OUTCOME PAYMENT,WWEG EP EAST LONDON SEETEC,SEETEC BUSINESS TECHNOLOGY CENTRE LTD,2033368036,"58,050"
Department for Work and Pensions ,Employment Programmes,17/11/2014,WP JSA 25+ SUSTAINMENT OUTCOME PAYMENT,WWEG EP NORTH EAST AVANTA ENTERPRISE,AVANTA ENTERPRISE LTD,2033388122,"57,620"
Department for Work and Pensions ,Corporate,28/11/2014,NETWORK SERVICES,CIO AD HOC ITLR PROJECTS,BT GLOBAL SERVICES,2033412987,"57,583"
Department for Work and Pensions ,Housing Benefits,14/11/2014,HOUSING BENEFIT ADMINISTRATION,HB ENGLAND,KINGS LYNN & WEST NORFOLK BOROUGH COUNCIL,2033385469,"57,485"
Department for Work and Pensions ,Corporate,07/11/2014,POSTAGE,FG CD CENTRAL CONTRACTS,ROYAL MAIL GROUP PLC,2033375395,"56,926"
Department for Work and Pensions ,Employment Programmes,24/11/2014,WP JSA 25+ SUSTAINMENT OUTCOME PAYMENT,WWEG EP SOUTH EAST SURR SUSSX AND KENT AVANTA ENTERPRISE,AVANTA ENTERPRISE LTD,2033402210,"56,760"
Department for Work and Pensions ,Employment Programmes,28/11/2014,WP JSA 25+ SUSTAINMENT OUTCOME PAYMENT,WWEG EP EAST MIDLANDS INGEUS UK,INGEUS UK LTD,2033413420,"56,760"
Department for Work and Pensions ,Corporate,14/11/2014,FSF - SUPPORT CONTRACT MODULES FOR JSA JOBSEEKERS,OPS WDC WSD SE SURREY AND SUSSEX EXTERNAL RELATIONS TEAM,PINNACLE PEOPLE,2033386000,"56,760"
Department for Work and Pensions ,Housing Benefits,14/11/2014,HOUSING BENEFIT ADMINISTRATION,HB ENGLAND,GREAT YARMOUTH COUNCIL,2033385471,"56,678"
Department for Work and Pensions ,Employment Programmes,20/11/2014,WP JSA 25+ SUSTAINMENT OUTCOME PAYMENT,WWEG EP NORTH WEST MERS HAL CUMB AND LANCS A4E,A4E LTD,2033396174,"56,545"
Department for Work and Pensions ,Employment Programmes,27/11/2014,WP JSA 25+ SUSTAINMENT OUTCOME PAYMENT,WWEG EP EAST LONDON A4E,A4E LTD,2033410050,"56,545"
Department for Work and Pensions ,Employment Programmes,13/11/2014,WP JSA 25+ SUSTAINMENT OUTCOME PAYMENT,WWEG EP EAST LONDON A4E,A4E LTD,2033385154,"56,330"
Department for Work and Pensions ,Employment Programmes,28/11/2014,WP JSA 25+ SUSTAINMENT OUTCOME PAYMENT,WWEG EP NORTH WEST MERS HAL CUMB AND LANCS INGEUS UK,INGEUS UK LTD,2033413420,"56,330"
Department for Work and Pensions ,Corporate,21/11/2014,ACCOUNTS PAYABLE UNAPPROVED INVOICES,OPS WDC WSD SC EAST AND SOUTH EAST SCOTLAND DO,WEST LOTHIAN COUNCIL,2033398454,"56,280"
Department for Work and Pensions ,Employment Programmes,12/11/2014,SERVICE FEE,"WWEG EP SUPPORT SOUTH EAST WALES, NORTH AND MID WALES",A4E LTD,2033381954,"56,174"
Department for Work and Pensions ,Employment Programmes,20/11/2014,WP JSA 25+ SUSTAINMENT OUTCOME PAYMENT,WWEG EP EAST MIDLANDS A4E,A4E LTD,2033396174,"55,685"
Department for Work and Pensions ,Housing Benefits,14/11/2014,HOUSING BENEFIT ADMINISTRATION,HB ENGLAND,BURNLEY BOROUGH COUNCIL,2033385631,"55,367"
Department for Work and Pensions ,Employment Programmes,06/11/2014,WP JSA 25+ SUSTAINMENT OUTCOME PAYMENT,WWEG EP WEST YORKSHIRE INGEUS UK,INGEUS UK LTD,2033373546,"55,255"
Department for Work and Pensions ,Housing Benefits,14/11/2014,HOUSING BENEFIT ADMINISTRATION,HB ENGLAND,WYCOMBE DISTRICT COUNCIL,2033385498,"55,097"
Department for Work and Pensions ,Employment Programmes,21/11/2014,WP JSA 25+ SUSTAINMENT OUTCOME PAYMENT,WWEG EP NORTH WEST MERS HAL CUMB AND LANCS INGEUS UK,INGEUS UK LTD,2033399194,"55,040"
Department for Work and Pensions ,Corporate,20/11/2014,NEW ENTERPRISE ALLOWANCE MENTOR MATCHING,OPS WDC WSD SE GLOUCESTERSHIRE AND WEST OF ENGLAND DO,GLOUCESTERSHIRE ENTERPRISE LTD,2033396013,"54,920"
Department for Work and Pensions ,Housing Benefits,14/11/2014,HOUSING BENEFIT ADMINISTRATION,HB ENGLAND,BRAINTREE DISTRICT COUNCIL,2033385708,"54,836"
Department for Work and Pensions ,Housing Benefits,14/11/2014,HOUSING BENEFIT ADMINISTRATION,HB ENGLAND,EASTBOURNE BOROUGH COUNCIL,2033385418,"54,707"
Department for Work and Pensions ,Employment Programmes,06/11/2014,WP JSA 25+ SUSTAINMENT OUTCOME PAYMENT,WWEG EP WEST YORKSHIRE BEST LTD,INTERSERVE WORKING FUTURES,2033371429,"54,395"
Department for Work and Pensions ,Employment Programmes,14/11/2014,WP JSA 25+ SUSTAINMENT OUTCOME PAYMENT,WWEG EP EAST LONDON SEETEC,SEETEC BUSINESS TECHNOLOGY CENTRE LTD,2033387592,"54,395"
Department for Work and Pensions ,Corporate,12/11/2014,FSF - SUPPORT CONTRACT MODULES FOR JSA JOBSEEKERS,OPS WDC WSD SC GLASGOW LANARKSHIRE E DUMBARTONSHIRE DO,LEARNDIRECT LTD,2033382194,"54,378"
Department for Work and Pensions ,Housing Benefits,14/11/2014,HOUSING BENEFIT ADMINISTRATION,HB SCOTLAND,PERTH & KINROSS COUNCIL,2033385579,"54,211"
Department for Work and Pensions ,Corporate,20/11/2014,CONTRACTED OUT OFFICE SERVICES,CMG OPS CO SUPPORT CENTRALLY HELD NON PEOPLE,XEROX UK LTD 3W,2033395770,"54,164"
Department for Work and Pensions ,Housing Benefits,14/11/2014,HOUSING BENEFIT ADMINISTRATION,HB ENGLAND,HUNTINGDON DISTRICT COUNCIL,2033385496,"54,087"
Department for Work and Pensions ,Employment Programmes,06/11/2014,WP JSA 25+ SUSTAINMENT OUTCOME PAYMENT,WWEG EP WEST LONDON INGEUS UK,INGEUS UK LTD,2033373546,"53,965"
Department for Work and Pensions ,Employment Programmes,14/11/2014,WP JSA 25+ SUSTAINMENT OUTCOME PAYMENT,WWEG EP EAST OF ENGLAND SEETEC,SEETEC BUSINESS TECHNOLOGY CENTRE LTD,2033387592,"53,965"
Department for Work and Pensions ,Corporate,20/11/2014,FSF - SUPPORT CONTRACT MODULES FOR JSA JOBSEEKERS,OPS WDC WSD LN SOUTH LONDON DISTRICT OFFICE,A4E LTD,2033396427,"53,950"
Department for Work and Pensions ,Employment Programmes,17/11/2014,RESIDENTIAL TRAINING COSTS,WWEG EP DELIVERY WELFARE TO WORK PRODUCT SUPPORT,ENHAM,2033388153,"53,835"
Department for Work and Pensions ,Employment Programmes,06/11/2014,WP JSA 25+ SUSTAINMENT OUTCOME PAYMENT,WWEG EP SOUTH EAST TV HANTS AND IOW A4E,A4E LTD,2033372915,"53,750"
Department for Work and Pensions ,Housing Benefits,14/11/2014,HOUSING BENEFIT ADMINISTRATION,HB ENGLAND,AYLESBURY VALE DISTRICT COUNCIL,2033385693,"53,488"
Department for Work and Pensions ,Housing Benefits,14/11/2014,HOUSING BENEFIT ADMINISTRATION,HB WALES,WREXHAM COUNTY BOROUGH COUNCIL,2033385632,"53,357"
Department for Work and Pensions ,Housing Benefits,14/11/2014,HOUSING BENEFIT ADMINISTRATION,HB ENGLAND,LANCASTER CITY COUNCIL,2033385570,"53,248"
Department for Work and Pensions ,Housing Benefits,14/11/2014,HOUSING BENEFIT ADMINISTRATION,HB ENGLAND,WAVENEY DISTRICT COUNCIL,2033385705,"53,190"
Department for Work and Pensions ,Corporate,11/11/2014,TREDDS APPS DEV MANDAYS,CHG HDAS IT ENABLEMENT,HP ENTERPRISE SERVICES UK LTD,2033378237,"53,005"
Department for Work and Pensions ,Corporate,10/11/2014,NON-TREDDS IS IT SERVICES (AMS),CIO ADEP ITLR HISTORIC PREMIUM & TRANSFORMATION,IBM UNITED KINGDOM LTD,2033377083,"52,995"
Department for Work and Pensions ,Corporate,27/11/2014,FSF - TRAINING PAYMENTS TO PROVIDERS - JSA JOBSEEKERS,OPS WDC WSD CE BIRMINGHAM AND SOLIHULL DISTRICT OFFICE,WALSALL COLLEGE,2033409893,"52,900"
Department for Work and Pensions ,Employment Programmes,27/11/2014,WP JSA 25+ SUSTAINMENT OUTCOME PAYMENT,WWEG EP NORTH WEST MERS HAL CUMB AND LANCS A4E,A4E LTD,2033410050,"52,890"
Department for Work and Pensions ,Employment Programmes,26/11/2014,INNOVATION FUND,WWEG EP NATIONAL,INDIGO PROJECT SOLUTIONS LTD,2033406389,"52,890"
Department for Work and Pensions ,Housing Benefits,14/11/2014,HOUSING BENEFIT ADMINISTRATION,HB ENGLAND,DARLINGTON BOROUGH COUNCIL,2033385562,"52,780"
Department for Work and Pensions ,Corporate,11/11/2014,CONTRACTORS & STAFF SUBSTITUTIONS,CIO COO IT DIRECTOR,CAPITA BUSINESS SERVICES LTD,2033379494,"52,648"
Department for Work and Pensions ,Corporate,11/11/2014,POSTAGE,FG CD NEWCASTLE ESTATE,UK MAIL,2033380271,"52,622"
Department for Work and Pensions ,Employment Programmes,25/11/2014,WP JSA 25+ SUSTAINMENT OUTCOME PAYMENT,WWEG EP EAST OF ENGLAND SEETEC,SEETEC BUSINESS TECHNOLOGY CENTRE LTD,2033403622,"52,460"
Department for Work and Pensions ,Housing Benefits,14/11/2014,HOUSING BENEFIT ADMINISTRATION,HB SCOTLAND,INVERCLYDE DISTRICT COUNCIL,2033385464,"52,418"
Department for Work and Pensions ,Housing Benefits,14/11/2014,HOUSING BENEFIT ADMINISTRATION,HB ENGLAND,CRAWLEY BOROUGH COUNCIL,2033385508,"52,346"
Department for Work and Pensions ,Housing Benefits,14/11/2014,HOUSING BENEFIT ADMINISTRATION,HB ENGLAND,DACORUM BOROUGH COUNCIL,2033385730,"52,275"
Department for Work and Pensions ,Employment Programmes,28/11/2014,WP JSA 25+ SUSTAINMENT OUTCOME PAYMENT,WWEG EP EAST OF ENGLAND SEETEC,SEETEC BUSINESS TECHNOLOGY CENTRE LTD,2033412848,"52,245"
Department for Work and Pensions ,Corporate,06/11/2014,LOCAL WELFARE PROVISION GRANTS,CHG SINGLE FRAUD INVESTIGATION SERVICE,CARDIFF CITY COUNCIL,2033374750,"52,140"
Department for Work and Pensions ,Housing Benefits,14/11/2014,HOUSING BENEFIT ADMINISTRATION,HB ENGLAND,POOLE BOROUGH COUNCIL,2033385422,"52,012"
Department for Work and Pensions ,Corporate,19/11/2014,ADEP AM SERVICES - VAT NON-RECOVERABLE,CHG UC DESIGN & BUILD PROGRAMME MANAGER,6POINT6 LTD,2033395321,"51,973"
Department for Work and Pensions ,Housing Benefits,14/11/2014,HOUSING BENEFIT ADMINISTRATION,HB ENGLAND,EXETER CITY COUNCIL,2033385442,"51,814"
Department for Work and Pensions ,Housing Benefits,14/11/2014,HOUSING BENEFIT ADMINISTRATION,HB SCOTLAND,SOUTH AYRSHIRE COUNCIL,2033385567,"51,719"
Department for Work and Pensions ,Housing Benefits,14/11/2014,HOUSING BENEFIT ADMINISTRATION,HB WALES,FLINTSHIRE COUNTY COUNCIL,2033385586,"51,699"
Department for Work and Pensions ,Corporate,24/11/2014,GENERAL OFFICE EXPENSES VAT NON-RECOVERABLE,OPS OPE C&I NATIONAL 2,MET OFFICE,2033402042,"51,636"
Department for Work and Pensions ,Employment Programmes,13/11/2014,WP JSA 25+ SUSTAINMENT OUTCOME PAYMENT,WWEG EP NORTH WEST MERS HAL CUMB AND LANCS A4E,A4E LTD,2033385154,"51,600"
Department for Work and Pensions ,Employment Programmes,11/11/2014,WP JSA 25+ SUSTAINMENT OUTCOME PAYMENT,WWEG EP NORTH WEST GM CHES AND WARR G4S,G4S REGIONAL MANAGEMENT UK & I LTD,2033379956,"51,600"
Department for Work and Pensions ,Employment Programmes,03/11/2014,WP JSA 25+ SUSTAINMENT OUTCOME PAYMENT,WWEG EP NORTH WEST GM CHES AND WARR SEETEC,SEETEC BUSINESS TECHNOLOGY CENTRE LTD,2033366643,"51,600"
Department for Work and Pensions ,Housing Benefits,14/11/2014,HOUSING BENEFIT ADMINISTRATION,HB ENGLAND,LINCOLN CITY COUNCIL,2033385481,"51,471"
Department for Work and Pensions ,Housing Benefits,14/11/2014,HOUSING BENEFIT ADMINISTRATION,HB ENGLAND,MAIDSTONE BOROUGH COUNCIL,2033385366,"51,184"
Department for Work and Pensions ,Housing Benefits,14/11/2014,HOUSING BENEFIT ADMINISTRATION,HB ENGLAND,CHELMSFORD BOROUGH COUNCIL,2033385408,"51,120"
Department for Work and Pensions ,Employment Programmes,12/11/2014,SERVICE FEE,WWEG EP SUPPORT LEICESTERSHIRE AND NORTHAMPTONSHIRE,INGEUS UK LTD,2033381981,"51,038"
Department for Work and Pensions ,Housing Benefits,14/11/2014,HOUSING BENEFIT ADMINISTRATION,HB SCOTLAND,SCOTTISH BORDERS COUNCIL,2033385552,"51,007"
Department for Work and Pensions ,Employment Programmes,21/11/2014,WP JSA 25+ SUSTAINMENT OUTCOME PAYMENT,WWEG EP SCOTLAND WORKING LINKS,WORKING LINKS,2033399198,"50,740"
Department for Work and Pensions ,Employment Programmes,10/11/2014,WP JSA 25+ SUSTAINMENT OUTCOME PAYMENT,WWEG EP SOUTH EAST SURR SUSSX AND KENT G4S,G4S REGIONAL MANAGEMENT UK & I LTD,2033377300,"50,525"
Department for Work and Pensions ,Corporate,19/11/2014,CONTRACTORS & STAFF SUBSTITUTIONS,F&C CD SENIOR MANAGEMENT,CAPITA BUSINESS SERVICES LTD,2033395503,"50,220"
Department for Work and Pensions ,Employment Programmes,12/11/2014,SERVICE FEE,WWEG EP SUPPORT CORNWALL AND DEVON,WORKING LINKS,2033381985,"49,813"
Department for Work and Pensions ,Housing Benefits,14/11/2014,HOUSING BENEFIT ADMINISTRATION,HB ENGLAND,NUNEATON BOROUGH COUNCIL,2033385519,"49,675"
Department for Work and Pensions ,Corporate,25/11/2014,RECURRENT PUBLICITY,CHG ERSP COMMS,ENGINE PARTNERS UK LLP,2033405509,"49,670"
Department for Work and Pensions ,Housing Benefits,14/11/2014,HOUSING BENEFIT ADMINISTRATION,HB ENGLAND,CHESTERFIELD BOROUGH COUNCIL,2033385591,"49,514"
Department for Work and Pensions ,Housing Benefits,14/11/2014,HOUSING BENEFIT ADMINISTRATION,HB WALES,CONWY COUNTY BOROUGH  COUNCIL,2033385621,"49,474"
Department for Work and Pensions ,Employment Programmes,28/11/2014,WP JSA 25+ SUSTAINMENT OUTCOME PAYMENT,WWEG EP NORTH EAST INGEUS UK,INGEUS UK LTD,2033413420,"49,450"
Department for Work and Pensions ,Housing Benefits,14/11/2014,HOUSING BENEFIT ADMINISTRATION,HB ENGLAND,SHEPWAY DISTRICT COUNCIL,2033385551,"49,347"
Department for Work and Pensions ,Housing Benefits,14/11/2014,HOUSING BENEFIT ADMINISTRATION,HB ENGLAND,NORTH HERTFORDSHIRE DISTRICT COUNCIL,2033385535,"49,314"
Department for Work and Pensions ,Housing Benefits,14/11/2014,HOUSING BENEFIT ADMINISTRATION,HB ENGLAND,NEW FOREST DISTRICT COUNCIL,2033385393,"49,311"
Department for Work and Pensions ,Employment Programmes,21/11/2014,WP JSA 25+ SUSTAINMENT OUTCOME PAYMENT,WWEG EP EAST MIDLANDS INGEUS UK,INGEUS UK LTD,2033399194,"49,235"
Department for Work and Pensions ,Employment Programmes,14/11/2014,WP JSA 25+ SUSTAINMENT OUTCOME PAYMENT,WWEG EP NORTH EAST INGEUS UK,INGEUS UK LTD,2033386377,"49,020"
Department for Work and Pensions ,Housing Benefits,14/11/2014,HOUSING BENEFIT ADMINISTRATION,HB ENGLAND,CANTERBURY CITY COUNCIL,2033385368,"48,906"
Department for Work and Pensions ,Housing Benefits,14/11/2014,HOUSING BENEFIT ADMINISTRATION,HB ENGLAND,DOVER DISTRICT COUNCIL,2033385367,"48,826"
Department for Work and Pensions ,Employment Programmes,06/11/2014,WP JSA 25+ SUSTAINMENT OUTCOME PAYMENT,WWEG EP NORTH EAST AVANTA ENTERPRISE,AVANTA ENTERPRISE LTD,2033372151,"48,805"
Department for Work and Pensions ,Housing Benefits,14/11/2014,HOUSING BENEFIT ADMINISTRATION,HB ENGLAND,ASHFIELD DISTRICT COUNCIL,2033385558,"48,754"
Department for Work and Pensions ,Housing Benefits,14/11/2014,HOUSING BENEFIT ADMINISTRATION,HB ENGLAND,BRECKLAND DISTRICT COUNCIL,2033385478,"48,716"
Department for Work and Pensions ,Housing Benefits,14/11/2014,HOUSING BENEFIT ADMINISTRATION,HB ENGLAND,CHARNWOOD BOROUGH COUNCIL,2033385622,"48,583"
Department for Work and Pensions ,Housing Benefits,14/11/2014,HOUSING BENEFIT ADMINISTRATION,HB WALES,GWYNEDD COUNCIL,2033385532,"48,501"
Department for Work and Pensions ,Housing Benefits,14/11/2014,HOUSING BENEFIT ADMINISTRATION,HB ENGLAND,TEIGNBRIDGE DISTRICT COUNCIL,2033385433,"48,394"
Department for Work and Pensions ,Employment Programmes,06/11/2014,WP JSA 25+ SUSTAINMENT OUTCOME PAYMENT,WWEG EP NORTH WEST GM CHES AND WARR SEETEC,SEETEC BUSINESS TECHNOLOGY CENTRE LTD,2033372508,"48,375"
Department for Work and Pensions ,Housing Benefits,14/11/2014,HOUSING BENEFIT ADMINISTRATION,HB ENGLAND,MANSFIELD DISTRICT COUNCIL,2033385590,"48,355"
Department for Work and Pensions ,Child Maintenance and Enforcement Commission,14/11/2014,PROFESSIONAL SERVICES NON VAT RECOVERABLE,FAMILY SUPPORT SERVICES,SILLS & BETTERIDGE SOLICITORS,1000222596,"48,176"
Department for Work and Pensions ,Employment Programmes,10/11/2014,WP JSA 25+ SUSTAINMENT OUTCOME PAYMENT,WWEG EP EAST LONDON CAREERS DEVELOPMENT GROUP,CAREERS DEVELOPMENT GROUP,2033377647,"48,160"
Department for Work and Pensions ,Employment Programmes,28/11/2014,WP JSA 25+ SUSTAINMENT OUTCOME PAYMENT,WWEG EP SCOTLAND WORKING LINKS,WORKING LINKS,2033413424,"48,160"
Department for Work and Pensions ,Housing Benefits,14/11/2014,HOUSING BENEFIT ADMINISTRATION,HB WALES,TORFAEN BOROUGH COUNCIL,2033385485,"48,014"
Department for Work and Pensions ,Housing Benefits,14/11/2014,HOUSING BENEFIT ADMINISTRATION,HB ENGLAND,WYRE BOROUGH COUNCIL,2033385572,"47,916"
Department for Work and Pensions ,Housing Benefits,14/11/2014,HOUSING BENEFIT ADMINISTRATION,HB ENGLAND,WEST BERKSHIRE COUNCIL,2033385668,"47,698"
Department for Work and Pensions ,Employment Programmes,12/11/2014,SERVICE FEE,"WWEG EP SUPPORT SOUTH WEST WALES, SOUTH WALES VALLEYS",CAPITAL TRAINING GROUP LTD,2033381333,"47,561"
Department for Work and Pensions ,Housing Benefits,14/11/2014,HOUSING BENEFIT ADMINISTRATION,HB ENGLAND,CHERWELL DISTRICT COUNCIL,2033385702,"47,278"
Department for Work and Pensions ,Housing Benefits,14/11/2014,HOUSING BENEFIT ADMINISTRATION,HB ENGLAND,SEDGEMOOR DISTRICT COUNCIL,2033385731,"47,181"
Department for Work and Pensions ,Corporate,17/11/2014,"FURNITURE, FIXTURES & FITTINGS (NON-PRIME)",CHG UC PATHFINDER DELIVERY MANAGEMENT,INTOFORM NEWWAVE LTD,2033388901,"47,097"
Department for Work and Pensions ,Housing Benefits,14/11/2014,HOUSING BENEFIT ADMINISTRATION,HB ENGLAND,HAVANT BOROUGH COUNCIL,2033385744,"46,931"
Department for Work and Pensions ,Employment Programmes,28/11/2014,WP JSA 25+ SUSTAINMENT OUTCOME PAYMENT,WWEG EP WEST LONDON INGEUS UK,INGEUS UK LTD,2033413420,"46,870"
Department for Work and Pensions ,Employment Programmes,06/11/2014,WP JSA 25+ SUSTAINMENT OUTCOME PAYMENT,WWEG EP EAST LONDON CAREERS DEVELOPMENT GROUP,CAREERS DEVELOPMENT GROUP,2033373623,"46,655"
Department for Work and Pensions ,Housing Benefits,14/11/2014,HOUSING BENEFIT ADMINISTRATION,HB ENGLAND,PENDLE BOROUGH COUNCIL,2033385436,"46,326"
Department for Work and Pensions ,Housing Benefits,14/11/2014,HOUSING BENEFIT ADMINISTRATION,HB ENGLAND,HYNDBURN BOROUGH COUNCIL,2033385503,"46,130"
Department for Work and Pensions ,Employment Programmes,14/11/2014,WP JSA 25+ SUSTAINMENT OUTCOME PAYMENT,WWEG EP SCOTLAND WORKING LINKS,WORKING LINKS,2033386379,"46,010"
Department for Work and Pensions ,Corporate,20/11/2014,PRIME UTILITIES INITIATIVES COSTS,FG CD UTILITIES INITIATIVES COSTS,TELEREAL TRILLIUM,2033395814,"45,807"
Department for Work and Pensions ,Housing Benefits,14/11/2014,HOUSING BENEFIT ADMINISTRATION,HB ENGLAND,HARLOW DISTRICT COUNCIL,2033385405,"45,706"
Department for Work and Pensions ,Corporate,18/11/2014,NON-TREDDS IS IT APPS DEV MANDAY,CIO GFTS DEV,IBM UNITED KINGDOM LTD,2033391550,"45,697"
Department for Work and Pensions ,Housing Benefits,14/11/2014,HOUSING BENEFIT ADMINISTRATION,HB ENGLAND,NEWCASTLE UNDER LYME BOROUGH COUNCIL,2033385636,"45,611"
Department for Work and Pensions ,Employment Programmes,14/11/2014,WP JSA 25+ SUSTAINMENT OUTCOME PAYMENT,WWEG EP WEST LONDON INGEUS UK,INGEUS UK LTD,2033386377,"45,580"
Department for Work and Pensions ,Employment Programmes,17/11/2014,WP JSA 25+ SUSTAINMENT OUTCOME PAYMENT,WWEG EP SCOTLAND WORKING LINKS,WORKING LINKS,2033387910,"45,580"
Department for Work and Pensions ,Corporate,04/11/2014,CONTRACTORS & STAFF SUBSTITUTIONS,CIO CSD HEAD OF SERVICE MAINTENANCE,CAPITA BUSINESS SERVICES LTD,2033368233,"45,386"
Department for Work and Pensions ,Housing Benefits,14/11/2014,HOUSING BENEFIT ADMINISTRATION,HB WALES,VALE OF GLAMORGAN COUNCIL,2033385607,"45,095"
Department for Work and Pensions ,Corporate,25/11/2014,NON PRIME WORKS - VAT NON- RECOVERABLE,CHG ESTATES RATIONALISATION FORMER JCP OPS,WEST LINDSEY DISTRICT COUNCIL,2033403575,"45,000"
Department for Work and Pensions ,Employment Programmes,18/11/2014,WP JSA 25+ SUSTAINMENT OUTCOME PAYMENT,WWEG EP WEST YORKSHIRE BEST LTD,INTERSERVE WORKING FUTURES,2033390058,"44,935"
Department for Work and Pensions ,Employment Programmes,24/11/2014,WP JSA 25+ SUSTAINMENT OUTCOME PAYMENT,WWEG EP EAST OF ENGLAND SEETEC,SEETEC BUSINESS TECHNOLOGY CENTRE LTD,2033402115,"44,935"
Department for Work and Pensions ,Housing Benefits,14/11/2014,HOUSING BENEFIT ADMINISTRATION,HB WALES,PEMBROKESHIRE COUNTY COUNCIL,2033385544,"44,736"
Department for Work and Pensions ,Housing Benefits,14/11/2014,HOUSING BENEFIT ADMINISTRATION,HB ENGLAND,BASSETLAW DISTRICT COUNCIL,2033385651,"44,729"
Department for Work and Pensions ,Corporate,28/11/2014,PRIME UTILITIES,FG CD CMG ESTATES PRIME COSTS,TELEREAL TRILLIUM,2033411341,"44,728"
Department for Work and Pensions ,Housing Benefits,14/11/2014,HOUSING BENEFIT ADMINISTRATION,HB SCOTLAND,ANGUS COUNCIL,2033385736,"44,727"
Department for Work and Pensions ,Employment Programmes,25/11/2014,WP JSA 25+ SUSTAINMENT OUTCOME PAYMENT,WWEG EP EAST LONDON SEETEC,SEETEC BUSINESS TECHNOLOGY CENTRE LTD,2033403622,"44,720"
Department for Work and Pensions ,Housing Benefits,14/11/2014,HOUSING BENEFIT ADMINISTRATION,HB WALES,POWYS COUNTY COUNCIL,2033385523,"44,348"
Department for Work and Pensions ,Corporate,10/11/2014,PUBLICITY ADVERTISING MEDIA,CHG ERSP COMMS,M4C,2033377267,"44,342"
Department for Work and Pensions ,Employment Programmes,03/11/2014,WP JSA 25+ SUSTAINMENT OUTCOME PAYMENT,WWEG EP EAST LONDON CAREERS DEVELOPMENT GROUP,CAREERS DEVELOPMENT GROUP,2033367869,"44,290"
Department for Work and Pensions ,Employment Programmes,18/11/2014,WP JSA 25+ SUSTAINMENT OUTCOME PAYMENT,WWEG EP NORTH WEST GM CHES AND WARR G4S,G4S REGIONAL MANAGEMENT UK & I LTD,2033390167,"44,290"
Department for Work and Pensions ,Housing Benefits,14/11/2014,HOUSING BENEFIT ADMINISTRATION,HB ENGLAND,AMBER VALLEY BOROUGH COUNCIL,2033385581,"44,206"
Department for Work and Pensions ,Housing Benefits,14/11/2014,HOUSING BENEFIT ADMINISTRATION,HB ENGLAND,FENLAND DISTRICT COUNCIL,2033385426,"44,102"
Department for Work and Pensions ,Corporate,04/11/2014,CONTRACTORS & STAFF SUBSTITUTIONS,CIO ADC DIRECTOR,CAPITA BUSINESS SERVICES LTD,2033368233,"44,085"
Department for Work and Pensions ,Employment Programmes,19/11/2014,RESIDENTIAL TRAINING COSTS,WWEG EP DELIVERY WELFARE TO WORK PRODUCT SUPPORT,RNCB HEREFORD,2033394448,"43,997"
Department for Work and Pensions ,Employment Programmes,17/11/2014,WP JSA 25+ SUSTAINMENT OUTCOME PAYMENT,WWEG EP EAST LONDON CAREERS DEVELOPMENT GROUP,CAREERS DEVELOPMENT GROUP,2033388149,"43,860"
Department for Work and Pensions ,Housing Benefits,14/11/2014,HOUSING BENEFIT ADMINISTRATION,HB ENGLAND,CAMBRIDGE CITY COUNCIL,2033385553,"43,851"
Department for Work and Pensions ,Housing Benefits,14/11/2014,HOUSING BENEFIT ADMINISTRATION,HB ENGLAND,WELWYN HATFIELD DISTRICT COUNCIL,2033385378,"43,795"
Department for Work and Pensions ,Employment Programmes,20/11/2014,RESIDENTIAL TRAINING COSTS,WWEG EP DELIVERY WELFARE TO WORK PRODUCT SUPPORT,RNIB,2033395805,"43,627"
Department for Work and Pensions ,Corporate,18/11/2014,TREDDS APPS DEV MANDAYS,CHG VIRTUAL MACHINE ENVIRONMENT REPLACEMENT,HP ENTERPRISE SERVICES UK LTD,2033390141,"43,454"
Department for Work and Pensions ,Housing Benefits,14/11/2014,HOUSING BENEFIT ADMINISTRATION,HB ENGLAND,SOUTH KESTEVEN DISTRICT COUNCIL,2033385480,"43,446"
Department for Work and Pensions ,Employment Programmes,14/11/2014,WP JSA 25+ SUSTAINMENT OUTCOME PAYMENT,WWEG EP W MIDLANDS BIRM SOL BC FOURSTAR EMP AND SKILLS,EOS WORKS LTD,2033387145,"43,430"
Department for Work and Pensions ,Housing Benefits,14/11/2014,HOUSING BENEFIT ADMINISTRATION,HB ENGLAND,HARROGATE BOROUGH COUNCIL,2033385456,"43,388"
Department for Work and Pensions ,Housing Benefits,14/11/2014,HOUSING BENEFIT ADMINISTRATION,HB ENGLAND,CITY OF CARLISLE DISTRICT COUNCIL,2033385462,"43,303"
Department for Work and Pensions ,Child Maintenance and Enforcement Commission,28/11/2014,PROFESSIONAL SERVICES NON VAT RECOVERABLE,FAMILY SUPPORT SERVICES,THE TAVISTOCK CENTRE FOR COUPLE RELATIONSHIPS,1000224034,"43,300"
Department for Work and Pensions ,Corporate,07/11/2014,POSTAGE,OPS BEN DD SFSB WEMBLEY,ROYAL MAIL GROUP PLC,2033375395,"43,290"
Department for Work and Pensions ,Corporate,21/11/2014,NON PRIME PROPERTY COSTS,FG CD OPS ESTATES NON-PRIME COSTS,COPELAND BOROUGH COUNCIL,2033399005,"43,175"
Department for Work and Pensions ,Housing Benefits,14/11/2014,HOUSING BENEFIT ADMINISTRATION,HB ENGLAND,WATFORD BOROUGH COUNCIL,2033385575,"43,123"
Department for Work and Pensions ,Corporate,28/11/2014,PRIME FACILITY PRICE,FG CD TOMLINSON HOUSE,TELEREAL TRILLIUM,2033411343,"43,051"
Department for Work and Pensions ,Housing Benefits,14/11/2014,HOUSING BENEFIT ADMINISTRATION,HB ENGLAND,ASHFORD BOROUGH COUNCIL,2033385369,"43,035"
Department for Work and Pensions ,Employment Programmes,18/11/2014,WP JSA 25+ SUSTAINMENT OUTCOME PAYMENT,WWEG EP SOUTH EAST SURR SUSSX AND KENT G4S,G4S REGIONAL MANAGEMENT UK & I LTD,2033390167,"43,000"
Department for Work and Pensions ,Employment Programmes,24/11/2014,WP JSA 25+ SUSTAINMENT OUTCOME PAYMENT,WWEG EP EAST LONDON SEETEC,SEETEC BUSINESS TECHNOLOGY CENTRE LTD,2033402115,"43,000"
Department for Work and Pensions ,Housing Benefits,14/11/2014,HOUSING BENEFIT ADMINISTRATION,HB ENGLAND,WORCESTER CITY COUNCIL,2033385646,"42,859"
Department for Work and Pensions ,Employment Programmes,28/11/2014,WP JSA 25+ SUSTAINMENT OUTCOME PAYMENT,WWEG EP EAST LONDON SEETEC,SEETEC BUSINESS TECHNOLOGY CENTRE LTD,2033412848,"42,785"
Department for Work and Pensions ,Housing Benefits,14/11/2014,HOUSING BENEFIT ADMINISTRATION,HB ENGLAND,EREWASH BOROUGH COUNCIL,2033385453,"42,769"
Department for Work and Pensions ,Housing Benefits,14/11/2014,HOUSING BENEFIT ADMINISTRATION,HB ENGLAND,CHELTENHAM BOROUGH COUNCIL,2033385726,"42,742"
Department for Work and Pensions ,Housing Benefits,14/11/2014,HOUSING BENEFIT ADMINISTRATION,HB ENGLAND,REIGATE & BANSTEAD BOROUGH COUNCIL,2033385375,"42,675"
Department for Work and Pensions ,Housing Benefits,14/11/2014,HOUSING BENEFIT ADMINISTRATION,HB ENGLAND,TAUNTON DEANE BOROUGH COUNCIL,2033385642,"42,668"
Department for Work and Pensions ,Employment Programmes,28/11/2014,WP JSA 25+ SUSTAINMENT OUTCOME PAYMENT,WWEG EP WEST YORKSHIRE INGEUS UK,INGEUS UK LTD,2033413420,"42,570"
Department for Work and Pensions ,Housing Benefits,14/11/2014,HOUSING BENEFIT ADMINISTRATION,HB ENGLAND,WORTHING BOROUGH COUNCIL,2033385506,"42,536"
Department for Work and Pensions ,Housing Benefits,14/11/2014,HOUSING BENEFIT ADMINISTRATION,HB WALES,BLAENAU GWENT COUNTY BOROUGH COUNCIL,2033385609,"42,516"
Department for Work and Pensions ,Housing Benefits,14/11/2014,HOUSING BENEFIT ADMINISTRATION,HB ENGLAND,WYRE FOREST DISTRICT COUNCIL,2033385388,"42,407"
Department for Work and Pensions ,Corporate,06/11/2014,CONTRACTED OUT OFFICE SERVICES,CMG OPS CO SUPPORT CENTRALLY HELD NON PEOPLE,XEROX UK LTD 3W,2033372322,"42,310"
Department for Work and Pensions ,Housing Benefits,14/11/2014,HOUSING BENEFIT ADMINISTRATION,HB ENGLAND,GEDLING BOROUGH COUNCIL,2033385649,"42,146"
Department for Work and Pensions ,Employment Programmes,10/11/2014,WP JSA 25+ SUSTAINMENT OUTCOME PAYMENT,WWEG EP SCOTLAND WORKING LINKS,WORKING LINKS,2033376621,"42,140"
Department for Work and Pensions ,Housing Benefits,14/11/2014,HOUSING BENEFIT ADMINISTRATION,HB ENGLAND,MENDIP DISTRICT COUNCIL,2033385643,"41,904"
Department for Work and Pensions ,Housing Benefits,14/11/2014,HOUSING BENEFIT ADMINISTRATION,HB WALES,DENBIGHSHIRE COUNTY COUNCIL,2033385699,"41,869"
Department for Work and Pensions ,Housing Benefits,14/11/2014,HOUSING BENEFIT ADMINISTRATION,HB ENGLAND,GOSPORT BOROUGH COUNCIL,2033385395,"41,724"
Department for Work and Pensions ,Corporate,25/11/2014,STAFF TRAINING VAT RECOVERABLE,HR CONTRACTUAL L AND D,CAPITA CIVIL SERVICE LEARNING,2033405760,"41,694"
Department for Work and Pensions ,Housing Benefits,14/11/2014,HOUSING BENEFIT ADMINISTRATION,HB ENGLAND,GRAVESHAM BOROUGH COUNCIL,2033385719,"41,663"
Department for Work and Pensions ,Housing Benefits,14/11/2014,HOUSING BENEFIT ADMINISTRATION,HB ENGLAND,EAST STAFFORDSHIRE DISTRICT COUNCIL,2033385638,"41,595"
Department for Work and Pensions ,Employment Programmes,10/11/2014,WP JSA 25+ SUSTAINMENT OUTCOME PAYMENT,WWEG EP EAST OF ENGLAND SEETEC,SEETEC BUSINESS TECHNOLOGY CENTRE LTD,2033376867,"41,495"
Department for Work and Pensions ,Corporate,17/11/2014,RENEWALS OF SOFTWARE SUPPORT AND MAINTENANCE,CIO ITLR SOFTWARE CMG DEL P,SPECIALIST COMPUTER CENTRES PLC,2033388393,"41,445"
Department for Work and Pensions ,Corporate,11/11/2014,DESKTOP SERVICES,CIO ITLR DESKTOP,HP ENTERPRISE SERVICES UK LTD,2033378237,"41,432"
Department for Work and Pensions ,Corporate,24/11/2014,TREDDS APPS DEV FIXED PRICE CONTRACTS,CHG PIP RECURRENT,HP ENTERPRISE SERVICES UK LTD,2033401804,"41,323"
Department for Work and Pensions ,Employment Programmes,13/11/2014,WP JSA 25+ SUSTAINMENT OUTCOME PAYMENT,WWEG EP SOUTH EAST TV HANTS AND IOW A4E,A4E LTD,2033385154,"41,280"
Department for Work and Pensions ,Employment Programmes,21/11/2014,WP JSA 25+ SUSTAINMENT OUTCOME PAYMENT,WWEG EP WEST LONDON INGEUS UK,INGEUS UK LTD,2033399194,"41,280"
Department for Work and Pensions ,Housing Benefits,14/11/2014,HOUSING BENEFIT ADMINISTRATION,HB ENGLAND,HERTSMERE BOROUGH COUNCIL,2033385381,"41,191"
Department for Work and Pensions ,Housing Benefits,14/11/2014,HOUSING BENEFIT ADMINISTRATION,HB ENGLAND,GUILDFORD BOROUGH COUNCIL,2033385382,"41,190"
Department for Work and Pensions ,Employment Programmes,10/11/2014,WP JSA 25+ SUSTAINMENT OUTCOME PAYMENT,WWEG EP WEST LONDON MAXIMUS EMPLOYMENT UK,MAXIMUS EMPLOYMENT UK LTD,2033375862,"41,065"
Department for Work and Pensions ,Child Maintenance and Enforcement Commission,10/11/2014,PROFESSIONAL SERVICES NON VAT RECOVERABLE,FAMILY SUPPORT SERVICES,RESOLUTION,1000222126,"41,055"
Department for Work and Pensions ,Housing Benefits,14/11/2014,HOUSING BENEFIT ADMINISTRATION,HB ENGLAND,RUSHMOOR BOROUGH COUNCIL,2033385392,"40,951"
Department for Work and Pensions ,Employment Programmes,05/11/2014,WP JSA 25+ SUSTAINMENT OUTCOME PAYMENT,WWEG EP SCOTLAND WORKING LINKS,WORKING LINKS,2033370914,"40,850"
Department for Work and Pensions ,Housing Benefits,14/11/2014,HOUSING BENEFIT ADMINISTRATION,HB ENGLAND,EAST HERTFORDSHIRE DISTRICT COUNCIL,2033385564,"40,808"
Department for Work and Pensions ,Housing Benefits,14/11/2014,HOUSING BENEFIT ADMINISTRATION,HB ENGLAND,EAST DEVON DISTRICT COUNCIL,2033385443,"40,758"
Department for Work and Pensions ,Employment Programmes,12/11/2014,WP JSA 25+ SUSTAINMENT OUTCOME PAYMENT,WWEG EP NORTH WEST GM CHES AND WARR AVANTA ENTERPRISE,AVANTA ENTERPRISE LTD,2033380836,"40,635"
Department for Work and Pensions ,Employment Programmes,28/11/2014,WP JSA 25+ SUSTAINMENT OUTCOME PAYMENT,WWEG EP WEST LONDON MAXIMUS EMPLOYMENT UK,MAXIMUS EMPLOYMENT UK LTD,2033413378,"40,635"
Department for Work and Pensions ,Housing Benefits,14/11/2014,HOUSING BENEFIT ADMINISTRATION,HB ENGLAND,CANNOCK CHASE DISTRICT COUNCIL,2033385639,"40,276"
Department for Work and Pensions ,Housing Benefits,14/11/2014,HOUSING BENEFIT ADMINISTRATION,HB ENGLAND,NORTH DEVON DISTRICT COUNCIL,2033385441,"40,207"
Department for Work and Pensions ,Housing Benefits,14/11/2014,HOUSING BENEFIT ADMINISTRATION,HB ENGLAND,BRACKNELL FOREST BOROUGH COUNCIL,2033385669,"40,155"
Department for Work and Pensions ,Child Maintenance and Enforcement Commission,19/11/2014,TREDDS APPS DEV MANDAYS,NEW SCHEME TESTING,CAPGEMINI UK PLC,1000223022,"40,150"
Department for Work and Pensions ,Employment Programmes,21/11/2014,WP JSA 25+ SUSTAINMENT OUTCOME PAYMENT,WWEG EP WEST YORKSHIRE INGEUS UK,INGEUS UK LTD,2033399194,"39,990"
Department for Work and Pensions ,Housing Benefits,14/11/2014,HOUSING BENEFIT ADMINISTRATION,HB ENGLAND,WINDSOR & MAIDENHEAD BOROUGH COUNCIL,2033385386,"39,986"
Department for Work and Pensions ,Corporate,19/11/2014,COURIER COSTS,FG CD COURIER,TNT UK LTD,2033394037,"39,927"
Department for Work and Pensions ,Corporate,07/11/2014,NEW ENTERPRISE ALLOWANCE MENTOR MATCHING,OPS WDC WSD LN ESSEX DISTRICT OFFICE,IXION HOLDINGS LTD,2033375555,"39,766"
Department for Work and Pensions ,Corporate,12/11/2014,STAFF TRAINING VAT RECOVERABLE,HR CONTRACTUAL L AND D,CAPITA CIVIL SERVICE LEARNING,2033381453,"39,689"
Department for Work and Pensions ,Housing Benefits,14/11/2014,HOUSING BENEFIT ADMINISTRATION,HB ENGLAND,STEVENAGE BOROUGH COUNCIL,2033385380,"39,660"
Department for Work and Pensions ,Employment Programmes,06/11/2014,WP JSA 25+ JOB OUTCOME PAYMENTWP JSA 25+ JOB OUTCOME PAYMENT,WWEG EP NORTH WEST GM CHES AND WARR G4S,G4S REGIONAL MANAGEMENT UK & I LTD,2033374175,"39,564"
Department for Work and Pensions ,Employment Programmes,14/11/2014,WP JSA 25+ SUSTAINMENT OUTCOME PAYMENT,WWEG EP WEST YORKSHIRE INGEUS UK,INGEUS UK LTD,2033386377,"39,560"
Department for Work and Pensions ,Housing Benefits,14/11/2014,HOUSING BENEFIT ADMINISTRATION,HB ENGLAND,BROXBOURNE BOROUGH COUNCIL,2033385387,"39,442"
Department for Work and Pensions ,Housing Benefits,14/11/2014,HOUSING BENEFIT ADMINISTRATION,HB ENGLAND,WEST LANCASHIRE DISTRICT COUNCIL,2033385499,"39,375"
Department for Work and Pensions ,Corporate,06/11/2014,LOCAL WELFARE PROVISION GRANTS,CHG SINGLE FRAUD INVESTIGATION SERVICE,RHONDDA CYNON TAFF COUNTY BOROUGH COUNCIL,2033374090,"39,263"
Department for Work and Pensions ,European Social Fund,26/11/2014,MA ESF(D) PROGRAMME EXPENDITURE EC PREFUNDED L A's,WWEG EUROPEAN SOCIAL FUND PROGRAMME 2007-2013,WEST LINDSEY DISTRICT COUNCIL,5000001753,"39,224"
Department for Work and Pensions ,Corporate,11/11/2014,HOSTING GMS SERVICES,OPS OPE C&I IT WINTER FUEL,HP ENTERPRISE SERVICES UK LTD,2033378237,"39,219"
Department for Work and Pensions ,Employment Programmes,12/11/2014,SERVICE FEE,WWEG EP SUPPORT NOTTINGHAM,INGEUS UK LTD,2033381981,"39,214"
Department for Work and Pensions ,Employment Programmes,10/11/2014,WP JSA 25+ SUSTAINMENT OUTCOME PAYMENT,WWEG EP SOUTH EAST TV HANTS AND IOW MAXIMUS EMPLOYMENT,MAXIMUS EMPLOYMENT UK LTD,2033375862,"39,130"
Department for Work and Pensions ,Child Maintenance and Enforcement Commission,04/11/2014,OVERTIME,OSP DIRECTORS OFFICE,DSD GROUP ACCOUNT,1001864,"39,108"
Department for Work and Pensions ,Corporate,18/11/2014,TREDDS APPS DEV MANDAYS,CHG PIP ORG DESIGN & REASSESSMENT,HP ENTERPRISE SERVICES UK LTD,2033390141,"39,086"
Department for Work and Pensions ,Child Maintenance and Enforcement Commission,11/11/2014,PROFESSIONAL SERVICES NON VAT RECOVERABLE,FAMILY SUPPORT SERVICES,HOWELLS LLP,1000222244,"38,952"
Department for Work and Pensions ,Corporate,04/11/2014,OTHER CAPITAL GRANTS,CIO COO IT DIRECTOR,CAPITA BUSINESS SERVICES LTD,2033368233,"38,825"
Department for Work and Pensions ,Housing Benefits,14/11/2014,HOUSING BENEFIT ADMINISTRATION,HB ENGLAND,CORBY BOROUGH COUNCIL,2033385538,"38,793"
Department for Work and Pensions ,Housing Benefits,14/11/2014,HOUSING BENEFIT ADMINISTRATION,HB SCOTLAND,EAST LOTHIAN DISTRICT COUNCIL,2033385467,"38,616"
Department for Work and Pensions ,Housing Benefits,14/11/2014,HOUSING BENEFIT ADMINISTRATION,HB SCOTLAND,ARGYLL & BUTE COUNCIL,2033385541,"38,521"
Department for Work and Pensions ,Employment Programmes,20/11/2014,WP JSA 25+ SUSTAINMENT OUTCOME PAYMENT,WWEG EP SOUTH EAST TV HANTS AND IOW A4E,A4E LTD,2033396174,"38,485"
Department for Work and Pensions ,Child Maintenance and Enforcement Commission,18/11/2014,TREDDS APPS DEV MANDAYS,MI PROJECT TACTICAL,HP ENTERPRISE SERVICES UK LTD,1000222955,"38,376"
Department for Work and Pensions ,Employment Programmes,14/11/2014,WP JSA 25+ SUSTAINMENT OUTCOME PAYMENT,WWEG EP SOUTH EAST TV HANTS AND IOW MAXIMUS EMPLOYMENT,MAXIMUS EMPLOYMENT UK LTD,2033387144,"38,270"
Department for Work and Pensions ,Employment Programmes,18/11/2014,WP JSA 25+ SUSTAINMENT OUTCOME PAYMENT,WWEG EP S WEST DEV COR DOR AND SOM PROSPECTS SERVICES,PROSPECTS SERVICES LTD,2033391657,"38,270"
Department for Work and Pensions ,Corporate,06/11/2014,LOCAL WELFARE PROVISION GRANTS,CHG SINGLE FRAUD INVESTIGATION SERVICE,SWANSEA CITY COUNCIL,2033374089,"38,064"
Department for Work and Pensions ,Corporate,27/11/2014,HOUSING BENEFIT ADMINISTRATION,CHG REAL TIME INFORMATION,BIRMINGHAM CITY COUNCIL,2033407246,"37,996"
Department for Work and Pensions ,Housing Benefits,14/11/2014,HOUSING BENEFIT ADMINISTRATION,HB ENGLAND,CHICHESTER DISTRICT COUNCIL,2033385509,"37,962"
Department for Work and Pensions ,Housing Benefits,14/11/2014,HOUSING BENEFIT ADMINISTRATION,HB ENGLAND,NORTH NORFOLK DISTRICT COUNCIL,2033385470,"37,909"
Department for Work and Pensions ,Employment Programmes,27/11/2014,WP JSA 25+ SUSTAINMENT OUTCOME PAYMENT,WWEG EP SOUTH EAST TV HANTS AND IOW A4E,A4E LTD,2033410050,"37,840"
Department for Work and Pensions ,Corporate,06/11/2014,CIVIL SERVICE OCCUPATIONAL HEALTH SERVICE,HR OHS,OH ASSIST,2033372327,"37,661"
Department for Work and Pensions ,Housing Benefits,14/11/2014,HOUSING BENEFIT ADMINISTRATION,HB ENGLAND,STAFFORD BOROUGH COUNCIL,2033385530,"37,652"
Department for Work and Pensions ,Employment Programmes,24/11/2014,WP JSA 25+ SUSTAINMENT OUTCOME PAYMENT,WWEG EP SCOTLAND WORKING LINKS,WORKING LINKS,2033402773,"37,625"
Department for Work and Pensions ,Employment Programmes,06/11/2014,WP JSA 18-24 JOB SUSTAINMENT OUTCOME PAYMENT,WWEG EP NORTH WEST MERS HAL CUMB AND LANCS A4E,A4E LTD,2033372915,"37,570"
Department for Work and Pensions ,Housing Benefits,14/11/2014,HOUSING BENEFIT ADMINISTRATION,HB ENGLAND,TONBRIDGE & MALLING DISTRICT COUNCIL,2033385512,"37,522"
Department for Work and Pensions ,Housing Benefits,14/11/2014,HOUSING BENEFIT ADMINISTRATION,HB ENGLAND,EPPING FOREST DISTRICT COUNCIL,2033385407,"37,442"
Department for Work and Pensions ,Employment Programmes,14/11/2014,WP JSA 25+ SUSTAINMENT OUTCOME PAYMENT,WWEG EP WEST LONDON MAXIMUS EMPLOYMENT UK,MAXIMUS EMPLOYMENT UK LTD,2033387144,"37,410"
Department for Work and Pensions ,Employment Programmes,17/11/2014,WP JSA 25+ SUSTAINMENT OUTCOME PAYMENT,WWEG EP EAST LONDON SEETEC,SEETEC BUSINESS TECHNOLOGY CENTRE LTD,2033389124,"37,410"
Department for Work and Pensions ,Housing Benefits,14/11/2014,HOUSING BENEFIT ADMINISTRATION,HB ENGLAND,ALLERDALE DISTRICT COUNCIL,2033385487,"37,405"
Department for Work and Pensions ,Corporate,18/11/2014,NON-TREDDS IS IT APPS DEV MANDAY,CHG SCANNING & DIGITAL STORAGE,IBM UNITED KINGDOM LTD,2033391550,"37,335"
Department for Work and Pensions ,Employment Programmes,04/11/2014,WP JSA 25+ SUSTAINMENT OUTCOME PAYMENT,WWEG EP NORTH WEST GM CHES AND WARR SEETEC,SEETEC BUSINESS TECHNOLOGY CENTRE LTD,2033368036,"37,195"
Department for Work and Pensions ,Corporate,27/11/2014,NON-TREDDS IS IT SERVICES (HOSTING),CIO ITLR HOSTING DEL P,HMRC,2033409437,"37,131"
Department for Work and Pensions ,Housing Benefits,14/11/2014,HOUSING BENEFIT ADMINISTRATION,HB ENGLAND,WARWICK DISTRICT COUNCIL,2033385529,"37,091"
Department for Work and Pensions ,Employment Programmes,06/11/2014,WP JSA 18-24 JOB SUSTAINMENT OUTCOME PAYMENT,WWEG EP EAST OF ENGLAND SEETEC,SEETEC BUSINESS TECHNOLOGY CENTRE LTD,2033372508,"36,890"
Department for Work and Pensions ,Housing Benefits,14/11/2014,HOUSING BENEFIT ADMINISTRATION,HB ENGLAND,NEWARK DISTRICT COUNCIL,2033385688,"36,814"
Department for Work and Pensions ,Employment Programmes,06/11/2014,WP JSA 25+ SUSTAINMENT OUTCOME PAYMENT,WWEG EP NORTH WEST GM CHES AND WARR AVANTA ENTERPRISE,AVANTA ENTERPRISE LTD,2033372151,"36,765"
Department for Work and Pensions ,Employment Programmes,28/11/2014,WP JSA 25+ SUSTAINMENT OUTCOME PAYMENT,WWEG EP S WEST GLOS WILTS AND W OF E JHP GROUP,LEARNDIRECT LTD,2033411938,"36,765"
Department for Work and Pensions ,Housing Benefits,14/11/2014,HOUSING BENEFIT ADMINISTRATION,HB ENGLAND,TUNBRIDGE WELLS BOROUGH COUNCIL,2033385511,"36,741"
Department for Work and Pensions ,Employment Programmes,05/11/2014,ESF 2011-13 SUPPORT FOR FAMILIES WITH MULTIPLE PROBLEMS JSA CUSTOMERS JOB OUTCOME PAYMENT,CPA8 SOUTH EAST SKILLS TRAINING UK,SKILLS TRAINING UK LIMITED,2033369394,"36,692"
Department for Work and Pensions ,Housing Benefits,14/11/2014,HOUSING BENEFIT ADMINISTRATION,HB ENGLAND,WEALDEN DISTRICT COUNCIL,2033385411,"36,583"
Department for Work and Pensions ,Employment Programmes,04/11/2014,WP JSA 25+ SUSTAINMENT OUTCOME PAYMENT,WWEG EP NORTH EAST AVANTA ENTERPRISE,AVANTA ENTERPRISE LTD,2033368140,"36,550"
Department for Work and Pensions ,Employment Programmes,06/11/2014,WP JSA 18-24 JOB SUSTAINMENT OUTCOME PAYMENT,WWEG EP SCOTLAND WORKING LINKS,WORKING LINKS,2033373696,"36,550"
Department for Work and Pensions ,Employment Programmes,06/11/2014,WP JSA 25+ SUSTAINMENT OUTCOME PAYMENT,WWEG EP W MIDLANDS BIRM SOL BC NEWCASTLE COLLEGE GROUP,NEWCASTLE COLLEGE GROUP,2033372038,"36,120"
Department for Work and Pensions ,Employment Programmes,17/11/2014,WP JSA 25+ SUSTAINMENT OUTCOME PAYMENT,WWEG EP EAST OF ENGLAND SEETEC,SEETEC BUSINESS TECHNOLOGY CENTRE LTD,2033389124,"36,120"
Department for Work and Pensions ,Housing Benefits,14/11/2014,HOUSING BENEFIT ADMINISTRATION,HB ENGLAND,SOUTH NORFOLK DISTRICT COUNCIL,2033385691,"36,054"
Department for Work and Pensions ,Housing Benefits,14/11/2014,HOUSING BENEFIT ADMINISTRATION,HB ENGLAND,EASTLEIGH BOROUGH COUNCIL,2033385397,"36,037"
Department for Work and Pensions ,Housing Benefits,14/11/2014,HOUSING BENEFIT ADMINISTRATION,HB SCOTLAND,MIDLOTHIAN COUNCIL,2033385555,"36,018"
Department for Work and Pensions ,Housing Benefits,14/11/2014,HOUSING BENEFIT ADMINISTRATION,HB ENGLAND,ELMBRIDGE BOROUGH COUNCIL,2033385677,"35,969"
Department for Work and Pensions ,Employment Programmes,17/11/2014,WP JSA 25+ SUSTAINMENT OUTCOME PAYMENT,WWEG EP WEST LONDON REED IN PARTNERSHIP,REED IN PARTNERSHIP LTD,2033389417,"35,905"
Department for Work and Pensions ,Employment Programmes,04/11/2014,WP JSA 25+ SUSTAINMENT OUTCOME PAYMENT,WWEG EP SCOTLAND WORKING LINKS,WORKING LINKS,2033368514,"35,905"
Department for Work and Pensions ,Housing Benefits,14/11/2014,HOUSING BENEFIT ADMINISTRATION,HB ENGLAND,CHORLEY BOROUGH COUNCIL,2033385504,"35,869"
Department for Work and Pensions ,Housing Benefits,14/11/2014,HOUSING BENEFIT ADMINISTRATION,HB ENGLAND,TEST VALLEY BOROUGH COUNCIL,2033385745,"35,769"
Department for Work and Pensions ,Child Maintenance and Enforcement Commission,05/11/2014,APPS DEV INDEX ARR,LEGACY RELEASE 22,HP ENTERPRISE SERVICES UK LTD,1000221759,"35,751"
Department for Work and Pensions ,Employment Programmes,21/11/2014,WP JSA 25+ SUSTAINMENT OUTCOME PAYMENT,WWEG EP NORTH EAST INGEUS UK,INGEUS UK LTD,2033399194,"35,690"
Department for Work and Pensions ,Housing Benefits,14/11/2014,HOUSING BENEFIT ADMINISTRATION,HB ENGLAND,ST EDMUNDSBURY BOROUGH COUNCIL,2033385412,"35,585"
Department for Work and Pensions ,Housing Benefits,14/11/2014,HOUSING BENEFIT ADMINISTRATION,HB ENGLAND,KETTERING BOROUGH COUNCIL,2033385460,"35,504"
Department for Work and Pensions ,Employment Programmes,19/11/2014,WP JSA 25+ SUSTAINMENT OUTCOME PAYMENT,WWEG EP SOUTH EAST SURR SUSSX AND KENT AVANTA ENTERPRISE,AVANTA ENTERPRISE LTD,2033395551,"35,475"
Department for Work and Pensions ,Housing Benefits,14/11/2014,HOUSING BENEFIT ADMINISTRATION,HB ENGLAND,RUGBY BOROUGH COUNCIL,2033385518,"35,340"
Department for Work and Pensions ,Employment Programmes,06/11/2014,WP JSA 25+ JOB OUTCOME PAYMENTWP JSA 25+ JOB OUTCOME PAYMENT,WWEG EP W MIDLANDS COV WARW STAFFS AND MARCHES SERCO,SERCO LTD,2033373267,"35,160"
Department for Work and Pensions ,Employment Programmes,24/11/2014,WP JSA 25+ SUSTAINMENT OUTCOME PAYMENT,WWEG EP SOUTH EAST SURR SUSSX AND KENT G4S,G4S REGIONAL MANAGEMENT UK & I LTD,2033402203,"35,045"
Department for Work and Pensions ,Employment Programmes,03/11/2014,WP JSA 25+ SUSTAINMENT OUTCOME PAYMENT,WWEG EP W MIDLANDS BIRM SOL BC NEWCASTLE COLLEGE GROUP,NEWCASTLE COLLEGE GROUP,2033366752,"35,045"
Department for Work and Pensions ,Housing Benefits,14/11/2014,HOUSING BENEFIT ADMINISTRATION,HB ENGLAND,WYCHAVON DISTRICT COUNCIL,2033385414,"34,923"
Department for Work and Pensions ,Corporate,25/11/2014,NON-TREDDS IS IT APPS DEV MANDAY,CHG UC DESIGN & BUILD PROGRAMME MANAGER,ACCENTURE UK LTD,2033403633,"34,902"
Department for Work and Pensions ,Employment Programmes,25/11/2014,WP JSA 25+ SUSTAINMENT OUTCOME PAYMENT,WWEG EP SOUTH EAST SURR SUSSX AND KENT G4S,G4S REGIONAL MANAGEMENT UK & I LTD,2033404641,"34,830"
Department for Work and Pensions ,Employment Programmes,21/11/2014,ACCESS TO WORK - PAYMENT FOR SUPPORT WORKERS,WWEG EP LONDON REGION,SOUTH WEST LONDON & ST GEORGES NHS TRUST,2033398668,"34,702"
Department for Work and Pensions ,Corporate,17/11/2014,RENEWALS OF SOFTWARE SUPPORT AND MAINTENANCE,CHG SCANNING & DIGITAL STORAGE,SPECIALIST COMPUTER CENTRES PLC,2033388393,"34,675"
Department for Work and Pensions ,Employment Programmes,11/11/2014,WP JSA 25+ SUSTAINMENT OUTCOME PAYMENT,WWEG EP W MIDLANDS BIRM SOL BC FOURSTAR EMP AND SKILLS,EOS WORKS LTD,2033378740,"34,615"
Department for Work and Pensions ,Employment Programmes,10/11/2014,WP JSA 25+ SUSTAINMENT OUTCOME PAYMENT,WWEG EP EAST LONDON SEETEC,SEETEC BUSINESS TECHNOLOGY CENTRE LTD,2033376867,"34,615"
Department for Work and Pensions ,Employment Programmes,26/11/2014,WP JSA 25+ SUSTAINMENT OUTCOME PAYMENT,WWEG EP EAST OF ENGLAND SEETEC,SEETEC BUSINESS TECHNOLOGY CENTRE LTD,2033406480,"34,615"
Department for Work and Pensions ,Employment Programmes,06/11/2014,WP JSA 25+ SUSTAINMENT OUTCOME PAYMENT,WWEG EP W MIDLANDS COV WARW STAFFS AND MARCHES SERCO,SERCO LTD,2033373267,"34,615"
Department for Work and Pensions ,Housing Benefits,14/11/2014,HOUSING BENEFIT ADMINISTRATION,HB ENGLAND,SUFFOLK COASTAL DISTRICT COUNCIL,2033385678,"34,564"
Department for Work and Pensions ,Housing Benefits,14/11/2014,HOUSING BENEFIT ADMINISTRATION,HB ENGLAND,STRATFORD ON AVON DISTRICT COUNCIL,2033385517,"34,510"
Department for Work and Pensions ,Housing Benefits,14/11/2014,HOUSING BENEFIT ADMINISTRATION,HB ENGLAND,WEYMOUTH & PORTLAND BOROUGH COUNCIL,2033385419,"34,451"
Department for Work and Pensions ,Employment Programmes,06/11/2014,WP JSA 25+ SUSTAINMENT OUTCOME PAYMENT,WWEG EP W MIDLANDS COV WARW STAFFS AND MARCHES ESG,ESG HOLDINGS LIMITED,2033371670,"34,400"
Department for Work and Pensions ,Employment Programmes,06/11/2014,WP JSA 25+ SUSTAINMENT OUTCOME PAYMENT,WWEG EP S WEST GLOS WILTS AND W OF E JHP GROUP,LEARNDIRECT LTD,2033374487,"34,400"
Department for Work and Pensions ,Corporate,12/11/2014,NEW ENTERPRISE ALLOWANCE MENTOR MATCHING,OPS WDC WSD SE GREATER WESSEX DISTRICT OFFICE,OUTSET CIC,2033381144,"34,358"
Department for Work and Pensions ,Housing Benefits,14/11/2014,HOUSING BENEFIT ADMINISTRATION,HB ENGLAND,WEST LINDSEY DISTRICT COUNCIL,2033385479,"34,331"
Department for Work and Pensions ,Corporate,19/11/2014,STAFF TRAINING VAT RECOVERABLE,HR CONTRACTUAL L AND D,CAPITA CIVIL SERVICE LEARNING,2033395269,"34,268"
Department for Work and Pensions ,Housing Benefits,14/11/2014,HOUSING BENEFIT ADMINISTRATION,HB ENGLAND,ROTHER DISTRICT COUNCIL,2033385417,"34,268"
Department for Work and Pensions ,Corporate,18/11/2014,SOFTWARE LICENCES,CHG DIGITAL JOBCENTRES,SPECIALIST COMPUTER CENTRES PLC,2033390228,"34,258"
Department for Work and Pensions ,Corporate,28/11/2014,VALUATION OFFICE,OPS BEN DD YORKSHIRE BC (QH),VALUATION OFFICE AGENCY,2033412576,"34,240"
Department for Work and Pensions ,Employment Programmes,27/11/2014,WP JSA 25+ SUSTAINMENT OUTCOME PAYMENT,WWEG EP SOUTH EAST SURR SUSSX AND KENT AVANTA ENTERPRISE,AVANTA ENTERPRISE LTD,2033409104,"34,185"
Department for Work and Pensions ,Employment Programmes,28/11/2014,WP JSA 25+ SUSTAINMENT OUTCOME PAYMENT,WWEG EP SOUTH EAST TV HANTS AND IOW MAXIMUS EMPLOYMENT,MAXIMUS EMPLOYMENT UK LTD,2033413378,"34,185"
Department for Work and Pensions ,Housing Benefits,14/11/2014,HOUSING BENEFIT ADMINISTRATION,HB ENGLAND,BOROUGH OF WELLINGBOROUGH,2033385458,"34,179"
Department for Work and Pensions ,Employment Programmes,06/11/2014,ESF 2011-13 SUPPORT FOR FAMILIES WITH MULTIPLE PROBLEMS JSA CUSTOMERS JOB OUTCOME PAYMENT,CPA6 GTR MAN CHES WARR EXC HAL G4S CARE AND JUSTICE SERV,G4S REGIONAL MANAGEMENT UK & I LTD,2033374175,"34,085"
Department for Work and Pensions ,Employment Programmes,06/11/2014,WP JSA 25+ SUSTAINMENT OUTCOME PAYMENT,WWEG EP SOUTH YORKSHIRE A4E,A4E LTD,2033372915,"33,970"
Department for Work and Pensions ,Housing Benefits,14/11/2014,HOUSING BENEFIT ADMINISTRATION,HB ENGLAND,HIGH PEAK BOROUGH COUNCIL,2033385452,"33,855"
Department for Work and Pensions ,Corporate,13/11/2014,STAFF TRAINING VAT RECOVERABLE,CIO SECURITY IMPROVEMENT PROGRAMME,CAPITA CIVIL SERVICE LEARNING,2033384141,"33,782"
Department for Work and Pensions ,Housing Benefits,14/11/2014,HOUSING BENEFIT ADMINISTRATION,HB ENGLAND,LEWES DISTRICT COUNCIL,2033385704,"33,774"
Department for Work and Pensions ,Employment Programmes,28/11/2014,WP JSA 25+ SUSTAINMENT OUTCOME PAYMENT,WWEG EP EAST LONDON CAREERS DEVELOPMENT GROUP,CAREERS DEVELOPMENT GROUP,2033411180,"33,755"
Department for Work and Pensions ,Employment Programmes,03/11/2014,WP JSA 25+ SUSTAINMENT OUTCOME PAYMENT,WWEG EP SOUTH EAST SURR SUSSX AND KENT G4S,G4S REGIONAL MANAGEMENT UK & I LTD,2033367009,"33,755"
Department for Work and Pensions ,Employment Programmes,03/11/2014,WP JSA 25+ SUSTAINMENT OUTCOME PAYMENT,WWEG EP EAST OF ENGLAND SEETEC,SEETEC BUSINESS TECHNOLOGY CENTRE LTD,2033366643,"33,755"
Department for Work and Pensions ,Employment Programmes,05/11/2014,WP JSA 25+ SUSTAINMENT OUTCOME PAYMENT,WWEG EP EAST LONDON SEETEC,SEETEC BUSINESS TECHNOLOGY CENTRE LTD,2033370567,"33,755"
Department for Work and Pensions ,Housing Benefits,14/11/2014,HOUSING BENEFIT ADMINISTRATION,HB ENGLAND,DARTFORD BOROUGH COUNCIL,2033385692,"33,617"
Department for Work and Pensions ,Housing Benefits,14/11/2014,HOUSING BENEFIT ADMINISTRATION,HB ENGLAND,BROXTOWE BOROUGH COUNCIL,2033385650,"33,592"
Department for Work and Pensions ,Housing Benefits,14/11/2014,HOUSING BENEFIT ADMINISTRATION,HB ENGLAND,SOUTH RIBBLE BOROUGH COUNCIL C,2033385500,"33,436"
Department for Work and Pensions ,Employment Programmes,10/11/2014,WP JSA 25+ SUSTAINMENT OUTCOME PAYMENT,WWEG EP SOUTH EAST SURR SUSSX AND KENT AVANTA ENTERPRISE,AVANTA ENTERPRISE LTD,2033376841,"33,325"
Department for Work and Pensions ,Employment Programmes,14/11/2014,WP JSA 25+ SUSTAINMENT OUTCOME PAYMENT,WWEG EP NORTH WEST GM CHES AND WARR AVANTA ENTERPRISE,AVANTA ENTERPRISE LTD,2033386314,"33,325"
Department for Work and Pensions ,Employment Programmes,06/11/2014,WP JSA 25+ SUSTAINMENT OUTCOME PAYMENT,WWEG EP WEST LONDON REED IN PARTNERSHIP,REED IN PARTNERSHIP LTD,2033372683,"33,325"
Department for Work and Pensions ,Child Maintenance and Enforcement Commission,24/11/2014,OVERTIME,DEBT ENF AREA MANAGEMENT OFFICE,DSD GROUP ACCOUNT,1001886,"33,275"
Department for Work and Pensions ,Corporate,12/11/2014,FSF - PARTNERSHIP GRANTS - TO HELP JSA CLIENTS INTO WORK,OPS WDC WSD SC PETERHEAD JOBCENTRE PLUS,ABERDEENSHIRE COUNCIL,2033381262,"33,260"
Department for Work and Pensions ,Housing Benefits,14/11/2014,HOUSING BENEFIT ADMINISTRATION,HB ENGLAND,BOROUGH OF REDDITCH,2033385389,"33,223"
Department for Work and Pensions ,Housing Benefits,14/11/2014,HOUSING BENEFIT ADMINISTRATION,HB ENGLAND,ST ALBANS DISTRICT COUNCIL,2033385527,"33,133"
Department for Work and Pensions ,Employment Programmes,25/11/2014,WP JSA 25+ SUSTAINMENT OUTCOME PAYMENT,WWEG EP EAST LONDON CAREERS DEVELOPMENT GROUP,CAREERS DEVELOPMENT GROUP,2033405277,"33,110"
Department for Work and Pensions ,Employment Programmes,06/11/2014,WP JSA 25+ SUSTAINMENT OUTCOME PAYMENT,WWEG EP WALES WORKING LINKS WALES,WORKING LINKS,2033373696,"33,110"
Department for Work and Pensions ,Corporate,17/11/2014,PROFESSIONAL ADVICE & OPINION VAT RECOVERABLE,STR LEGAL SERVICES,DLA PIPER UK LLP,1006804,"33,035"
Department for Work and Pensions ,Housing Benefits,14/11/2014,HOUSING BENEFIT ADMINISTRATION,HB ENGLAND,WEST DORSET DISTRICT COUNCIL,2033385420,"33,011"
Department for Work and Pensions ,Housing Benefits,14/11/2014,HOUSING BENEFIT ADMINISTRATION,HB ENGLAND,MID SUSSEX DISTRICT COUNCIL,2033385720,"33,004"
Department for Work and Pensions ,Employment Programmes,25/11/2014,Youth Contract Wage Incentive Payment,WWEG EP JCP WAGE INCENTIVES,REDCAR & CLEVELAND BOROUGH  COUNCIL,2033404758,"32,988"
Department for Work and Pensions ,Employment Programmes,21/11/2014,WP JSA 25+ SUSTAINMENT OUTCOME PAYMENT,WWEG EP NORTH EAST AVANTA ENTERPRISE,AVANTA ENTERPRISE LTD,2033396659,"32,895"
Department for Work and Pensions ,Employment Programmes,03/11/2014,WP JSA 25+ SUSTAINMENT OUTCOME PAYMENT,WWEG EP NORTH WEST GM CHES AND WARR G4S,G4S REGIONAL MANAGEMENT UK & I LTD,2033367009,"32,895"
Department for Work and Pensions ,Corporate,05/11/2014,PUBLICITY TRANS/ALT,HR FAST STREAM,ACTION ON HEARING LOSS,2033370343,"32,894"
Department for Work and Pensions ,Housing Benefits,14/11/2014,HOUSING BENEFIT ADMINISTRATION,HB ENGLAND,VALE OF WHITE HORSE DISTRICT COUNCIL,2033385686,"32,776"
Department for Work and Pensions ,Employment Programmes,14/11/2014,WP JSA 25+ SUSTAINMENT OUTCOME PAYMENT,WWEG EP SOUTH EAST SURR SUSSX AND KENT AVANTA ENTERPRISE,AVANTA ENTERPRISE LTD,2033386314,"32,680"
Department for Work and Pensions ,Corporate,11/11/2014,TREDDS APPS DEV FIXED PRICE CONTRACTS,CHG ELECTRONIC SIGNING,HP ENTERPRISE SERVICES UK LTD,2033378235,"32,680"
Department for Work and Pensions ,Employment Programmes,06/11/2014,WP JSA 18-24 JOB SUSTAINMENT OUTCOME PAYMENT,WWEG EP WEST YORKSHIRE BEST LTD,INTERSERVE WORKING FUTURES,2033371429,"32,640"
Department for Work and Pensions ,Employment Programmes,18/11/2014,ACCESS TO WORK - PAYMENT FOR SUPPORT WORKERS,WWEG EP NORTH WEST,SIGN COMMUNICATIONS,2033391869,"32,632"
Department for Work and Pensions ,Corporate,13/11/2014,"FURNITURE, FIXTURES & FITTINGS (NON-PRIME)",CHG UC DESIGN & BUILD PROGRAMME MANAGER,SENATOR INTERNATIONAL LTD,2033382788,"32,601"
Department for Work and Pensions ,Housing Benefits,14/11/2014,HOUSING BENEFIT ADMINISTRATION,HB ENGLAND,SOUTH OXFORDSHIRE DISTRICT COUNCIL,2033385687,"32,598"
Department for Work and Pensions ,Housing Benefits,14/11/2014,HOUSING BENEFIT ADMINISTRATION,HB ENGLAND,SEVENOAKS DISTRICT COUNCIL,2033385514,"32,570"
Department for Work and Pensions ,Employment Programmes,05/11/2014,WP JSA 25+ SUSTAINMENT OUTCOME PAYMENT,WWEG EP EAST OF ENGLAND SEETEC,SEETEC BUSINESS TECHNOLOGY CENTRE LTD,2033370567,"32,465"
Department for Work and Pensions ,Employment Programmes,25/11/2014,WP JSA 25+ SUSTAINMENT OUTCOME PAYMENT,WWEG EP NORTH WEST GM CHES AND WARR SEETEC,SEETEC BUSINESS TECHNOLOGY CENTRE LTD,2033403622,"32,465"
Department for Work and Pensions ,Employment Programmes,06/11/2014,WP JSA 18-24 JOB SUSTAINMENT OUTCOME PAYMENT,WWEG EP EAST OF ENGLAND INGEUS UK,INGEUS UK LTD,2033373546,"32,300"
Department for Work and Pensions ,Housing Benefits,14/11/2014,HOUSING BENEFIT ADMINISTRATION,HB ENGLAND,HORSHAM DISTRICT COUNCIL,2033385507,"32,091"
Department for Work and Pensions ,Corporate,21/11/2014,NEW ENTERPRISE ALLOWANCE MENTOR MATCHING,OPS WDC WSD NW MERSEYSIDE DISTRICT OFFICE,ST HELENS CHAMBERS LTD,2033398890,"32,040"
Department for Work and Pensions ,Corporate,18/11/2014,AMS STAT MANDAYS,CIO ITLR AMS,HP ENTERPRISE SERVICES UK LTD,2033390141,"31,852"
Department for Work and Pensions ,Corporate,03/11/2014,GENERAL OFFICE EXPENSES VAT RECOVERABLE,CHG ERSP COMMS,THE PENSIONS ADVISORY SERVICE,1006778,"31,845"
Department for Work and Pensions ,Employment Programmes,10/11/2014,WP JSA 25+ SUSTAINMENT OUTCOME PAYMENT,WWEG EP NORTH EAST AVANTA ENTERPRISE,AVANTA ENTERPRISE LTD,2033376841,"31,820"
Department for Work and Pensions ,Employment Programmes,10/11/2014,WP JSA 25+ SUSTAINMENT OUTCOME PAYMENT,WWEG EP NORTH WEST GM CHES AND WARR G4S,G4S REGIONAL MANAGEMENT UK & I LTD,2033377300,"31,820"
Department for Work and Pensions ,Employment Programmes,06/11/2014,WP JSA 18-24 JOB SUSTAINMENT OUTCOME PAYMENT,WWEG EP EAST MIDLANDS INGEUS UK,INGEUS UK LTD,2033373546,"31,620"
Department for Work and Pensions ,Employment Programmes,27/11/2014,WP JSA 25+ SUSTAINMENT OUTCOME PAYMENT,WWEG EP EAST LONDON CAREERS DEVELOPMENT GROUP,CAREERS DEVELOPMENT GROUP,2033410788,"31,605"
Department for Work and Pensions ,Employment Programmes,24/11/2014,WP JSA 25+ SUSTAINMENT OUTCOME PAYMENT,WWEG EP NORTH WEST GM CHES AND WARR G4S,G4S REGIONAL MANAGEMENT UK & I LTD,2033402203,"31,605"
Department for Work and Pensions ,Employment Programmes,28/11/2014,WP JSA 25+ SUSTAINMENT OUTCOME PAYMENT,WWEG EP W MIDLANDS BIRM SOL BC PERTEMPS,PERTEMPS,2033413140,"31,605"
Department for Work and Pensions ,Housing Benefits,14/11/2014,HOUSING BENEFIT ADMINISTRATION,HB WALES,MERTHYR TYDFIL BOROUGH COUNCIL,2033385477,"31,534"
Department for Work and Pensions ,Employment Programmes,06/11/2014,WP JSA 25+ SUSTAINMENT OUTCOME PAYMENT,WWEG EP W MIDLANDS BIRM SOL BC PERTEMPS,PERTEMPS,2033371641,"31,390"
Department for Work and Pensions ,Housing Benefits,14/11/2014,HOUSING BENEFIT ADMINISTRATION,HB ENGLAND,BOSTON BOROUGH COUNCIL,2033385482,"31,374"
Department for Work and Pensions ,Employment Programmes,12/11/2014,SERVICE FEE,WWEG EP SUPPORT GLASGOW,REED IN PARTNERSHIP LTD,2033380615,"31,165"
Department for Work and Pensions ,Housing Benefits,14/11/2014,HOUSING BENEFIT ADMINISTRATION,HB ENGLAND,SOUTH CAMBRIDGESHIRE DISTRICT COUNCIL,2033385495,"31,048"
Department for Work and Pensions ,Employment Programmes,05/11/2014,WP JSA 25+ SUSTAINMENT OUTCOME PAYMENT,WWEG EP NORTH EAST AVANTA ENTERPRISE,AVANTA ENTERPRISE LTD,2033369218,"30,960"
Department for Work and Pensions ,Employment Programmes,12/11/2014,WP JSA 25+ SUSTAINMENT OUTCOME PAYMENT,WWEG EP NORTH EAST AVANTA ENTERPRISE,AVANTA ENTERPRISE LTD,2033380836,"30,960"
Department for Work and Pensions ,Employment Programmes,05/11/2014,WP JSA 25+ SUSTAINMENT OUTCOME PAYMENT,WWEG EP NORTH WEST GM CHES AND WARR SEETEC,SEETEC BUSINESS TECHNOLOGY CENTRE LTD,2033370567,"30,960"
Department for Work and Pensions ,Housing Benefits,14/11/2014,HOUSING BENEFIT ADMINISTRATION,HB ENGLAND,NORTH EAST DERBYSHIRE DISTRICT COUNCIL,2033385451,"30,911"
Department for Work and Pensions ,Housing Benefits,14/11/2014,HOUSING BENEFIT ADMINISTRATION,HB ENGLAND,FOREST OF DEAN DISTRICT COUNCIL,2033385402,"30,901"
Department for Work and Pensions ,Housing Benefits,14/11/2014,HOUSING BENEFIT ADMINISTRATION,HB ENGLAND,BROADLAND DISTRICT COUNCIL,2033385472,"30,878"
Department for Work and Pensions ,Housing Benefits,14/11/2014,HOUSING BENEFIT ADMINISTRATION,HB ENGLAND,STROUD DISTRICT COUNCIL,2033385401,"30,865"
Department for Work and Pensions ,Housing Benefits,14/11/2014,HOUSING BENEFIT ADMINISTRATION,HB ENGLAND,EAST HAMPSHIRE DISTRICT COUNCIL,2033385398,"30,775"
Department for Work and Pensions ,Employment Programmes,06/11/2014,WP JSA NEET SUSTAINMENT OUTCOME PAYMENT,WWEG EP EAST MIDLANDS A4E,A4E LTD,2033372915,"30,750"
Department for Work and Pensions ,Employment Programmes,03/11/2014,WP JSA 25+ SUSTAINMENT OUTCOME PAYMENT,WWEG EP WEST LONDON REED IN PARTNERSHIP,REED IN PARTNERSHIP LTD,2033367958,"30,745"
Department for Work and Pensions ,Employment Programmes,21/11/2014,WP JSA 25+ SUSTAINMENT OUTCOME PAYMENT,WWEG EP WALES WORKING LINKS WALES,WORKING LINKS,2033399198,"30,745"
Department for Work and Pensions ,Housing Benefits,14/11/2014,HOUSING BENEFIT ADMINISTRATION,HB ENGLAND,BOLSOVER DISTRICT COUNCIL,2033385727,"30,737"
Department for Work and Pensions ,Housing Benefits,14/11/2014,HOUSING BENEFIT ADMINISTRATION,HB SCOTLAND,THE MORAY COUNCIL,2033385568,"30,731"
Department for Work and Pensions ,Corporate,19/11/2014,FSF - PARTNERSHIP GRANTS - TO HELP JSA CLIENTS INTO WORK,CHG UC LABOUR MARKET STRATEGY & DESIGN,TIMEWISE FOUNDATION,2033394792,"30,673"
Department for Work and Pensions ,Corporate,28/11/2014,FSF - SUPPORT CONTRACT MODULES FOR JSA JOBSEEKERS,OPS WDC WSD CE EMPLOYER AND PARTNERSHIPS MIDLAND SHIRES,LEARNDIRECT LTD,2033413620,"30,656"
Department for Work and Pensions ,Corporate,11/11/2014,TREDDS APPS DEV MANDAYS,CHG ANNUAL VERIFICATION (CONDITIONALITY),HP ENTERPRISE SERVICES UK LTD,2033378237,"30,616"
Department for Work and Pensions ,Housing Benefits,14/11/2014,HOUSING BENEFIT ADMINISTRATION,HB ENGLAND,WOKING BOROUGH COUNCIL,2033385521,"30,550"
Department for Work and Pensions ,Employment Programmes,18/11/2014,WP JSA 25+ SUSTAINMENT OUTCOME PAYMENT,WWEG EP NORTH WEST GM CHES AND WARR AVANTA ENTERPRISE,AVANTA ENTERPRISE LTD,2033391123,"30,530"
Department for Work and Pensions ,Corporate,06/11/2014,FSF - TRAINING PAYMENTS TO PROVIDERS - JSA JOBSEEKERS,OPS WDC WSD CE DERBYSHIRE DISTRICT OFFICE,TBG LEARNING LTD,2033371609,"30,375"
Department for Work and Pensions ,Housing Benefits,14/11/2014,HOUSING BENEFIT ADMINISTRATION,HB ENGLAND,SPELTHORNE BOROUGH COUNCIL,2033385373,"30,324"
Department for Work and Pensions ,Employment Programmes,28/11/2014,WP JSA 25+ SUSTAINMENT OUTCOME PAYMENT,WWEG EP NORTH WEST GM CHES AND WARR SEETEC,SEETEC BUSINESS TECHNOLOGY CENTRE LTD,2033412848,"30,315"
Department for Work and Pensions ,Housing Benefits,14/11/2014,HOUSING BENEFIT ADMINISTRATION,HB ENGLAND,WINCHESTER CITY COUNCIL,2033385391,"30,158"
Department for Work and Pensions ,Employment Programmes,14/11/2014,WP JSA 18-24 JOB SUSTAINMENT OUTCOME PAYMENT,WWEG EP EAST OF ENGLAND INGEUS UK,INGEUS UK LTD,2033386377,"30,090"
Department for Work and Pensions ,Corporate,26/11/2014,NEW ENTERPRISE ALLOWANCE MENTOR MATCHING,OPS WDC WSD SE GREATER WESSEX DISTRICT OFFICE,ENTERPRISE FIRST,2033406023,"30,080"
Department for Work and Pensions ,Corporate,24/11/2014,STAFF TRAINING VAT RECOVERABLE,HR CONTRACTUAL L AND D,CAPITA CIVIL SERVICE LEARNING,2033402559,"30,039"
Department for Work and Pensions ,Housing Benefits,14/11/2014,HOUSING BENEFIT ADMINISTRATION,HB ENGLAND,BARROW BOROUGH COUNCIL,2033385725,"30,037"
Department for Work and Pensions ,Housing Benefits,14/11/2014,HOUSING BENEFIT ADMINISTRATION,HB ENGLAND,WEST OXFORDSHIRE DISTRICT COUNCIL,2033385685,"30,023"
Department for Work and Pensions ,Housing Benefits,14/11/2014,HOUSING BENEFIT ADMINISTRATION,HB ENGLAND,SOUTH STAFFORDSHIRE DISTRICT COUNCIL,2033385635,"29,991"
Department for Work and Pensions ,Corporate,20/11/2014,PRIME UTILITIES INITIATIVES COSTS,FG CD UTILITIES INITIATIVES COSTS,TRILLIUM PRIME LTD,2033396417,"29,959"
Department for Work and Pensions ,Employment Programmes,06/11/2014,WP JSA 25+ SUSTAINMENT OUTCOME PAYMENT,WWEG EP WALES REHAB JOB FIT,REHAB JOBFIT,2033373289,"29,885"
Department for Work and Pensions ,Housing Benefits,14/11/2014,HOUSING BENEFIT ADMINISTRATION,HB ENGLAND,WAVERLEY BOROUGH COUNCIL,2033385546,"29,852"
Department for Work and Pensions ,Corporate,18/11/2014,SIAM MANAGEMENT SERVICES,CIO ITLR SIAM,HP ENTERPRISE SERVICES UK LTD,2033390141,"29,785"
Department for Work and Pensions ,Child Maintenance and Enforcement Commission,06/11/2014,POSTAGE,CS CENTRALLY HELD BUDGETS FACILITIES CONTRACTS,ROYAL MAIL GROUP PLC,1000221948,"29,752"
Department for Work and Pensions ,Employment Programmes,06/11/2014,WP JSA 18-24 JOB SUSTAINMENT OUTCOME PAYMENT,WWEG EP EAST MIDLANDS A4E,A4E LTD,2033372915,"29,750"
Department for Work and Pensions ,Housing Benefits,14/11/2014,HOUSING BENEFIT ADMINISTRATION,HB ENGLAND,ROSSENDALE BOROUGH COUNCIL,2033385501,"29,702"
Department for Work and Pensions ,Housing Benefits,14/11/2014,HOUSING BENEFIT ADMINISTRATION,HB ENGLAND,SOUTH HOLLAND DISTRICT COUNCIL,2033385531,"29,697"
Department for Work and Pensions ,Employment Programmes,12/11/2014,WP JSA 25+ SUSTAINMENT OUTCOME PAYMENT,WWEG EP SOUTH EAST SURR SUSSX AND KENT AVANTA ENTERPRISE,AVANTA ENTERPRISE LTD,2033380836,"29,670"
Department for Work and Pensions ,Employment Programmes,05/11/2014,WP JSA 25+ JOB OUTCOME PAYMENTWP JSA 25+ JOB OUTCOME PAYMENT,WWEG EP NORTH WEST GM CHES AND WARR G4S,G4S REGIONAL MANAGEMENT UK & I LTD,2033369453,"29,616"
Department for Work and Pensions ,Child Maintenance and Enforcement Commission,17/11/2014,COURIER COSTS,OPTIONS,XEROX UK LTD 3W,1000222815,"29,435"
Department for Work and Pensions ,Child Maintenance and Enforcement Commission,19/11/2014,PROFESSIONAL SERVICES NON VAT RECOVERABLE,FAMILY SUPPORT SERVICES,CHILDREN 1ST,1000223064,"29,337"
Department for Work and Pensions ,Housing Benefits,14/11/2014,HOUSING BENEFIT ADMINISTRATION,HB ENGLAND,CASTLE POINT DISTRICT COUNCIL,2033385409,"29,264"
Department for Work and Pensions ,Corporate,13/11/2014,COURIER COSTS,FG CD CENTRAL CONTRACTS,TNT UK LTD,2033382437,"29,127"
Department for Work and Pensions ,Housing Benefits,14/11/2014,HOUSING BENEFIT ADMINISTRATION,HB ENGLAND,NORTH KESTEVEN DISTRICT COUNCIL,2033385526,"29,116"
Department for Work and Pensions ,Employment Programmes,28/11/2014,WP JSA 25+ SUSTAINMENT OUTCOME PAYMENT,WWEG EP WEST YORKSHIRE BEST LTD,INTERSERVE WORKING FUTURES,2033413106,"29,025"
Department for Work and Pensions ,Housing Benefits,14/11/2014,HOUSING BENEFIT ADMINISTRATION,HB ENGLAND,HINCKLEY & BOSWORTH BOROUGH COUNCIL,2033385492,"28,906"
Department for Work and Pensions ,Employment Programmes,06/11/2014,WP JSA 18-24 JOB SUSTAINMENT OUTCOME PAYMENT,WWEG EP NORTH WEST MERS HAL CUMB AND LANCS INGEUS UK,INGEUS UK LTD,2033373546,"28,900"
Department for Work and Pensions ,Employment Programmes,26/11/2014,WP JSA 25+ SUSTAINMENT OUTCOME PAYMENT,WWEG EP EAST LONDON CAREERS DEVELOPMENT GROUP,CAREERS DEVELOPMENT GROUP,2033406427,"28,810"
Department for Work and Pensions ,Corporate,18/11/2014,ICONS IS IT CONSULTANCY NON ADVICE,CHG UC PATHFINDER DELIVERY MANAGEMENT,BT GLOBAL SERVICES,2033391140,"28,756"
Department for Work and Pensions ,Housing Benefits,14/11/2014,HOUSING BENEFIT ADMINISTRATION,HB ENGLAND,COPELAND BOROUGH COUNCIL,2033385455,"28,613"
Department for Work and Pensions ,Employment Programmes,26/11/2014,WP JSA 25+ SUSTAINMENT OUTCOME PAYMENT,WWEG EP NORTH EAST AVANTA ENTERPRISE,AVANTA ENTERPRISE LTD,2033406532,"28,595"
Department for Work and Pensions ,Employment Programmes,06/11/2014,WP JSA 25+ SUSTAINMENT OUTCOME PAYMENT,WWEG EP S WEST DEV COR DOR AND SOM WORKING LINKS,WORKING LINKS,2033373696,"28,595"
Department for Work and Pensions ,Corporate,07/11/2014,POSTAGE,FG CD NEWCASTLE ESTATE,ROYAL MAIL GROUP PLC,2033375395,"28,564"
Department for Work and Pensions ,Corporate,27/11/2014,AGENCY PAYMENTS TO LOCAL AUTHORITIES & PARTNERSHIPS,CHG UC PROGRAMME RECHARGES,BOLTON COUNCIL,2033410866,"28,462"
Department for Work and Pensions ,Housing Benefits,14/11/2014,HOUSING BENEFIT ADMINISTRATION,HB SCOTLAND,STIRLING COUNCIL,2033385601,"28,452"
Department for Work and Pensions ,Employment Programmes,18/11/2014,WP JSA 25+ SUSTAINMENT OUTCOME PAYMENT,WWEG EP EAST LONDON CAREERS DEVELOPMENT GROUP,CAREERS DEVELOPMENT GROUP,2033391444,"28,380"
Department for Work and Pensions ,Employment Programmes,21/11/2014,WP JSA 25+ SUSTAINMENT OUTCOME PAYMENT,WWEG EP W MIDLANDS BIRM SOL BC NEWCASTLE COLLEGE GROUP,NEWCASTLE COLLEGE GROUP,2033397905,"28,380"
Department for Work and Pensions ,Employment Programmes,26/11/2014,WP JSA 25+ SUSTAINMENT OUTCOME PAYMENT,WWEG EP EAST LONDON SEETEC,SEETEC BUSINESS TECHNOLOGY CENTRE LTD,2033406480,"28,380"
Department for Work and Pensions ,Employment Programmes,19/11/2014,ACCESS TO WORK - PAYMENT FOR SUPPORT WORKERS,WWEG EP LONDON REGION,GENERATE,2033394178,"28,250"
Department for Work and Pensions ,Corporate,25/11/2014,FSF - REMOVING OTHER BARRIERS TO WORK  - SICK/DISABLED CLIENTS,OPS WDC WSD SE DEVON CORNWALL & SOMERSET DISTRICT,CAREERS SOUTH WEST LTD,2033403881,"28,234"
Department for Work and Pensions ,Housing Benefits,14/11/2014,HOUSING BENEFIT ADMINISTRATION,HB SCOTLAND,EAST DUNBARTONSHIRE COUNCIL,2033385585,"28,231"
Department for Work and Pensions ,Housing Benefits,14/11/2014,HOUSING BENEFIT ADMINISTRATION,HB ENGLAND,SOUTH HAMS DISTRICT COUNCIL,2033385440,"28,208"
Department for Work and Pensions ,Corporate,06/11/2014,LOCAL WELFARE PROVISION GRANTS,CHG SINGLE FRAUD INVESTIGATION SERVICE,CAERPHILLY BOROUGH COUNCIL HB,2033374279,"28,148"
Department for Work and Pensions ,Corporate,14/11/2014,NEW ENTERPRISE ALLOWANCE MENTOR MATCHING,OPS WDC WSD WL SOUTH WEST WALES DISTRICT OFFICE,A4E LTD,2033386501,"28,147"
Department for Work and Pensions ,Corporate,28/11/2014,PRIME BUSINESS RATES,FG CD SHEFFIELD KINGS COURT,TELEREAL TRILLIUM,2033411342,"28,117"
Department for Work and Pensions ,Employment Programmes,06/11/2014,WP JSA 18-24 JOB SUSTAINMENT OUTCOME PAYMENT,WWEG EP NORTH EAST INGEUS UK,INGEUS UK LTD,2033373546,"28,050"
Department for Work and Pensions ,Housing Benefits,14/11/2014,HOUSING BENEFIT ADMINISTRATION,HB ENGLAND,NORTH WEST LEICESTER DISTRICT COUNCIL,2033385490,"28,023"
Department for Work and Pensions ,Employment Programmes,03/11/2014,WP JSA 25+ SUSTAINMENT OUTCOME PAYMENT,WWEG EP NORTH EAST AVANTA ENTERPRISE,AVANTA ENTERPRISE LTD,2033367015,"27,950"
Department for Work and Pensions ,Employment Programmes,11/11/2014,WP JSA 25+ SUSTAINMENT OUTCOME PAYMENT,WWEG EP EAST OF ENGLAND SEETEC,SEETEC BUSINESS TECHNOLOGY CENTRE LTD,2033379570,"27,950"
Department for Work and Pensions ,Employment Programmes,14/11/2014,WP JSA 25+ SUSTAINMENT OUTCOME PAYMENT,WWEG EP NORTH WEST GM CHES AND WARR SEETEC,SEETEC BUSINESS TECHNOLOGY CENTRE LTD,2033387592,"27,950"
Department for Work and Pensions ,Child Maintenance and Enforcement Commission,13/11/2014,DWP COURT FEES & RELATED EXPENSES,EXTERNAL CONTRACTS HARPER MACLEOD,HARPER MACLEOD LLP,1000222388,"27,911"
Department for Work and Pensions ,Housing Benefits,14/11/2014,HOUSING BENEFIT ADMINISTRATION,HB ENGLAND,THREE RIVERS DISTRICT COUNCIL,2033385379,"27,900"
Department for Work and Pensions ,Employment Programmes,06/11/2014,WP JSA 18-24 JOB SUSTAINMENT OUTCOME PAYMENT,WWEG EP SCOTLAND INGEUS UK,INGEUS UK LTD,2033373546,"27,880"
Department for Work and Pensions ,Employment Programmes,27/11/2014,WP JSA 25+ SUSTAINMENT OUTCOME PAYMENT,WWEG EP SOUTH YORKSHIRE A4E,A4E LTD,2033410050,"27,735"
Department for Work and Pensions ,Employment Programmes,25/11/2014,WP JSA 25+ SUSTAINMENT OUTCOME PAYMENT,WWEG EP S WEST DEV COR DOR AND SOM PROSPECTS SERVICES,PROSPECTS SERVICES LTD,2033403940,"27,735"
Department for Work and Pensions ,Corporate,19/11/2014,CREDIT UNION PRODUCTS,CHG CREDIT UNION EXPANSION AND DEVELOPMENT DELP,THE ASSOCIATION OF BRITISH CREDIT UNIONS LTD,2033394161,"27,643"
Department for Work and Pensions ,Housing Benefits,14/11/2014,HOUSING BENEFIT ADMINISTRATION,HB WALES,ISLE OF ANGLESEY COUNTY COUNCIL,2033385484,"27,613"
Department for Work and Pensions ,Corporate,13/11/2014,DWD  INITIATIVES PAYMENTS,STR EMPLOYMENT PROGRAMMES - REMPLOY,E CYCLE LTD,2033384012,"27,600"
Department for Work and Pensions ,Employment Programmes,21/11/2014,WP JSA 25+ SUSTAINMENT OUTCOME PAYMENT,WWEG EP WEST YORKSHIRE BEST LTD,INTERSERVE WORKING FUTURES,2033397650,"27,520"
Department for Work and Pensions ,Employment Programmes,24/11/2014,WP JSA 25+ SUSTAINMENT OUTCOME PAYMENT,WWEG EP WALES REHAB JOB FIT,REHAB JOBFIT,2033402328,"27,520"
Department for Work and Pensions ,Employment Programmes,17/11/2014,WP JSA 25+ JOB OUTCOME PAYMENTWP JSA 25+ JOB OUTCOME PAYMENT,WWEG EP NORTH EAST AVANTA ENTERPRISE,AVANTA ENTERPRISE LTD,2033388122,"27,480"
Department for Work and Pensions ,Employment Programmes,06/11/2014,WP JSA 25+ JOB OUTCOME PAYMENTWP JSA 25+ JOB OUTCOME PAYMENT,WWEG EP NORTH EAST AVANTA ENTERPRISE,AVANTA ENTERPRISE LTD,2033372151,"27,450"
Department for Work and Pensions ,Housing Benefits,14/11/2014,HOUSING BENEFIT ADMINISTRATION,HB ENGLAND,LICHFIELD DISTRICT COUNCIL,2033385637,"27,419"
Department for Work and Pensions ,Corporate,14/11/2014,NEW ENTERPRISE ALLOWANCE MENTOR MATCHING,OPS WDC WSD WL SOUTH EAST WALES DISTRICT OFFICE,A4E LTD,2033386501,"27,418"
Department for Work and Pensions ,Housing Benefits,14/11/2014,HOUSING BENEFIT ADMINISTRATION,HB WALES,MONMOUTHSHIRE COUNTY  COUNCIL,2033385486,"27,347"
Department for Work and Pensions ,Corporate,27/11/2014,HOUSING BENEFIT ADMINISTRATION,CHG REAL TIME INFORMATION,CITY OF GLASGOW,2033408558,"27,345"
Department for Work and Pensions ,Corporate,14/11/2014,STAFF TRAINING VAT RECOVERABLE,HR CONTRACTUAL L AND D,CAPITA CIVIL SERVICE LEARNING,2033386101,"27,331"
Department for Work and Pensions ,Employment Programmes,10/11/2014,WP JSA 25+ SUSTAINMENT OUTCOME PAYMENT,WWEG EP WEST LONDON REED IN PARTNERSHIP,REED IN PARTNERSHIP LTD,2033377920,"27,305"
Department for Work and Pensions ,Employment Programmes,10/11/2014,ACCESS TO WORK - TRAVEL IN WORK,WWEG EP WEST MIDLANDS,CAPITA SYMONDS LTD,2033376131,"27,223"
Department for Work and Pensions ,Employment Programmes,20/11/2014,WP JSA 18-24 JOB SUSTAINMENT OUTCOME PAYMENT,WWEG EP NORTH WEST MERS HAL CUMB AND LANCS A4E,A4E LTD,2033396174,"27,030"
Department for Work and Pensions ,Housing Benefits,14/11/2014,HOUSING BENEFIT ADMINISTRATION,HB ENGLAND,TAMWORTH BOROUGH COUNCIL,2033385683,"26,972"
Department for Work and Pensions ,Housing Benefits,14/11/2014,HOUSING BENEFIT ADMINISTRATION,HB ENGLAND,SOUTH LAKELAND DISTRICT COUNCIL,2033385690,"26,918"
Department for Work and Pensions ,Employment Programmes,20/11/2014,WP JSA 25+ SUSTAINMENT OUTCOME PAYMENT,WWEG EP SOUTH YORKSHIRE A4E,A4E LTD,2033396174,"26,875"
Department for Work and Pensions ,Employment Programmes,19/11/2014,WP JSA 25+ SUSTAINMENT OUTCOME PAYMENT,WWEG EP NORTH WEST GM CHES AND WARR AVANTA ENTERPRISE,AVANTA ENTERPRISE LTD,2033395551,"26,875"
Department for Work and Pensions ,Employment Programmes,14/11/2014,WP JSA 25+ SUSTAINMENT OUTCOME PAYMENT,WWEG EP WEST YORKSHIRE BEST LTD,INTERSERVE WORKING FUTURES,2033385946,"26,875"
Department for Work and Pensions ,Employment Programmes,26/11/2014,WP JSA 25+ SUSTAINMENT OUTCOME PAYMENT,WWEG EP NORTH WEST GM CHES AND WARR SEETEC,SEETEC BUSINESS TECHNOLOGY CENTRE LTD,2033406480,"26,875"
Department for Work and Pensions ,Employment Programmes,11/11/2014,ACCESS TO WORK - TRAVEL IN WORK,WWEG EP NORTH EAST,CAPITA SYMONDS LTD,2033380143,"26,832"
Department for Work and Pensions ,Employment Programmes,06/11/2014,WP JSA NEET SUSTAINMENT OUTCOME PAYMENT,WWEG EP SCOTLAND WORKING LINKS,WORKING LINKS,2033373696,"26,750"
Department for Work and Pensions ,Employment Programmes,13/11/2014,WP JSA 25+ SUSTAINMENT OUTCOME PAYMENT,WWEG EP WEST YORKSHIRE BEST LTD,INTERSERVE WORKING FUTURES,2033382565,"26,660"
Department for Work and Pensions ,Corporate,13/11/2014,NEW ENTERPRISE ALLOWANCE MENTOR MATCHING,OPS WDC WSD SC WEST OF SCOTLAND DO,A4E LTD,2033385153,"26,593"
Department for Work and Pensions ,Corporate,04/11/2014,CONTRACTORS & STAFF SUBSTITUTIONS,CHG DELIVERING THE IRIS ORGANISATION,CAPITA BUSINESS SERVICES LTD,2033368233,"26,565"
Department for Work and Pensions ,Housing Benefits,14/11/2014,HOUSING BENEFIT ADMINISTRATION,HB ENGLAND,EAST NORTHANTS DISTRICT COUNCIL,2033385461,"26,486"
Department for Work and Pensions ,Employment Programmes,21/11/2014,WP JSA 25+ SUSTAINMENT OUTCOME PAYMENT,WWEG EP EAST LONDON A4E,A4E LTD,2033398360,"26,445"
Department for Work and Pensions ,Employment Programmes,03/11/2014,WP JSA 25+ SUSTAINMENT OUTCOME PAYMENT,WWEG EP WALES REHAB JOB FIT,REHAB JOBFIT,2033366835,"26,445"
Department for Work and Pensions ,Housing Benefits,14/11/2014,HOUSING BENEFIT ADMINISTRATION,HB WALES,CEREDIGION COUNTY COUNCIL,2033385696,"26,389"
Department for Work and Pensions ,Employment Programmes,28/11/2014,WP JSA 18-24 JOB SUSTAINMENT OUTCOME PAYMENT,WWEG EP NORTH WEST MERS HAL CUMB AND LANCS INGEUS UK,INGEUS UK LTD,2033413420,"26,350"
Department for Work and Pensions ,Housing Benefits,14/11/2014,HOUSING BENEFIT ADMINISTRATION,HB ENGLAND,WOKINGHAM BOROUGH COUNCIL,2033385710,"26,342"
Department for Work and Pensions ,Housing Benefits,14/11/2014,HOUSING BENEFIT ADMINISTRATION,HB ENGLAND,FAREHAM BOROUGH COUNCIL,2033385396,"26,325"
Department for Work and Pensions ,Housing Benefits,14/11/2014,HOUSING BENEFIT ADMINISTRATION,HB ENGLAND,TORRIDGE DISTRICT COUNCIL,2033385430,"26,314"
Department for Work and Pensions ,Child Maintenance and Enforcement Commission,27/11/2014,CONTRACTORS & STAFF SUBSTITUTIONS,DATA WAREHOUSE PHASE 1,CAPITA BUSINESS SERVICES LTD,1000223823,"26,261"
Department for Work and Pensions ,Housing Benefits,14/11/2014,HOUSING BENEFIT ADMINISTRATION,HB ENGLAND,COTSWOLD DISTRICT COUNCIL,2033385533,"26,116"
Department for Work and Pensions ,Housing Benefits,14/11/2014,HOUSING BENEFIT ADMINISTRATION,HB ENGLAND,EAST CAMBRIDGESHIRE DISTRICT COUNCIL,2033385497,"26,099"
Department for Work and Pensions ,Employment Programmes,05/11/2014,ESF 2011-13 SUPPORT FOR FAMILIES WITH MULTIPLE PROBLEMS JSA CUSTOMERS. FIRST PROGRESS MEASURE PAYMENT.,CPA12 YORKS AND HUMBER EOS WORKS LTD FORMERLY FOURSTAR,EOS WORKS LTD,2033370631,"26,095"
Department for Work and Pensions ,Housing Benefits,14/11/2014,HOUSING BENEFIT ADMINISTRATION,HB ENGLAND,STAFFORDSHIRE MOORLANDS DISTRICT COUNCIL,2033385634,"26,081"
Department for Work and Pensions ,Employment Programmes,27/11/2014,WP JSA 25+ SUSTAINMENT OUTCOME PAYMENT,WWEG EP NORTH EAST AVANTA ENTERPRISE,AVANTA ENTERPRISE LTD,2033409104,"26,015"
Department for Work and Pensions ,Employment Programmes,14/11/2014,WP JSA 25+ SUSTAINMENT OUTCOME PAYMENT,WWEG EP W MIDLANDS BIRM SOL BC PERTEMPS,PERTEMPS,2033387748,"26,015"
Department for Work and Pensions ,Employment Programmes,03/11/2014,WP JSA 25+ SUSTAINMENT OUTCOME PAYMENT,WWEG EP SCOTLAND WORKING LINKS,WORKING LINKS,2033367623,"26,015"
Department for Work and Pensions ,Employment Programmes,14/11/2014,WP JSA 18-24 JOB SUSTAINMENT OUTCOME PAYMENT,WWEG EP NORTH WEST MERS HAL CUMB AND LANCS INGEUS UK,INGEUS UK LTD,2033386377,"26,010"
Department for Work and Pensions ,Employment Programmes,28/11/2014,WP JSA 18-24 JOB SUSTAINMENT OUTCOME PAYMENT,WWEG EP NORTH EAST INGEUS UK,INGEUS UK LTD,2033413420,"26,010"
Department for Work and Pensions ,Corporate,25/11/2014,FSF - TRAINING PAYMENTS TO PROVIDERS - LONE PARENTS,OPS WDC WSD CE BIRMINGHAM AND SOLIHULL DISTRICT OFFICE,INGEUS UK LTD,2033404754,"25,998"
Department for Work and Pensions ,Corporate,14/11/2014,GENERAL OFFICE EXPENSES VAT RECOVERABLE,"FG IGS KNOWLEDGE, INFORMATION MANAGEMENT AND DEVOLUTION",SPECIALIST COMPUTER CENTRES PLC,2033385790,"25,997"
Department for Work and Pensions ,European Social Fund,20/11/2014,MA ESF(D) PROGRAMME EXPENDITURE EC PREFUNDED THIRD PARTIES,WWEG EUROPEAN SOCIAL FUND PROGRAMME 2007-2013,UNIVERSITY OF EXETER SLIM TA,5000001751,"25,973"
Department for Work and Pensions ,Housing Benefits,14/11/2014,HOUSING BENEFIT ADMINISTRATION,HB ENGLAND,FYLDE BOROUGH COUNCIL,2033385666,"25,936"
Department for Work and Pensions ,Housing Benefits,14/11/2014,HOUSING BENEFIT ADMINISTRATION,HB ENGLAND,MID DEVON DISTRICT COUNCIL,2033385432,"25,920"
Department for Work and Pensions ,Employment Programmes,05/11/2014,WP JSA 25+ JOB OUTCOME PAYMENTWP JSA 25+ JOB OUTCOME PAYMENT,WWEG EP SOUTH EAST SURR SUSSX AND KENT G4S,G4S REGIONAL MANAGEMENT UK & I LTD,2033369453,"25,860"
Department for Work and Pensions ,Corporate,24/11/2014,FSF - SUPPORT CONTRACT MODULES FOR JSA JOBSEEKERS,OPS WDC WSD SC WEST OF SCOTLAND DO,LEARNDIRECT LTD,2033402667,"25,806"
Department for Work and Pensions ,Employment Programmes,14/11/2014,WP JSA 25+ SUSTAINMENT OUTCOME PAYMENT,WWEG EP EAST LONDON CAREERS DEVELOPMENT GROUP,CAREERS DEVELOPMENT GROUP,2033386606,"25,800"
Department for Work and Pensions ,Employment Programmes,24/11/2014,WP JSA 25+ SUSTAINMENT OUTCOME PAYMENT,WWEG EP EAST OF ENGLAND INGEUS UK,INGEUS UK LTD,2033402770,"25,800"
Department for Work and Pensions ,Employment Programmes,21/11/2014,WP JSA 25+ SUSTAINMENT OUTCOME PAYMENT,WWEG EP S WEST GLOS WILTS AND W OF E JHP GROUP,LEARNDIRECT LTD,2033401312,"25,800"
Department for Work and Pensions ,Employment Programmes,14/11/2014,WP JSA 25+ SUSTAINMENT OUTCOME PAYMENT,WWEG EP S WEST DEV COR DOR AND SOM PROSPECTS SERVICES,PROSPECTS SERVICES LTD,2033387357,"25,800"
Department for Work and Pensions ,Employment Programmes,27/11/2014,WP JSA NEET SUSTAINMENT OUTCOME PAYMENT,WWEG EP EAST MIDLANDS A4E,A4E LTD,2033410050,"25,750"
Department for Work and Pensions ,Corporate,06/11/2014,LOCAL WELFARE PROVISION GRANTS,CHG SINGLE FRAUD INVESTIGATION SERVICE,NEATH PORT TALBOT CBC,2033374752,"25,741"
Department for Work and Pensions ,Housing Benefits,14/11/2014,HOUSING BENEFIT ADMINISTRATION,HB ENGLAND,BABERGH DISTRICT COUNCIL,2033385682,"25,740"
Department for Work and Pensions ,Employment Programmes,12/11/2014,WP JSA 25+ SUSTAINMENT OUTCOME PAYMENT,WWEG EP W MIDLANDS BIRM SOL BC FOURSTAR EMP AND SKILLS,EOS WORKS LTD,2033382093,"25,585"
Department for Work and Pensions ,Employment Programmes,14/11/2014,WP JSA 25+ SUSTAINMENT OUTCOME PAYMENT,WWEG EP WEST LONDON REED IN PARTNERSHIP,REED IN PARTNERSHIP LTD,2033385957,"25,585"
Department for Work and Pensions ,Housing Benefits,14/11/2014,HOUSING BENEFIT ADMINISTRATION,HB ENGLAND,HAMBLETON DISTRICT COUNCIL,2033385457,"25,526"
Department for Work and Pensions ,Employment Programmes,17/11/2014,WP JSA 18-24 JOB SUSTAINMENT OUTCOME PAYMENT,WWEG EP NORTH EAST AVANTA ENTERPRISE,AVANTA ENTERPRISE LTD,2033388122,"25,500"
Department for Work and Pensions ,Employment Programmes,26/11/2014,WP JSA 25+ SUSTAINMENT OUTCOME PAYMENT,WWEG EP NORTH WEST GM CHES AND WARR AVANTA ENTERPRISE,AVANTA ENTERPRISE LTD,2033406532,"25,370"
Department for Work and Pensions ,Employment Programmes,03/11/2014,WP JSA 25+ SUSTAINMENT OUTCOME PAYMENT,WWEG EP W MIDLANDS BIRM SOL BC FOURSTAR EMP AND SKILLS,EOS WORKS LTD,2033366582,"25,370"
Department for Work and Pensions ,Employment Programmes,21/11/2014,WP JSA 25+ SUSTAINMENT OUTCOME PAYMENT,WWEG EP SOUTH EAST SURR SUSSX AND KENT G4S,G4S REGIONAL MANAGEMENT UK & I LTD,2033399325,"25,370"
Department for Work and Pensions ,Employment Programmes,03/11/2014,WP JSA 25+ SUSTAINMENT OUTCOME PAYMENT,WWEG EP EAST OF ENGLAND INGEUS UK,INGEUS UK LTD,2033367621,"25,370"
Department for Work and Pensions ,Employment Programmes,24/11/2014,WP JSA 25+ SUSTAINMENT OUTCOME PAYMENT,WWEG EP WEST LONDON REED IN PARTNERSHIP,REED IN PARTNERSHIP LTD,2033403352,"25,370"
Department for Work and Pensions ,Employment Programmes,28/11/2014,WP JSA 25+ SUSTAINMENT OUTCOME PAYMENT,WWEG EP WALES WORKING LINKS WALES,WORKING LINKS,2033413424,"25,370"
Department for Work and Pensions ,Employment Programmes,21/11/2014,WP JSA 25+ JOB OUTCOME PAYMENTWP JSA 25+ JOB OUTCOME PAYMENT,WWEG EP EAST MIDLANDS A4E,A4E LTD,2033398360,"25,344"
Department for Work and Pensions ,Employment Programmes,28/11/2014,WP JSA 18-24 JOB SUSTAINMENT OUTCOME PAYMENT,WWEG EP EAST OF ENGLAND INGEUS UK,INGEUS UK LTD,2033413420,"25,330"
Department for Work and Pensions ,Corporate,21/11/2014,ACCOUNTS PAYABLE UNAPPROVED INVOICES,OPS WDC WSD SE DEVON CORNWALL & SOMERSET DISTRICT,BUSINESS INFORMATION POINT LTD,2033401442,"25,320"
Department for Work and Pensions ,Housing Benefits,14/11/2014,HOUSING BENEFIT ADMINISTRATION,HB ENGLAND,TEWKESBURY BOROUGH COUNCIL,2033385400,"25,306"
Department for Work and Pensions ,Corporate,04/11/2014,BANK COMMISSION & CHARGES,FG FIN CONT COBAP BANKING,HSBC BANK PLC,2033368549,"25,284"
Department for Work and Pensions ,Child Maintenance and Enforcement Commission,24/11/2014,OVERTIME,OSP DIRECTORS OFFICE,DSD GROUP ACCOUNT,1001886,"25,216"
Department for Work and Pensions ,Employment Programmes,14/11/2014,WP JSA 25+ SUSTAINMENT OUTCOME PAYMENT,WWEG EP S WEST GLOS WILTS AND W OF E JHP GROUP,LEARNDIRECT LTD,2033387540,"25,155"
Department for Work and Pensions ,Employment Programmes,06/11/2014,WP JSA 25+ SUSTAINMENT OUTCOME PAYMENT,WWEG EP SOUTH YORKSHIRE SERCO,SERCO LTD,2033373267,"25,155"
Department for Work and Pensions ,Housing Benefits,14/11/2014,HOUSING BENEFIT ADMINISTRATION,HB ENGLAND,RUNNYMEDE BOROUGH COUNCIL,2033385374,"25,133"
Department for Work and Pensions ,Corporate,06/11/2014,LOCAL WELFARE PROVISION GRANTS,CHG SINGLE FRAUD INVESTIGATION SERVICE,CARMARTHENSHIRE COUNTY COUNCIL,2033374657,"25,127"
Department for Work and Pensions ,Corporate,28/11/2014,SOC SEC RESEARCH BUDGET,STR ANALYSIS CAD,NATIONAL CENTRE FOR SOCIAL RESEARCH,2033411317,"25,110"
Department for Work and Pensions ,Corporate,07/11/2014,COURIER COSTS,FG CD CENTRAL CONTRACTS,TNT UK LTD,2033375253,"25,085"
Department for Work and Pensions ,Housing Benefits,14/11/2014,HOUSING BENEFIT ADMINISTRATION,HB ENGLAND,RUSHCLIFFE BOROUGH COUNCIL,2033385606,"25,076"
Department for Work and Pensions ,Corporate,13/11/2014,VOCA Charges,FG FIN CONT COBAP BANKING,CITIBANK GLOBAL CORPORATE BANKING,2033385208,"25,000"
Department for Work and Pensions ,Corporate,10/11/2014,FSF - LOCAL INITIATIVES TO HELP JSA CLIENTS INTO WORK,OPS WDC WSD NE WEST YORKSHIRE DISTRICT OFFICE,CITY OF BRADFORD MDC,1006797,"25,000"
Department for Work and Pensions ,Corporate,20/11/2014,CONSULTANTS VAT RECOVERABLE,CHG FRAUD & ERROR STRATEGY,OXFORD SAID BUSINESS SCHOOL LTD,2033396359,"25,000"
Department for Work and Pensions ,Corporate,28/11/2014,STAFF TRAINING VAT RECOVERABLE,CHG PIP PROG MANAGEMENT,OXFORD SAID BUSINESS SCHOOL LTD,2033412876,"25,000"
Department for Work and Pensions ,Employment Programmes,14/11/2014,WP JSA 18-24 JOB SUSTAINMENT OUTCOME PAYMENT,WWEG EP EAST MIDLANDS INGEUS UK,INGEUS UK LTD,2033386377,"24,990"
Department for Work and Pensions ,Employment Programmes,24/11/2014,WP JSA 25+ SUSTAINMENT OUTCOME PAYMENT,WWEG EP NORTH WEST GM CHES AND WARR SEETEC,SEETEC BUSINESS TECHNOLOGY CENTRE LTD,2033402115,"24,940"
Department for Work and Pensions ,Employment Programmes,21/11/2014,WP JSA 25+ SUSTAINMENT OUTCOME PAYMENT,WWEG EP W MIDLANDS COV WARW STAFFS AND MARCHES SERCO,SERCO LTD,2033399003,"24,940"
Department for Work and Pensions ,Housing Benefits,14/11/2014,HOUSING BENEFIT ADMINISTRATION,HB SCOTLAND,CLACKMANNANSHIRE COUNCIL,2033385522,"24,908"
Department for Work and Pensions ,Corporate,19/11/2014,PUBLICITY ADVERTISING MEDIA,CHG UC STAKEHOLDER & PARTNERS,M4C,2033394971,"24,767"
Department for Work and Pensions ,Employment Programmes,17/11/2014,WP JSA 25+ SUSTAINMENT OUTCOME PAYMENT,WWEG EP S WEST GLOS WILTS AND W OF E JHP GROUP,LEARNDIRECT LTD,2033388646,"24,725"
Department for Work and Pensions ,Employment Programmes,06/11/2014,WP JSA 25+ SUSTAINMENT OUTCOME PAYMENT,WWEG EP WEST LONDON MAXIMUS EMPLOYMENT UK,MAXIMUS EMPLOYMENT UK LTD,2033372604,"24,725"
Department for Work and Pensions ,Employment Programmes,10/11/2014,WP JSA 25+ SUSTAINMENT OUTCOME PAYMENT,WWEG EP WALES REHAB JOB FIT,REHAB JOBFIT,2033377485,"24,725"
Department for Work and Pensions ,Employment Programmes,19/11/2014,WP JSA 25+ SUSTAINMENT OUTCOME PAYMENT,WWEG EP EAST OF ENGLAND SEETEC,SEETEC BUSINESS TECHNOLOGY CENTRE LTD,2033394866,"24,725"
Department for Work and Pensions ,Employment Programmes,06/11/2014,WP JSA 18-24 JOB SUSTAINMENT OUTCOME PAYMENT,WWEG EP EAST LONDON A4E,A4E LTD,2033372915,"24,650"
Department for Work and Pensions ,Corporate,11/11/2014,NON PRIME WORKS - VAT RECOVERABLE,CHG UC PATHFINDER DELIVERY MANAGEMENT,HP ENTERPRISE SERVICES UK LTD,2033378237,"24,592"
Department for Work and Pensions ,Employment Programmes,06/11/2014,WP JSA 25+ SUSTAINMENT OUTCOME PAYMENT,WWEG EP SOUTH EAST SURR SUSSX AND KENT AVANTA ENTERPRISE,AVANTA ENTERPRISE LTD,2033372151,"24,510"
Department for Work and Pensions ,Employment Programmes,14/11/2014,WP JSA 25+ SUSTAINMENT OUTCOME PAYMENT,WWEG EP WALES WORKING LINKS WALES,WORKING LINKS,2033386379,"24,510"
Department for Work and Pensions ,Employment Programmes,19/11/2014,WP JSA 25+ SUSTAINMENT OUTCOME PAYMENT,WWEG EP SCOTLAND WORKING LINKS,WORKING LINKS,2033392616,"24,510"
Department for Work and Pensions ,Corporate,07/11/2014,POSTAGE,OPS PEN PS CAU,ROYAL MAIL GROUP PLC,2033375395,"24,487"
Department for Work and Pensions ,Employment Programmes,05/11/2014,ESF 2011-13 SUPPORT FOR FAMILIES WITH MULTIPLE PROBLEMS JSA CUSTOMERS SECOND PROGRESS MEASURE PAYMENT,CPA12 YORKS AND HUMBER EOS WORKS LTD FORMERLY FOURSTAR,EOS WORKS LTD,2033370631,"24,484"
Department for Work and Pensions ,Corporate,04/11/2014,CONTRACTORS & STAFF SUBSTITUTIONS,F&C CD STRATEGY AND BUSINESS MANAGEMENT,CAPITA BUSINESS SERVICES LTD,2033368233,"24,455"
Department for Work and Pensions ,Employment Programmes,21/11/2014,WP JSA 18-24 JOB SUSTAINMENT OUTCOME PAYMENT,WWEG EP SCOTLAND INGEUS UK,INGEUS UK LTD,2033399194,"24,310"
Department for Work and Pensions ,Employment Programmes,21/11/2014,WP JSA 18-24 JOB SUSTAINMENT OUTCOME PAYMENT,WWEG EP EAST OF ENGLAND INGEUS UK,INGEUS UK LTD,2033399194,"24,310"
Department for Work and Pensions ,Employment Programmes,28/11/2014,WP JSA 25+ SUSTAINMENT OUTCOME PAYMENT,WWEG EP EAST LONDON A4E,A4E LTD,2033413324,"24,295"
Department for Work and Pensions ,Employment Programmes,25/11/2014,WP JSA 25+ SUSTAINMENT OUTCOME PAYMENT,WWEG EP NORTH EAST AVANTA ENTERPRISE,AVANTA ENTERPRISE LTD,2033403901,"24,295"
Department for Work and Pensions ,European Social Fund,14/11/2014,MA ESF(D) PROGRAMME EXPENDITURE EC PREFUNDED L A's,WWEG EUROPEAN SOCIAL FUND PROGRAMME 2007-2013,GREATER LONDON AUTHORITY,5000001750,"24,271"
Department for Work and Pensions ,Employment Programmes,14/11/2014,WP JSA 18-24 JOB SUSTAINMENT OUTCOME PAYMENT,WWEG EP NORTH EAST INGEUS UK,INGEUS UK LTD,2033386377,"24,140"
Department for Work and Pensions ,Employment Programmes,10/11/2014,WP JSA 25+ SUSTAINMENT OUTCOME PAYMENT,WWEG EP NORTH WEST GM CHES AND WARR AVANTA ENTERPRISE,AVANTA ENTERPRISE LTD,2033376841,"24,080"
Department for Work and Pensions ,Employment Programmes,24/11/2014,WP JSA 25+ SUSTAINMENT OUTCOME PAYMENT,WWEG EP NORTH WEST GM CHES AND WARR AVANTA ENTERPRISE,AVANTA ENTERPRISE LTD,2033402210,"24,080"
Department for Work and Pensions ,Employment Programmes,28/11/2014,WP JSA 25+ SUSTAINMENT OUTCOME PAYMENT,WWEG EP SOUTH EAST SURR SUSSX AND KENT G4S,G4S REGIONAL MANAGEMENT UK & I LTD,2033412951,"24,080"
Department for Work and Pensions ,Employment Programmes,28/11/2014,SUSTAINMENT FEE,WWEG EP WORK CHOICE BIRMINGHAM SOLIHULL BLACK COUNTRY,ADVANCE HOUSING & SUPPORT LTD,2033413422,"24,044"
Department for Work and Pensions ,Child Maintenance and Enforcement Commission,28/11/2014,CONTRACTORS & STAFF SUBSTITUTIONS,IT INFORMATION MANAGEMENT,CAPITA BUSINESS SERVICES LTD,1000223982,"24,018"
Department for Work and Pensions ,Employment Programmes,28/11/2014,WP JSA 25+ JOB OUTCOME PAYMENTWP JSA 25+ JOB OUTCOME PAYMENT,WWEG EP EAST MIDLANDS A4E,A4E LTD,2033413324,"24,000"
Department for Work and Pensions ,Employment Programmes,21/11/2014,WP JSA 18-24 JOB SUSTAINMENT OUTCOME PAYMENT,WWEG EP NORTH WEST MERS HAL CUMB AND LANCS INGEUS UK,INGEUS UK LTD,2033399194,"23,970"
Department for Work and Pensions ,Employment Programmes,28/11/2014,WP JSA 18-24 JOB SUSTAINMENT OUTCOME PAYMENT,WWEG EP EAST MIDLANDS INGEUS UK,INGEUS UK LTD,2033413420,"23,970"
Department for Work and Pensions ,Employment Programmes,28/11/2014,WP JSA 25+ SUSTAINMENT OUTCOME PAYMENT,WWEG EP EAST MIDLANDS A4E,A4E LTD,2033413324,"23,865"
Department for Work and Pensions ,Employment Programmes,06/11/2014,WP JSA 25+ SUSTAINMENT OUTCOME PAYMENT,WWEG EP NORTH EAST Y AND H NEWCASTLE COLLEGE GROUP,NEWCASTLE COLLEGE GROUP,2033372038,"23,865"
Department for Work and Pensions ,Employment Programmes,17/11/2014,WP JSA 25+ SUSTAINMENT OUTCOME PAYMENT,WWEG EP NORTH WEST GM CHES AND WARR SEETEC,SEETEC BUSINESS TECHNOLOGY CENTRE LTD,2033389124,"23,865"
Department for Work and Pensions ,Corporate,07/11/2014,POSTAGE,OPS BEN BD CE DERBY,ROYAL MAIL GROUP PLC,2033375395,"23,785"
Department for Work and Pensions ,Employment Programmes,06/11/2014,WP JSA CLAIMING 22 OF 24MTHS SUSTAINMENT OUTCOME PAYMENT,WWEG EP EAST MIDLANDS A4E,A4E LTD,2033372915,"23,750"
Department for Work and Pensions ,Employment Programmes,25/11/2014,WP JSA 25+ SUSTAINMENT OUTCOME PAYMENT,WWEG EP NORTH WEST GM CHES AND WARR G4S,G4S REGIONAL MANAGEMENT UK & I LTD,2033404641,"23,650"
Department for Work and Pensions ,Employment Programmes,17/11/2014,WP JSA 25+ SUSTAINMENT OUTCOME PAYMENT,WWEG EP S WEST DEV COR DOR AND SOM PROSPECTS SERVICES,PROSPECTS SERVICES LTD,2033388590,"23,650"
Department for Work and Pensions ,Employment Programmes,13/11/2014,WP JSA 18-24 JOB SUSTAINMENT OUTCOME PAYMENT,WWEG EP EAST MIDLANDS A4E,A4E LTD,2033385154,"23,630"
Department for Work and Pensions ,Corporate,18/11/2014,TREDDS IS IT CONSULTANCY (HOSTING) NON ADVICE,CHG VME WFES-R,HP ENTERPRISE SERVICES UK LTD,2033390141,"23,563"
Department for Work and Pensions ,Corporate,11/11/2014,TREDDS APPS DEV MANDAYS,CIO IT OGD HMRC ITLR,HP ENTERPRISE SERVICES UK LTD,2033378237,"23,512"
Department for Work and Pensions ,Corporate,07/11/2014,POSTAGE,OPS BEN DD SFSB PERRY BAR,ROYAL MAIL GROUP PLC,2033375395,"23,493"
Department for Work and Pensions ,Employment Programmes,28/11/2014,WP JSA 18-24 JOB SUSTAINMENT OUTCOME PAYMENT,WWEG EP SCOTLAND INGEUS UK,INGEUS UK LTD,2033413420,"23,460"
Department for Work and Pensions ,Corporate,26/11/2014,FSF - TRAINING PAYMENTS TO PROVIDERS - JSA JOBSEEKERS,OPS WDC WSD SC WICK JOBCENTRE PLUS,LEARNDIRECT LTD,2033406501,"23,460"
Department for Work and Pensions ,Employment Programmes,04/11/2014,WP JSA 18-24 JOB SUSTAINMENT OUTCOME PAYMENT,WWEG EP EAST OF ENGLAND SEETEC,SEETEC BUSINESS TECHNOLOGY CENTRE LTD,2033368036,"23,460"
Department for Work and Pensions ,Employment Programmes,21/11/2014,WP JSA 25+ SUSTAINMENT OUTCOME PAYMENT,WWEG EP NORTH WEST GM CHES AND WARR AVANTA ENTERPRISE,AVANTA ENTERPRISE LTD,2033396659,"23,435"
Department for Work and Pensions ,Housing Benefits,14/11/2014,HOUSING BENEFIT ADMINISTRATION,HB ENGLAND,EAST DORSET DISTRICT COUNCIL,2033385741,"23,409"
Department for Work and Pensions ,Housing Benefits,14/11/2014,HOUSING BENEFIT ADMINISTRATION,HB ENGLAND,SOUTH DERBYSHIRE DISTRICT COUNCIL,2033385563,"23,403"
Department for Work and Pensions ,Housing Benefits,14/11/2014,HOUSING BENEFIT ADMINISTRATION,HB ENGLAND,MALVERN HILLS DISTRICT COUNCIL,2033385602,"23,258"
Department for Work and Pensions ,Employment Programmes,04/11/2014,WP JSA 25+ SUSTAINMENT OUTCOME PAYMENT,WWEG EP NORTH WEST GM CHES AND WARR AVANTA ENTERPRISE,AVANTA ENTERPRISE LTD,2033368140,"23,220"
Department for Work and Pensions ,Employment Programmes,11/11/2014,WP JSA 25+ SUSTAINMENT OUTCOME PAYMENT,WWEG EP EAST LONDON CAREERS DEVELOPMENT GROUP,CAREERS DEVELOPMENT GROUP,2033378703,"23,220"
Department for Work and Pensions ,Housing Benefits,14/11/2014,HOUSING BENEFIT ADMINISTRATION,HB ENGLAND,MOLE VALLEY DISTRICT COUNCIL,2033385376,"23,191"
Department for Work and Pensions ,Housing Benefits,14/11/2014,HOUSING BENEFIT ADMINISTRATION,HB ENGLAND,SELBY DISTRICT COUNCIL,2033385524,"23,179"
Department for Work and Pensions ,Corporate,19/11/2014,CONTRACTORS & STAFF SUBSTITUTIONS,CHG STATE PENSION REFORM SINGLE TIER,CAPITA BUSINESS SERVICES LTD,2033395503,"23,122"
Department for Work and Pensions ,Employment Programmes,03/11/2014,WP JSA 25+ JOB OUTCOME PAYMENTWP JSA 25+ JOB OUTCOME PAYMENT,WWEG EP SCOTLAND WORKING LINKS,WORKING LINKS,2033367623,"23,040"
Department for Work and Pensions ,Employment Programmes,14/11/2014,WP JSA 25+ SUSTAINMENT OUTCOME PAYMENT,WWEG EP SOUTH EAST SURR SUSSX AND KENT G4S,G4S REGIONAL MANAGEMENT UK & I LTD,2033386053,"23,005"
Department for Work and Pensions ,Employment Programmes,17/11/2014,WP JSA 25+ SUSTAINMENT OUTCOME PAYMENT,WWEG EP EAST OF ENGLAND INGEUS UK,INGEUS UK LTD,2033390040,"23,005"
Department for Work and Pensions ,Employment Programmes,24/11/2014,WP JSA 25+ SUSTAINMENT OUTCOME PAYMENT,WWEG EP SCOTLAND INGEUS UK,INGEUS UK LTD,2033402770,"23,005"
Department for Work and Pensions ,Employment Programmes,21/11/2014,WP JSA 25+ SUSTAINMENT OUTCOME PAYMENT,WWEG EP W MIDLANDS BIRM SOL BC PERTEMPS,PERTEMPS,2033398528,"23,005"
Department for Work and Pensions ,Employment Programmes,03/11/2014,WP JSA 25+ SUSTAINMENT OUTCOME PAYMENT,WWEG EP EAST LONDON SEETEC,SEETEC BUSINESS TECHNOLOGY CENTRE LTD,2033366643,"23,005"
Department for Work and Pensions ,Employment Programmes,10/11/2014,WP JSA 25+ SUSTAINMENT OUTCOME PAYMENT,WWEG EP NORTH WEST GM CHES AND WARR SEETEC,SEETEC BUSINESS TECHNOLOGY CENTRE LTD,2033376867,"23,005"
Department for Work and Pensions ,Employment Programmes,14/11/2014,WP JSA 25+ SUSTAINMENT OUTCOME PAYMENT,WWEG EP W MIDLANDS COV WARW STAFFS AND MARCHES SERCO,SERCO LTD,2033387090,"23,005"
Department for Work and Pensions ,Employment Programmes,06/11/2014,WP JSA NEET SUSTAINMENT OUTCOME PAYMENT,WWEG EP NORTH WEST MERS HAL CUMB AND LANCS A4E,A4E LTD,2033372915,"23,000"
Department for Work and Pensions ,Employment Programmes,13/11/2014,WP JSA NEET SUSTAINMENT OUTCOME PAYMENT,WWEG EP EAST MIDLANDS A4E,A4E LTD,2033385154,"23,000"
Department for Work and Pensions ,Employment Programmes,06/11/2014,WP JSA NEET SUSTAINMENT OUTCOME PAYMENT,WWEG EP EAST OF ENGLAND INGEUS UK,INGEUS UK LTD,2033373546,"23,000"
Department for Work and Pensions ,Employment Programmes,19/11/2014,WP JSA 25+ JOB OUTCOME PAYMENTWP JSA 25+ JOB OUTCOME PAYMENT,WWEG EP S WEST DEV COR DOR AND SOM PROSPECTS SERVICES,PROSPECTS SERVICES LTD,2033394729,"22,896"
Department for Work and Pensions ,Corporate,28/11/2014,PRIME BUSINESS RATES,FG CD BIRCHWOOD,TELEREAL TRILLIUM,2033411342,"22,895"
Department for Work and Pensions ,Housing Benefits,14/11/2014,HOUSING BENEFIT ADMINISTRATION,HB ENGLAND,FOREST HEATH DISTRICT COUNCIL,2033385681,"22,875"
Department for Work and Pensions ,Employment Programmes,13/11/2014,WP JSA 25+ SUSTAINMENT OUTCOME PAYMENT,WWEG EP SOUTH YORKSHIRE A4E,A4E LTD,2033385154,"22,790"
Department for Work and Pensions ,Employment Programmes,13/11/2014,WP JSA 25+ SUSTAINMENT OUTCOME PAYMENT,WWEG EP NORTH EAST AVANTA ENTERPRISE,AVANTA ENTERPRISE LTD,2033384077,"22,790"
Department for Work and Pensions ,Employment Programmes,21/11/2014,WP JSA 25+ SUSTAINMENT OUTCOME PAYMENT,WWEG EP EAST LONDON CAREERS DEVELOPMENT GROUP,CAREERS DEVELOPMENT GROUP,2033397896,"22,790"
Department for Work and Pensions ,Employment Programmes,17/11/2014,WP JSA 25+ SUSTAINMENT OUTCOME PAYMENT,WWEG EP WALES REHAB JOB FIT,REHAB JOBFIT,2033389701,"22,790"
Department for Work and Pensions ,Corporate,07/11/2014,FSF - TRAINING PAYMENTS TO PROVIDERS - JSA JOBSEEKERS,OPS WDC WSD SC ABERDEEN EBURY HOUSE JOBCENTRE PLUS,LEARNDIRECT LTD,2033375526,"22,692"
Department for Work and Pensions ,Corporate,18/11/2014,NON-TREDDS IS IT APPS DEV MANDAY,CIO CIS RELEASE 2,IBM UNITED KINGDOM LTD,2033391550,"22,659"
Department for Work and Pensions ,Employment Programmes,27/11/2014,WP JSA 18-24 JOB SUSTAINMENT OUTCOME PAYMENT,WWEG EP NORTH WEST MERS HAL CUMB AND LANCS A4E,A4E LTD,2033410050,"22,610"
Department for Work and Pensions ,Corporate,25/11/2014,RECRUITMENT & ASSESSMENT SERVICES AGENCY,HR TALENT AND RESOURCING,CABINET OFFICE,2005053,"22,600"
Department for Work and Pensions ,Employment Programmes,06/11/2014,WP JSA 25+ SUSTAINMENT OUTCOME PAYMENT,WWEG EP SOUTH EAST SURR SUSSX AND KENT G4S,G4S REGIONAL MANAGEMENT UK & I LTD,2033374175,"22,575"
Department for Work and Pensions ,Employment Programmes,04/11/2014,WP JSA 25+ SUSTAINMENT OUTCOME PAYMENT,WWEG EP EAST OF ENGLAND INGEUS UK,INGEUS UK LTD,2033368513,"22,575"
Department for Work and Pensions ,Employment Programmes,11/11/2014,WP JSA 25+ SUSTAINMENT OUTCOME PAYMENT,WWEG EP WALES WORKING LINKS WALES,WORKING LINKS,2033378873,"22,575"
Department for Work and Pensions ,Corporate,18/11/2014,NON-TREDDS IS IT APPS DEV MANDAY,CIO CIS RELEASE 4,IBM UNITED KINGDOM LTD,2033391550,"22,504"
Department for Work and Pensions ,Employment Programmes,06/11/2014,WP JSA NEET SUSTAINMENT OUTCOME PAYMENT,WWEG EP NORTH WEST MERS HAL CUMB AND LANCS INGEUS UK,INGEUS UK LTD,2033373546,"22,500"
Department for Work and Pensions ,Housing Benefits,14/11/2014,HOUSING BENEFIT ADMINISTRATION,HB ENGLAND,BLABY DISTRICT COUNCIL,2033385623,"22,496"
Department for Work and Pensions ,Housing Benefits,14/11/2014,HOUSING BENEFIT ADMINISTRATION,HB ENGLAND,CHILTERN DISTRICT COUNCIL,2033385384,"22,462"
Department for Work and Pensions ,Corporate,11/11/2014,NETWORK SERVICES,CHG DIGITAL JOBCENTRES,BT GLOBAL SERVICES,2033379992,"22,440"
Department for Work and Pensions ,Corporate,18/11/2014,PUBLICITY PRODUCTION COST,CHG UC DESIGN & BUILD PROGRAMME MANAGER,RNIB,2033390942,"22,375"
Department for Work and Pensions ,Employment Programmes,06/11/2014,WP JSA 25+ JOB OUTCOME PAYMENTWP JSA 25+ JOB OUTCOME PAYMENT,WWEG EP SCOTLAND WORKING LINKS,WORKING LINKS,2033373696,"22,368"
Department for Work and Pensions ,Employment Programmes,10/11/2014,WP JSA 25+ SUSTAINMENT OUTCOME PAYMENT,WWEG EP NORTH EAST Y AND H G4S,G4S REGIONAL MANAGEMENT UK & I LTD,2033377300,"22,360"
Department for Work and Pensions ,Employment Programmes,28/11/2014,WP JSA 25+ SUSTAINMENT OUTCOME PAYMENT,WWEG EP NORTH WEST GM CHES AND WARR G4S,G4S REGIONAL MANAGEMENT UK & I LTD,2033412951,"22,360"
Department for Work and Pensions ,Employment Programmes,03/11/2014,WP JSA 25+ SUSTAINMENT OUTCOME PAYMENT,WWEG EP SCOTLAND INGEUS UK,INGEUS UK LTD,2033367621,"22,360"
Department for Work and Pensions ,Housing Benefits,14/11/2014,HOUSING BENEFIT ADMINISTRATION,HB ENGLAND,BROMSGROVE DISTRICT COUNCIL,2033385390,"22,343"
Department for Work and Pensions ,Housing Benefits,14/11/2014,HOUSING BENEFIT ADMINISTRATION,HB ENGLAND,DAVENTRY DISTRICT COUNCIL,2033385468,"22,322"
Department for Work and Pensions ,Corporate,28/11/2014,PRIME FACILITY PRICE,FG CD PORTH OLDWAY HOUSE,TELEREAL TRILLIUM,2033411343,"22,290"
Department for Work and Pensions ,Employment Programmes,06/11/2014,WP JSA 25+ JOB OUTCOME PAYMENTWP JSA 25+ JOB OUTCOME PAYMENT,WWEG EP SOUTH EAST SURR SUSSX AND KENT G4S,G4S REGIONAL MANAGEMENT UK & I LTD,2033374175,"22,260"
Department for Work and Pensions ,Corporate,28/11/2014,FSF - SUPPORT CONTRACT MODULES FOR JSA JOBSEEKERS,OPS WDC WSD SC GLASGOW LANARKSHIRE E DUMBARTONSHIRE DO,REED,2033413275,"22,150"
Department for Work and Pensions ,Employment Programmes,10/11/2014,WP JSA 25+ SUSTAINMENT OUTCOME PAYMENT,WWEG EP EAST OF ENGLAND INGEUS UK,INGEUS UK LTD,2033376618,"22,145"
Department for Work and Pensions ,Employment Programmes,18/11/2014,WP JSA 25+ SUSTAINMENT OUTCOME PAYMENT,WWEG EP SCOTLAND WORKING LINKS,WORKING LINKS,2033391772,"22,145"
Department for Work and Pensions ,Employment Programmes,04/11/2014,SERVICE FEE,WWEG EP CORE MWA CPA LONDON,SEETEC BUSINESS TECHNOLOGY CENTRE LTD,2033368036,"22,140"
Department for Work and Pensions ,Employment Programmes,04/11/2014,WP JSA 25+ JOB OUTCOME PAYMENTWP JSA 25+ JOB OUTCOME PAYMENT,WWEG EP SOUTH EAST SURR SUSSX AND KENT AVANTA ENTERPRISE,AVANTA ENTERPRISE LTD,2033368140,"22,110"
Department for Work and Pensions ,Housing Benefits,14/11/2014,HOUSING BENEFIT ADMINISTRATION,HB ENGLAND,TANDRIDGE DISTRICT COUNCIL,2033385547,"22,053"
Department for Work and Pensions ,Employment Programmes,18/11/2014,WP JSA 25+ SUSTAINMENT OUTCOME PAYMENT,WWEG EP SCOTLAND INGEUS UK,INGEUS UK LTD,2033391769,"21,930"
Department for Work and Pensions ,Employment Programmes,13/11/2014,WP JSA 18-24 JOB SUSTAINMENT OUTCOME PAYMENT,WWEG EP NORTH WEST MERS HAL CUMB AND LANCS A4E,A4E LTD,2033385154,"21,760"
Department for Work and Pensions ,Employment Programmes,20/11/2014,WP JSA NEET SUSTAINMENT OUTCOME PAYMENT,WWEG EP EAST MIDLANDS A4E,A4E LTD,2033396174,"21,750"
Department for Work and Pensions ,Employment Programmes,06/11/2014,WP JSA NEET SUSTAINMENT OUTCOME PAYMENT,WWEG EP EAST OF ENGLAND SEETEC,SEETEC BUSINESS TECHNOLOGY CENTRE LTD,2033372508,"21,750"
Department for Work and Pensions ,Employment Programmes,05/11/2014,WP JSA 25+ SUSTAINMENT OUTCOME PAYMENT,WWEG EP SOUTH EAST SURR SUSSX AND KENT G4S,G4S REGIONAL MANAGEMENT UK & I LTD,2033369453,"21,715"
Department for Work and Pensions ,Employment Programmes,24/11/2014,WP JSA 25+ JOB OUTCOME PAYMENTWP JSA 25+ JOB OUTCOME PAYMENT,WWEG EP EAST LONDON SEETEC,SEETEC BUSINESS TECHNOLOGY CENTRE LTD,2033402115,"21,696"
Department for Work and Pensions ,Employment Programmes,06/11/2014,WP JSA 25+ JOB OUTCOME PAYMENTWP JSA 25+ JOB OUTCOME PAYMENT,WWEG EP WEST LONDON REED IN PARTNERSHIP,REED IN PARTNERSHIP LTD,2033372683,"21,636"
Department for Work and Pensions ,Corporate,19/11/2014,CONTRACTORS & STAFF SUBSTITUTIONS,CIO CSD HEAD OF SERVICE MAINTENANCE,CAPITA BUSINESS SERVICES LTD,2033395503,"21,614"
Department for Work and Pensions ,Employment Programmes,20/11/2014,WP JSA 18-24 JOB SUSTAINMENT OUTCOME PAYMENT,WWEG EP EAST MIDLANDS A4E,A4E LTD,2033396174,"21,590"
Department for Work and Pensions ,Corporate,14/11/2014,INTERPRETATION AND TRANSLATION SERVICES,OPS BEN BD LN HACKNEY,PRESTIGE NETWORK LTD,2033387607,"21,564"
Department for Work and Pensions ,Housing Benefits,14/11/2014,HOUSING BENEFIT ADMINISTRATION,HB ENGLAND,MID SUFFOLK DISTRICT COUNCIL,2033385679,"21,562"
Department for Work and Pensions ,Employment Programmes,28/11/2014,WP JSA 25+ SUSTAINMENT OUTCOME PAYMENT,WWEG EP NORTH WEST GM CHES AND WARR AVANTA ENTERPRISE,AVANTA ENTERPRISE LTD,2033412697,"21,500"
Department for Work and Pensions ,Employment Programmes,28/11/2014,WP JSA 25+ SUSTAINMENT OUTCOME PAYMENT,WWEG EP SOUTH EAST SURR SUSSX AND KENT AVANTA ENTERPRISE,AVANTA ENTERPRISE LTD,2033412697,"21,500"
Department for Work and Pensions ,Employment Programmes,18/11/2014,WP JSA 25+ SUSTAINMENT OUTCOME PAYMENT,WWEG EP WEST LONDON INGEUS UK,INGEUS UK LTD,2033391769,"21,500"
Department for Work and Pensions ,Employment Programmes,25/11/2014,WP JSA 25+ SUSTAINMENT OUTCOME PAYMENT,WWEG EP EAST OF ENGLAND INGEUS UK,INGEUS UK LTD,2033403978,"21,500"
Department for Work and Pensions ,Employment Programmes,03/11/2014,WP JSA 25+ SUSTAINMENT OUTCOME PAYMENT,WWEG EP WEST LONDON MAXIMUS EMPLOYMENT UK,MAXIMUS EMPLOYMENT UK LTD,2033366581,"21,500"
Department for Work and Pensions ,Employment Programmes,13/11/2014,WP JSA 25+ SUSTAINMENT OUTCOME PAYMENT,WWEG EP S WEST DEV COR DOR AND SOM PROSPECTS SERVICES,PROSPECTS SERVICES LTD,2033383367,"21,500"
Department for Work and Pensions ,Child Maintenance and Enforcement Commission,13/11/2014,PROFESSIONAL ADVICE & OPINION VAT RECOVERABLE,NEW SCHEME OTHER INTERFACES,EXPERIAN LTD,1000222389,"21,472"
Department for Work and Pensions ,Housing Benefits,14/11/2014,HOUSING BENEFIT ADMINISTRATION,HB ENGLAND,ROCHFORD DISTRICT COUNCIL,2033385406,"21,337"
Department for Work and Pensions ,Employment Programmes,14/11/2014,ACCESS TO WORK - PAYMENT FOR SUPPORT WORKERS,WWEG EP LONDON REGION,INTERPRETING MATTERS LTD,2033387491,"21,334"
Department for Work and Pensions ,Employment Programmes,24/11/2014,WP JSA 25+ SUSTAINMENT OUTCOME PAYMENT,WWEG EP WEST YORKSHIRE BEST LTD,INTERSERVE WORKING FUTURES,2033402633,"21,285"
Department for Work and Pensions ,Employment Programmes,06/11/2014,WP JSA 25+ SUSTAINMENT OUTCOME PAYMENT,WWEG EP SOUTH EAST TV HANTS AND IOW MAXIMUS EMPLOYMENT,MAXIMUS EMPLOYMENT UK LTD,2033372604,"21,285"
Department for Work and Pensions ,Employment Programmes,06/11/2014,ESF 2011-13 SUPPORT FOR FAMILIES WITH MULTIPLE PROBLEMS JSA CUSTOMERS PROGRESS MEASURE - INITIAL 25% PAYMENT,CPA12 YORKS AND HUMBER EOS WORKS LTD FORMERLY FOURSTAR,EOS WORKS LTD,2033372605,"21,263"
Department for Work and Pensions ,Employment Programmes,06/11/2014,WP JSA 18-24 JOB SUSTAINMENT OUTCOME PAYMENT,WWEG EP NORTH WEST GM CHES AND WARR SEETEC,SEETEC BUSINESS TECHNOLOGY CENTRE LTD,2033372508,"21,250"
Department for Work and Pensions ,Housing Benefits,14/11/2014,HOUSING BENEFIT ADMINISTRATION,HB ENGLAND,ADUR DISTRICT COUNCIL,2033385516,"21,213"
Department for Work and Pensions ,Corporate,03/11/2014,RENEWALS OF SOFTWARE SUPPORT AND MAINTENANCE,CIO ITLR SOFTWARE P,SPECIALIST COMPUTER CENTRES PLC,2033367280,"21,132"
Department for Work and Pensions ,Employment Programmes,06/11/2014,WP JSA 25+ JOB OUTCOME PAYMENTWP JSA 25+ JOB OUTCOME PAYMENT,WWEG EP WEST LONDON INGEUS UK,INGEUS UK LTD,2033373546,"21,116"
Department for Work and Pensions ,Corporate,19/11/2014,TREDDS APPS DEV MANDAYS,CIO IT OGD HMRC ITLR,HP ENTERPRISE SERVICES UK LTD,2033394702,"21,113"
Department for Work and Pensions ,Employment Programmes,18/11/2014,WP JSA 25+ SUSTAINMENT OUTCOME PAYMENT,WWEG EP EAST OF ENGLAND INGEUS UK,INGEUS UK LTD,2033391769,"21,070"
Department for Work and Pensions ,Employment Programmes,24/11/2014,WP JSA 25+ SUSTAINMENT OUTCOME PAYMENT,WWEG EP WEST LONDON INGEUS UK,INGEUS UK LTD,2033402770,"21,070"
Department for Work and Pensions ,Corporate,25/11/2014,NON-TREDDS IS IT APPS DEV MANDAY,CHG DIGITALISATION PROG DIRECTOR & PMO,ACCENTURE UK LTD,2033403633,"21,058"
Department for Work and Pensions ,Housing Benefits,14/11/2014,HOUSING BENEFIT ADMINISTRATION,HB ENGLAND,SURREY HEATH BOROUGH COUNCIL,2033385372,"20,973"
Department for Work and Pensions ,Employment Programmes,05/11/2014,WP JSA 25+ JOB OUTCOME PAYMENTWP JSA 25+ JOB OUTCOME PAYMENT,WWEG EP EAST LONDON SEETEC,SEETEC BUSINESS TECHNOLOGY CENTRE LTD,2033370567,"20,928"
Department for Work and Pensions ,Employment Programmes,27/11/2014,WP JSA 18-24 JOB SUSTAINMENT OUTCOME PAYMENT,WWEG EP EAST MIDLANDS A4E,A4E LTD,2033410050,"20,910"
Department for Work and Pensions ,Employment Programmes,14/11/2014,WP JSA 18-24 JOB SUSTAINMENT OUTCOME PAYMENT,WWEG EP SCOTLAND INGEUS UK,INGEUS UK LTD,2033386377,"20,910"
Department for Work and Pensions ,Employment Programmes,18/11/2014,WP JSA 25+ SUSTAINMENT OUTCOME PAYMENT,WWEG EP EAST LONDON A4E,A4E LTD,2033391553,"20,855"
Department for Work and Pensions ,Employment Programmes,18/11/2014,WP JSA 25+ SUSTAINMENT OUTCOME PAYMENT,WWEG EP NORTH EAST Y AND H G4S,G4S REGIONAL MANAGEMENT UK & I LTD,2033390167,"20,855"
Department for Work and Pensions ,Employment Programmes,17/11/2014,WP JSA 25+ SUSTAINMENT OUTCOME PAYMENT,WWEG EP W MIDLANDS BIRM SOL BC NEWCASTLE COLLEGE GROUP,NEWCASTLE COLLEGE GROUP,2033388718,"20,855"
Department for Work and Pensions ,Employment Programmes,28/11/2014,WP JSA 25+ SUSTAINMENT OUTCOME PAYMENT,WWEG EP SOUTH YORKSHIRE SERCO,SERCO LTD,2033412971,"20,855"
Department for Work and Pensions ,Employment Programmes,21/11/2014,WP JSA 25+ JOB OUTCOME PAYMENTWP JSA 25+ JOB OUTCOME PAYMENT,WWEG EP EAST LONDON A4E,A4E LTD,2033398360,"20,832"
Department for Work and Pensions ,Employment Programmes,06/11/2014,WP JSA 18-24 JOB SUSTAINMENT OUTCOME PAYMENT,WWEG EP EAST LONDON SEETEC,SEETEC BUSINESS TECHNOLOGY CENTRE LTD,2033372508,"20,740"
Department for Work and Pensions ,Corporate,24/11/2014,REMOTE STORAGE COSTS VAT RECOV,FG OPS FIN DM CONTRACTS,CAPITA BUSINESS SERVICES LTD,2033402860,"20,721"
Department for Work and Pensions ,Employment Programmes,27/11/2014,WP JSA 25+ SUSTAINMENT OUTCOME PAYMENT,WWEG EP NORTH WEST GM CHES AND WARR AVANTA ENTERPRISE,AVANTA ENTERPRISE LTD,2033409104,"20,640"
Department for Work and Pensions ,Employment Programmes,06/11/2014,WP JSA 25+ JOB OUTCOME PAYMENTWP JSA 25+ JOB OUTCOME PAYMENT,WWEG EP SOUTH YORKSHIRE SERCO,SERCO LTD,2033373267,"20,640"
Department for Work and Pensions ,Corporate,10/11/2014,CONTRACTORS & STAFF SUBSTITUTIONS,CHG UC DESIGN & BUILD PROGRAMME MANAGER,CAPITA BUSINESS SERVICES LTD,2033377425,"20,550"
Department for Work and Pensions ,Corporate,28/11/2014,PRIME BUSINESS RATES,FG CD MANCHESTER ANCHORAGE HOUSE,TELEREAL TRILLIUM,2033411342,"20,485"
Department for Work and Pensions ,Employment Programmes,11/11/2014,WP JSA 25+ SUSTAINMENT OUTCOME PAYMENT,WWEG EP EAST OF ENGLAND INGEUS UK,INGEUS UK LTD,2033378869,"20,425"
Department for Work and Pensions ,Employment Programmes,25/11/2014,WP JSA 18-24 JOB SUSTAINMENT OUTCOME PAYMENT,WWEG EP NORTH WEST GM CHES AND WARR SEETEC,SEETEC BUSINESS TECHNOLOGY CENTRE LTD,2033403622,"20,400"
Department for Work and Pensions ,Housing Benefits,14/11/2014,HOUSING BENEFIT ADMINISTRATION,HB ENGLAND,EPSOM & EWELL BOROUGH COUNCIL,2033385383,"20,315"
Department for Work and Pensions ,Employment Programmes,13/11/2014,ACCESS TO WORK - TRAVEL IN WORK,WWEG EP NORTH WEST,CAPITA SYMONDS LTD,2033382428,"20,218"
Department for Work and Pensions ,Housing Benefits,14/11/2014,HOUSING BENEFIT ADMINISTRATION,HB ENGLAND,NORTH DORSET DISTRICT COUNCIL,2033385428,"20,217"
Department for Work and Pensions ,Employment Programmes,24/11/2014,WP JSA 25+ SUSTAINMENT OUTCOME PAYMENT,WWEG EP W MIDLANDS COV WARW STAFFS AND MARCHES ESG,ESG HOLDINGS LIMITED,2033402358,"20,210"
Department for Work and Pensions ,Employment Programmes,21/11/2014,WP JSA 25+ SUSTAINMENT OUTCOME PAYMENT,WWEG EP NORTH WEST GM CHES AND WARR G4S,G4S REGIONAL MANAGEMENT UK & I LTD,2033399325,"20,210"
Department for Work and Pensions ,Employment Programmes,10/11/2014,WP JSA 25+ SUSTAINMENT OUTCOME PAYMENT,WWEG EP NORTH WEST MERS HAL CUMB AND LANCS INGEUS UK,INGEUS UK LTD,2033376618,"20,210"
Department for Work and Pensions ,Employment Programmes,11/11/2014,WP JSA 25+ SUSTAINMENT OUTCOME PAYMENT,WWEG EP SCOTLAND INGEUS UK,INGEUS UK LTD,2033378869,"20,210"
Department for Work and Pensions ,Housing Benefits,14/11/2014,HOUSING BENEFIT ADMINISTRATION,HB ENGLAND,NORTH WARWICKSHIRE DISTRICT COUNCIL,2033385520,"20,003"
Department for Work and Pensions ,Employment Programmes,06/11/2014,WP JSA NEET SUSTAINMENT OUTCOME PAYMENT,WWEG EP NORTH EAST INGEUS UK,INGEUS UK LTD,2033373546,"20,000"
Department for Work and Pensions ,Employment Programmes,28/11/2014,WP JSA NEET SUSTAINMENT OUTCOME PAYMENT,WWEG EP SCOTLAND INGEUS UK,INGEUS UK LTD,2033413420,"20,000"
Department for Work and Pensions ,Employment Programmes,26/11/2014,WP JSA 25+ SUSTAINMENT OUTCOME PAYMENT,WWEG EP EAST LONDON A4E,A4E LTD,2033406224,"19,995"
Department for Work and Pensions ,Employment Programmes,24/11/2014,WP JSA 25+ SUSTAINMENT OUTCOME PAYMENT,WWEG EP WEST YORKSHIRE INGEUS UK,INGEUS UK LTD,2033402770,"19,995"
Department for Work and Pensions ,Employment Programmes,11/11/2014,WP JSA 25+ SUSTAINMENT OUTCOME PAYMENT,WWEG EP WEST LONDON REED IN PARTNERSHIP,REED IN PARTNERSHIP LTD,2033380275,"19,995"
Department for Work and Pensions ,Corporate,07/11/2014,POSTAGE,OPS OPE NINO GLASGOW NDC,ROYAL MAIL GROUP PLC,2033375395,"19,983"
Department for Work and Pensions ,Child Maintenance and Enforcement Commission,04/11/2014,OVERTIME,DEBT ENF AREA MANAGEMENT OFFICE,DSD GROUP ACCOUNT,1001864,"19,901"
Department for Work and Pensions ,Employment Programmes,21/11/2014,WP JSA 18-24 JOB SUSTAINMENT OUTCOME PAYMENT,WWEG EP NORTH EAST INGEUS UK,INGEUS UK LTD,2033399194,"19,890"
Department for Work and Pensions ,Employment Programmes,21/11/2014,ESF 2011-13 SUPPORT FOR FAMILIES WITH MULTIPLE PROBLEMS JSA CUSTOMERS JOB OUTCOME PAYMENT,CPA6 GTR MAN CHES WARR EXC HAL G4S CARE AND JUSTICE SERV,G4S REGIONAL MANAGEMENT UK & I LTD,2033399325,"19,883"
Department for Work and Pensions ,Employment Programmes,11/11/2014,WP JSA 25+ SUSTAINMENT OUTCOME PAYMENT,WWEG EP NORTH EAST AVANTA ENTERPRISE,AVANTA ENTERPRISE LTD,2033379845,"19,780"
Department for Work and Pensions ,Employment Programmes,17/11/2014,WP JSA 25+ SUSTAINMENT OUTCOME PAYMENT,WWEG EP W MIDLANDS BIRM SOL BC FOURSTAR EMP AND SKILLS,EOS WORKS LTD,2033387901,"19,780"
Department for Work and Pensions ,Employment Programmes,17/11/2014,WP JSA 25+ SUSTAINMENT OUTCOME PAYMENT,WWEG EP EAST MIDLANDS INGEUS UK,INGEUS UK LTD,2033390040,"19,780"
Department for Work and Pensions ,Employment Programmes,21/11/2014,WP JSA 25+ SUSTAINMENT OUTCOME PAYMENT,WWEG EP EAST LONDON SEETEC,SEETEC BUSINESS TECHNOLOGY CENTRE LTD,2033397467,"19,780"
Department for Work and Pensions ,Employment Programmes,25/11/2014,WP JSA 25+ SUSTAINMENT OUTCOME PAYMENT,WWEG EP SCOTLAND WORKING LINKS,WORKING LINKS,2033404126,"19,780"
Department for Work and Pensions ,Employment Programmes,05/11/2014,WP JSA 25+ JOB OUTCOME PAYMENTWP JSA 25+ JOB OUTCOME PAYMENT,WWEG EP SCOTLAND WORKING LINKS,WORKING LINKS,2033370914,"19,776"
Department for Work and Pensions ,Corporate,04/11/2014,SIAM FIXED PRICE CONTRACTS,CIO ITLR DIGITAL TOWER DEL P,CAPGEMINI UK PLC,2033368297,"19,753"
Department for Work and Pensions ,Employment Programmes,14/11/2014,WP JSA NEET SUSTAINMENT OUTCOME PAYMENT,WWEG EP SCOTLAND INGEUS UK,INGEUS UK LTD,2033386377,"19,750"
Department for Work and Pensions ,Employment Programmes,06/11/2014,WP JSA CLAIMING 22 OF 24MTHS SUSTAINMENT OUTCOME PAYMENT,WWEG EP EAST OF ENGLAND SEETEC,SEETEC BUSINESS TECHNOLOGY CENTRE LTD,2033372508,"19,750"
Department for Work and Pensions ,Employment Programmes,21/11/2014,WP JSA 18-24 JOB SUSTAINMENT OUTCOME PAYMENT,WWEG EP EAST MIDLANDS INGEUS UK,INGEUS UK LTD,2033399194,"19,720"
Department for Work and Pensions ,Employment Programmes,14/11/2014,WP JSA 18-24 JOB SUSTAINMENT OUTCOME PAYMENT,WWEG EP SCOTLAND WORKING LINKS,WORKING LINKS,2033386379,"19,720"
Department for Work and Pensions ,Housing Benefits,14/11/2014,HOUSING BENEFIT ADMINISTRATION,HB SCOTLAND,EAST RENFREWSHIRE COUNCIL,2033385549,"19,687"
Department for Work and Pensions ,Employment Programmes,14/11/2014,WP JSA 25+ JOB OUTCOME PAYMENTWP JSA 25+ JOB OUTCOME PAYMENT,WWEG EP EAST LONDON SEETEC,SEETEC BUSINESS TECHNOLOGY CENTRE LTD,2033387592,"19,680"
Department for Work and Pensions ,Corporate,14/11/2014,SECURE PRINTING,FG CD SECURE PRINT,XEROX UK LTD 3W,2033386444,"19,596"
Department for Work and Pensions ,Employment Programmes,28/11/2014,WP JSA 25+ SUSTAINMENT OUTCOME PAYMENT,WWEG EP W MIDLANDS BIRM SOL BC NEWCASTLE COLLEGE GROUP,NEWCASTLE COLLEGE GROUP,2033411750,"19,565"
Department for Work and Pensions ,Employment Programmes,21/11/2014,WP JSA 25+ SUSTAINMENT OUTCOME PAYMENT,WWEG EP WEST LONDON REED IN PARTNERSHIP,REED IN PARTNERSHIP LTD,2033399643,"19,565"
Department for Work and Pensions ,Employment Programmes,17/11/2014,WP JSA 25+ SUSTAINMENT OUTCOME PAYMENT,WWEG EP WALES WORKING LINKS WALES,WORKING LINKS,2033387910,"19,565"
Department for Work and Pensions ,Employment Programmes,28/11/2014,SUSTAINMENT FEE,WWEG EP WORK CHOICE NORTH AND MID WALES SOUTH EAST WALES,WORKING LINKS,2033413424,"19,562"
Department for Work and Pensions ,Corporate,06/11/2014,FSF - TRAINING PAYMENTS TO PROVIDERS - JSA JOBSEEKERS,OPS WDC WSD SE BATH JOBCENTRE PLUS,PINNACLE PEOPLE,2033373541,"19,520"
Department for Work and Pensions ,Corporate,07/11/2014,POSTAGE,OPS PEN PS AA UNIT,ROYAL MAIL GROUP PLC,2033375395,"19,516"
Department for Work and Pensions ,Employment Programmes,06/11/2014,WP JSA NEET SUSTAINMENT OUTCOME PAYMENT,WWEG EP SCOTLAND INGEUS UK,INGEUS UK LTD,2033373546,"19,500"
Department for Work and Pensions ,Employment Programmes,04/11/2014,WP JSA 18-24 JOB SUSTAINMENT OUTCOME PAYMENT,WWEG EP EAST LONDON SEETEC,SEETEC BUSINESS TECHNOLOGY CENTRE LTD,2033368036,"19,380"
Department for Work and Pensions ,Employment Programmes,25/11/2014,SERVICE FEE,WWEG EP CORE MWA CPA LONDON,SEETEC BUSINESS TECHNOLOGY CENTRE LTD,2033403622,"19,372"
Department for Work and Pensions ,Employment Programmes,03/11/2014,WP JSA 25+ SUSTAINMENT OUTCOME PAYMENT,WWEG EP SOUTH EAST SURR SUSSX AND KENT AVANTA ENTERPRISE,AVANTA ENTERPRISE LTD,2033367015,"19,350"
Department for Work and Pensions ,Employment Programmes,27/11/2014,WP JSA 25+ JOB OUTCOME PAYMENTWP JSA 25+ JOB OUTCOME PAYMENT,WWEG EP NORTH WEST GM CHES AND WARR AVANTA ENTERPRISE,AVANTA ENTERPRISE LTD,2033409104,"19,350"
Department for Work and Pensions ,Employment Programmes,24/11/2014,WP JSA 25+ SUSTAINMENT OUTCOME PAYMENT,WWEG EP NORTH EAST INGEUS UK,INGEUS UK LTD,2033402770,"19,350"
Department for Work and Pensions ,Housing Benefits,14/11/2014,HOUSING BENEFIT ADMINISTRATION,HB ENGLAND,BRENTWOOD DISTRICT COUNCIL,2033385410,"19,304"
Department for Work and Pensions ,Employment Programmes,04/11/2014,WP JSA 25+ JOB OUTCOME PAYMENTWP JSA 25+ JOB OUTCOME PAYMENT,WWEG EP EAST MIDLANDS A4E,A4E LTD,2033368406,"19,296"
Department for Work and Pensions ,Employment Programmes,27/11/2014,WP JSA CLAIMING 22 OF 24MTHS SUSTAINMENT OUTCOME PAYMENT,WWEG EP EAST MIDLANDS A4E,A4E LTD,2033410050,"19,250"
Department for Work and Pensions ,Employment Programmes,19/11/2014,ACCESS TO WORK - PAYMENT FOR SUPPORT WORKERS,WWEG EP LONDON REGION,REMPLOY LIMITED,2033394163,"19,212"
Department for Work and Pensions ,Employment Programmes,20/11/2014,WP JSA 18-24 JOB SUSTAINMENT OUTCOME PAYMENT,WWEG EP EAST LONDON A4E,A4E LTD,2033396174,"19,210"
Department for Work and Pensions ,Employment Programmes,06/11/2014,WP JSA 18-24 JOB SUSTAINMENT OUTCOME PAYMENT,WWEG EP W MIDLANDS BIRM SOL BC PERTEMPS,PERTEMPS,2033371641,"19,210"
Department for Work and Pensions ,Corporate,24/11/2014,REMOTE STORAGE COSTS VAT RECOV,"FG IGS KNOWLEDGE, INFORMATION MANAGEMENT AND DEVOLUTION",CAPITA BUSINESS SERVICES LTD,2033402860,"19,181"
Department for Work and Pensions ,Corporate,21/11/2014,FSF - SUPPORT CONTRACT MODULES FOR JSA JOBSEEKERS,OPS WDC WSD CE MERCIA DISTRICT OFFICE,LEARNDIRECT LTD,2033397372,"19,160"
Department for Work and Pensions ,Employment Programmes,04/11/2014,WP JSA 25+ SUSTAINMENT OUTCOME PAYMENT,WWEG EP NORTH EAST INGEUS UK,INGEUS UK LTD,2033368513,"19,135"
Department for Work and Pensions ,Employment Programmes,26/11/2014,WP JSA 25+ SUSTAINMENT OUTCOME PAYMENT,WWEG EP EAST OF ENGLAND INGEUS UK,INGEUS UK LTD,2033406620,"19,135"
Department for Work and Pensions ,Employment Programmes,12/11/2014,WP JSA 25+ SUSTAINMENT OUTCOME PAYMENT,WWEG EP WEST YORKSHIRE BEST LTD,INTERSERVE WORKING FUTURES,2033380768,"19,135"
Department for Work and Pensions ,Employment Programmes,20/11/2014,WP JSA 25+ SUSTAINMENT OUTCOME PAYMENT,WWEG EP WEST YORKSHIRE BEST LTD,INTERSERVE WORKING FUTURES,2033396209,"19,135"
Department for Work and Pensions ,Employment Programmes,06/11/2014,WP JSA 25+ JOB OUTCOME PAYMENTWP JSA 25+ JOB OUTCOME PAYMENT,WWEG EP EAST OF ENGLAND SEETEC,SEETEC BUSINESS TECHNOLOGY CENTRE LTD,2033372508,"19,110"
Department for Work and Pensions ,Corporate,27/11/2014,IT Owned Additions Cost,CHG DIGITAL JOBCENTRES,SPECIALIST COMPUTER CENTRES PLC,2033410669,"19,080"
Department for Work and Pensions ,Employment Programmes,10/11/2014,WP JSA 18-24 JOB SUSTAINMENT OUTCOME PAYMENT,WWEG EP SOUTH EAST SURR SUSSX AND KENT G4S,G4S REGIONAL MANAGEMENT UK & I LTD,2033377300,"19,040"
Department for Work and Pensions ,Employment Programmes,10/11/2014,WP JSA 18-24 JOB SUSTAINMENT OUTCOME PAYMENT,WWEG EP SCOTLAND WORKING LINKS,WORKING LINKS,2033376621,"19,040"
Department for Work and Pensions ,Employment Programmes,28/11/2014,WP JSA 25+ JOB OUTCOME PAYMENTWP JSA 25+ JOB OUTCOME PAYMENT,WWEG EP EAST LONDON A4E,A4E LTD,2033413324,"19,026"
Department for Work and Pensions ,Corporate,28/11/2014,PRIME BUSINESS RATES,FG CD MANCHESTER HEYWOOD STORES,TELEREAL TRILLIUM,2033411342,"18,979"
Department for Work and Pensions ,Employment Programmes,17/11/2014,WP JSA 25+ SUSTAINMENT OUTCOME PAYMENT,WWEG EP EAST LONDON A4E,A4E LTD,2033389456,"18,920"
Department for Work and Pensions ,Employment Programmes,21/11/2014,WP JSA 25+ SUSTAINMENT OUTCOME PAYMENT,WWEG EP NORTH WEST MERS HAL CUMB AND LANCS A4E,A4E LTD,2033398360,"18,920"
Department for Work and Pensions ,Employment Programmes,26/11/2014,WP JSA 25+ SUSTAINMENT OUTCOME PAYMENT,WWEG EP W MIDLANDS BIRM SOL BC FOURSTAR EMP AND SKILLS,EOS WORKS LTD,2033406333,"18,920"
Department for Work and Pensions ,Employment Programmes,04/11/2014,WP JSA 25+ SUSTAINMENT OUTCOME PAYMENT,WWEG EP SCOTLAND INGEUS UK,INGEUS UK LTD,2033368513,"18,920"
Department for Work and Pensions ,Employment Programmes,26/11/2014,WP JSA 25+ SUSTAINMENT OUTCOME PAYMENT,WWEG EP SCOTLAND INGEUS UK,INGEUS UK LTD,2033406620,"18,920"
Department for Work and Pensions ,Employment Programmes,03/11/2014,WP JSA 25+ SUSTAINMENT OUTCOME PAYMENT,WWEG EP S WEST GLOS WILTS AND W OF E REHAB JOB FIT,REHAB JOBFIT,2033366835,"18,920"
Department for Work and Pensions ,Employment Programmes,06/11/2014,WP JSA 18-24 JOB SUSTAINMENT OUTCOME PAYMENT,WWEG EP NORTH EAST AVANTA ENTERPRISE,AVANTA ENTERPRISE LTD,2033372151,"18,870"
Department for Work and Pensions ,Employment Programmes,05/11/2014,WP JSA 25+ JOB OUTCOME PAYMENTWP JSA 25+ JOB OUTCOME PAYMENT,WWEG EP EAST MIDLANDS A4E,A4E LTD,2033370001,"18,816"
Department for Work and Pensions ,Employment Programmes,05/11/2014,ESF 2011-13 SUPPORT FOR FAMILIES WITH MULTIPLE PROBLEMS JSA CUSTOMERS PROGRESS MEASURE - INITIAL 25% PAYMENT,CPA11 WEST MIDLANDS EOS WORKS LTD FORMERLY FOURSTAR,EOS WORKS LTD,2033370631,"18,762"
